{"text_format":"1","workbook":"xlsx","n_sheets":27,"sheets":["Photos","Champions","Écuries","Pilotes","Bahrein","Arabie Saoudite","Australie","Azerbaïdjan","Miami","ItalieIm","Monaco","Espagne","Canada","Autriche","GB","Hongrie","Belgique","Pays-Bas","Italie","Singapour","Japon","Qatar","USA","Mexique","Brésil","Las Végas","AbuDhabi"],"not_rendered":{"charts":0,"images":106,"macros":1,"external_links":1,"defined_names":19,"comments":0,"pivot_tables":0},"unopened":[],"bounds":{"document_bytes":16777216,"sheet_cells":100000,"rows_first":2000,"rows_last":500,"rows_between":2000,"halvings":0,"cell_chars":16384,"cell_head_chars":4096},"cells_cut":0,"cells_raw":0,"read":"whole","date_system":"1900"}

{"sheet":"Photos","index":0,"n_rows":27,"n_cols":12,"rows_kept":27,"cut":false,"hidden":false,"merged":[[1,5,1,7],[1,1,1,3],[1,9,1,11]]}
[]
[null," Pilotes",null,null,null,"Autos",null,null,null,"Logos "]
[null,"Noms",null,"Photos",null,"Noms",null,"Photos",null,"Noms",null,"Photos"]
[null,"HAMILTON Lewis",{"$f":"\"Photos!\"&ADDRESS(ROW(C4),COLUMN(D4))","v":"Photos!$D$4"},null,null,"MERCEDES",{"$f":"\"Photos!\"&ADDRESS(ROW(G4),COLUMN(H4))","v":"Photos!$H$4"},null,null,"MERCEDES",{"$f":"\"Photos!\"&ADDRESS(ROW(K4),COLUMN(L4))","v":"Photos!$L$4"}]
[null,"RUSSELL George","Photos!$D$5",null,null,"FERRARI","Photos!$H$5",null,null,"FERRARI",{"$f":"\"Photos!\"&ADDRESS(ROW(K5),COLUMN(L5))","v":"Photos!$L$5"}]
[null,"LECLERC Charles","Photos!$D$6",null,null,"RED BULL RACING","Photos!$H$6",null,null,"RED BULL RACING","Photos!$L$6"]
[null,"SAINZ.Jr Carlos","Photos!$D$7",null,null,"ASTON MARTIN","Photos!$H$7",null,null,"ASTON MARTIN","Photos!$L$7"]
[null,"VERSTAPPEN Max","Photos!$D$8",null,null,"WILLIAMS","Photos!$H$8",null,null,"WILLIAMS","Photos!$L$8"]
[null,"PEREZ Sergio","Photos!$D$9",null,null,"ALPINE F1 TEAM","Photos!$H$9",null,null,"ALPINE F1 TEAM","Photos!$L$9"]
[null,"STROLL Lance","Photos!$D$10",null,null,"ALPHA TAURI","Photos!$H$10",null,null,"ALPHA TAURI","Photos!$L$10"]
[null,"ALONSO Fernando","Photos!$D$11",null,null,"HAAS","Photos!$H$11",null,null,"HAAS","Photos!$L$11"]
[null,"SARGEANT Logan","Photos!$D$12",null,null,"Mc LAREN","Photos!$H$12",null,null,"Mc LAREN","Photos!$L$12"]
[null,"ALBON Alexander","Photos!$D$13",null,null,"ALFA ROMÉO","Photos!$H$13",null,null,"ALFA ROMÉO","Photos!$L$13"]
[null,"GASLY Pierre","Photos!$D$14"]
[null,"OCON Sebastian","Photos!$D$15"]
[null,"TSUNODA Yoki","Photos!$D$16"]
[null,"DEVRIES Nyck","Photos!$D$17"]
[null,"HULKENBERG Nico","Photos!$D$18"]
[null,"MAGNUSSEN Kevin","Photos!$D$19"]
[null,"NORRIS Lando","Photos!$D$20"]
[null,"PIASTRI Oscar","Photos!$D$21"]
[null,"BOTTAS Valtteri","Photos!$D$22"]
[null,"GUANYU Zhou","Photos!$D$23"]
[null,"DUGROVICH Felipe","Photos!$D$24"]
[null,null,"Photos!$D$25"]
[null,null,"Photos!$D$26"]
[null,null,{"$f":"\"Photos!\"&ADDRESS(ROW(C27),COLUMN(D27))","v":"Photos!$D$27"}]

{"sheet":"Champions","index":1,"n_rows":22,"n_cols":10,"rows_kept":22,"cut":false,"hidden":false,"merged":[[1,2,1,10],[15,2,15,10],[17,5,17,7],[18,5,18,7],[3,5,3,7],[4,5,4,7],[6,1,6,3],[7,1,7,3],[6,9,6,11],[7,9,7,11],[5,5,10,7],[8,1,13,3],[8,9,13,11],[20,1,20,3],[21,1,21,3],[20,9,20,11],[21,9,21,11],[22,1,26,3],[19,5,23,7],[22,9,26,11]]}
[]
[null,null,"CHAMPIONNAT PILOTES 2023"]
[]
[null,null,null,null,null,"CHAMPION 2023"]
[null,null,null,null,null,{"$f":"IF(Pilotes!G5=1,Pilotes!B5,\"\")","v":"VERSTAPPEN Max"}]
[]
[null,"DEUXIÈME",null,null,null,null,null,null,null,"TROIXIÈME"]
[null,{"$f":"IF(Pilotes!G6=2,Pilotes!B6,\"\")","v":"PEREZ Sergio"},null,null,null,null,null,null,null,{"$f":"IF(Pilotes!G7=3,Pilotes!B7,\"\")","v":"ALONSO Fernando"}]
[]
[]
[]
[]
[]
[]
[]
[null,null,"CHAMPIONNAT CONSTRUCTEURS 2023"]
[]
[null,null,null,null,null,"CHAMPION 2023"]
[null,null,null,null,null,{"$f":"IF(Écuries!G4=1,Écuries!C4,\"\")","v":"RED BULL RACING"}]
[]
[null,"DEUXIÈME",null,null,null,null,null,null,null,"TROIXIÈME"]
[null,{"$f":"IF(Écuries!G5=2,Écuries!C5,\"\")","v":"ASTON MARTIN"},null,null,null,null,null,null,null,{"$f":"IF(Écuries!G6=3,Écuries!C6,\"\")","v":"MERCEDES"}]

{"sheet":"Écuries","index":2,"n_rows":21,"n_cols":7,"rows_kept":21,"cut":false,"hidden":false,"merged":[[0,2,0,6],[16,4,17,4]]}
[]
[]
[null,null,"ÉCURIES","POINTS","Écart/premier","Écart/précédent","RANG"]
[null,null,"RED BULL RACING",{"$f":"SUM(Bahrein:AbuDhabi!$G$11:$G$13)","v":123},null,null,{"$f":"IF(D4=\"\",0,(RANK(D4,$D$4:$D$13)))","v":1}]
[null,null,"ASTON MARTIN",{"$f":"SUM(Bahrein:AbuDhabi!$G$14:$G$16)","v":65},{"$f":"D4-D5","v":58},{"$f":"D4-D5","v":58},2]
[null,null,"MERCEDES",{"$f":"SUM(Bahrein:AbuDhabi!$G$5:$G$7)","v":56},{"$f":"D4-D6","v":67},{"$f":"D5-D6","v":9},3]
[null,null,"FERRARI",{"$f":"SUM(Bahrein:AbuDhabi!$G$8:$G$10)","v":26},{"$f":"D4-D7","v":97},30,4]
[null,null,"Mc LAREN",{"$f":"SUM(Bahrein:AbuDhabi!$G$29:$G$31)","v":12},{"$f":"D4-D8","v":111},14,5]
[null,null,"ALPINE F1 TEAM",{"$f":"SUM(Bahrein:AbuDhabi!$G$20:$G$22)","v":8},{"$f":"D4-D9","v":115},4,6]
[null,null,"HAAS",{"$f":"SUM(Bahrein:AbuDhabi!$G$26:$G$28)","v":7},{"$f":"D4-D10","v":116},1,7]
[null,null,"ALFA ROMÉO",{"$f":"SUM(Bahrein:AbuDhabi!$G$32:$G$34)","v":6},{"$f":"D4-D11","v":117},1,8]
[null,null,"WILLIAMS",{"$f":"SUM(Bahrein:AbuDhabi!$G$17:$G$19)","v":1},{"$f":"D4-D12","v":122},5,9]
[null,null,"ALPHA TAURI",{"$f":"SUM(Bahrein:AbuDhabi!$G$23:$G$25)","v":1},{"$f":"D4-D13","v":122},{"$f":"D12-D13","v":0},9]
[]
[]
[]
[null,null,"Écuries","POINTS","VS","Écuries","POINTS"]
[null,null,"ALPINE F1 TEAM",{"$f":"INDEX(D4:D13,MATCH(C18,C4:C13,0))","v":8},null,"Mc LAREN",{"$f":"INDEX($D$4:$D$13,MATCH($F$18,C4:C13,0))","v":12}]
[]
[null,null,null,null,"ÉCART"]
[null,null,null,null,{"$f":"D18-G18","v":-4}]

{"sheet":"Pilotes","index":3,"n_rows":36,"n_cols":11,"rows_kept":36,"cut":false,"hidden":false,"merged":[[31,3,32,3],[2,9,3,9],[0,0,0,7],[2,1,3,1],[2,2,3,2],[2,6,3,6],[2,3,3,3],[2,4,3,4],[2,5,3,5],[2,0,3,0],[29,8,29,10],[30,8,30,10]]}
[]
[]
[null,"PILOTES","Points","Écart-premier","Écart/précédent","Pôle Position","Place","OUT",null,"Courses"]
[null,null,{"$f":"IFERROR(SUM(Australie!G33,[1]Bahreïn!F33),\"\")","v":2},null,null,null,{"$f":"IF(C4=0,\"\",(RANK(C4,C1:C4)))","v":1},"Nbre de fois","%",{"$f":"IF(F4=0,\"\",(RANK(F4,F1:F4)))","v":""}]
[null,"VERSTAPPEN Max",{"$f":"SUM(Bahrein:AbuDhabi!$G$11)","v":69},null,null,{"$f":"CalculPool(B5)","v":2},{"$f":"IF(C5=\"\",0,(RANK(C5,$C$5:$C$28)))","v":1},{"$f":"CalculPosition(B5)","v":0},{"$f":"H5/22","v":0},"Australie"]
[null,"PEREZ Sergio",{"$f":"SUM(Bahrein:AbuDhabi!$G$12)","v":54},{"$f":"C5-C6","v":15},{"$f":"C5-C6","v":15},{"$f":"CalculPool(B6)","v":1},2,{"$f":"CalculPosition(B6)","v":0},{"$f":"H6/22","v":0},"AbuDhabi"]
[null,"ALONSO Fernando",{"$f":"SUM(Bahrein:AbuDhabi!$G$14)","v":45},{"$f":"C5-C7","v":24},{"$f":"C6-C7","v":9},{"$f":"CalculPool(B7)","v":0},3,0,{"$f":"H7/22","v":0},"Arabie Saoudite"]
[null,"HAMILTON Lewis",{"$f":"SUM(Bahrein:AbuDhabi!$G$5)","v":38},{"$f":"C5-C8","v":31},{"$f":"C7-C8","v":7},0,4,0,0,"Autriche"]
[null,"SAINZ.Jr Carlos",{"$f":"SUM(Bahrein:AbuDhabi!$G$8)","v":20},{"$f":"C5-C9","v":49},18,{"$f":"CalculPool(B9)","v":0},5,0,0,"Azerbaïdjan"]
[null,"STROLL Lance",{"$f":"SUM(Bahrein:AbuDhabi!$G$15)","v":20},{"$f":"C5-C10","v":49},0,0,5,1,4.5454545454545456E-2,"Bahrein"]
[null,"RUSSELL George",{"$f":"SUM(Bahrein:AbuDhabi!$G$6)","v":18},{"$f":"C5-C11","v":51},2,0,7,1,4.5454545454545456E-2,"Belgique"]
[null,"NORRIS Lando",{"$f":"SUM(Bahrein:AbuDhabi!$G$29)","v":8},{"$f":"C5-C12","v":61},10,0,8,0,0,"Brésil"]
[null,"LECLERC Charles",{"$f":"SUM(Bahrein:AbuDhabi!$G$9)","v":6},{"$f":"C5-C13","v":63},2,0,9,2,9.0909090909090912E-2,"Canada","Bahrein"]
[null,"HULKENBERG Nico",{"$f":"SUM(Bahrein:AbuDhabi!$G$27)","v":6},{"$f":"C5-C14","v":63},0,0,9,0,0,"Espagne"]
[null,"BOTTAS Valtteri",{"$f":"SUM(Bahrein:AbuDhabi!$G$32)","v":4},{"$f":"C5-C15","v":65},2,0,11,0,0,"GB","Arabie Saoudite"]
[null,"GASLY Pierre",{"$f":"SUM(Bahrein:AbuDhabi!$G$20)","v":4},{"$f":"C5-C16","v":65},0,0,11,1,4.5454545454545456E-2,"Hongrie"]
[null,"OCON Sebastian",{"$f":"SUM(Bahrein:AbuDhabi!$G$21)","v":4},{"$f":"C5-C17","v":65},0,0,11,2,9.0909090909090912E-2,"Italie"]
[null,"PIASTRI Oscar",{"$f":"SUM(Bahrein:AbuDhabi!$G$30)","v":4},{"$f":"C5-C18","v":65},0,0,11,1,4.5454545454545456E-2,"ItalieIm"]
[null,"GUANYU Zhou",{"$f":"SUM(Bahrein:AbuDhabi!$G$33)","v":2},{"$f":"C5-C19","v":67},2,0,15,0,0,"Japon"]
[null,"ALBON Alexander",{"$f":"SUM(Bahrein:AbuDhabi!$G$17)","v":1},{"$f":"C5-C20","v":68},1,0,16,2,9.0909090909090912E-2,"Las Végas"]
[null,"MAGNUSSEN Kevin",{"$f":"SUM(Bahrein:AbuDhabi!$G$26)","v":1},{"$f":"C5-C21","v":68},0,0,16,1,4.5454545454545456E-2,"Mexique"]
[null,"TSUNODA Yoki",{"$f":"SUM(Bahrein:AbuDhabi!$G$23)","v":1},{"$f":"C5-C22","v":68},0,0,16,0,0,"Miami"]
[null,"DEVRIES Nyck",{"$f":"SUM(Bahrein:AbuDhabi!$G$24)","v":0},{"$f":"C5-C23","v":69},1,0,19,{"$f":"CalculPosition(B23)","v":1},4.5454545454545456E-2,"Monaco"]
[null,"SARGEANT Logan",{"$f":"SUM(Bahrein:AbuDhabi!$G$18)","v":0},{"$f":"C5-C24","v":69},0,0,19,1,4.5454545454545456E-2,"Pays-Bas"]
[null,null,{"$f":"SUM(Bahrein:AbuDhabi!$G$16)","v":0},{"$f":"C5-C25","v":69},{"$f":"C24-C25","v":0},0,19,0,0,"Qatar"]
[null,null,{"$f":"SUM(Bahrein:AbuDhabi!$G$34)","v":0},{"$f":"C5-C26","v":69},{"$f":"C24-C26","v":0},0,19,{"$f":"CalculPosition(B26)","v":0},0,"Singapour"]
[null,null,{"$f":"SUM(Bahrein:AbuDhabi!$G$28)","v":0},{"$f":"C5-C27","v":69},0,0,19,{"$f":"CalculPosition(B27)","v":0},0,"USA"]
[null,null,{"$f":"SUM(Bahrein:AbuDhabi!$G$16)","v":0},{"$f":"C5-C28","v":69},0,0,19,{"$f":"CalculPosition(B28)","v":0},0]
[]
[null,null,null,null,null,null,null,null,"Moyenne"]
[null,null,null,null,null,null,null,null,{"$f":"AVERAGE($I$5:$I$28)","v":2.4621212121212117E-2}]
[null,"PILOTE 1","Points","VS","PILOTE 2","Points"]
[null,"VERSTAPPEN Max",{"$f":"INDEX(C5:C28,MATCH(B33,B5:B28,0))","v":69},null,"HAMILTON Lewis",{"$f":"INDEX(C5:C28,MATCH(E33,B5:B28,0))","v":38}]
[]
[null,null,null,"ÉCART"]
[null,null,null,{"$f":"C33-F33","v":31}]

{"sheet":"Bahrein","index":4,"n_rows":34,"n_cols":17,"rows_kept":34,"cut":false,"hidden":false,"merged":[[0,0,1,14],[2,1,3,1],[2,2,3,2],[2,3,3,3],[2,5,3,5],[2,6,3,6],[2,4,3,4],[2,0,3,0],[4,1,6,1],[4,2,6,2],[7,1,9,1],[7,2,9,2],[10,1,12,1],[10,2,12,2],[13,1,15,1],[13,2,15,2],[16,1,18,1],[16,2,18,2],[19,1,21,1],[19,2,21,2],[36,1,36,3],[31,1,33,1],[31,2,33,2],[22,1,24,1],[22,2,24,2],[25,1,27,1],[25,2,27,2],[28,1,30,1],[28,2,30,2]]}
["SAKHIR - 5 MARS 2023"]
[]
["PILOTES","ECURIES","VOITURES","Finish","Pôle","Pt tour","Points",null,"ÉCURIES","Points","Écart","Rang",null,"Noms","Points","Écart","Rang"]
[null,null,null,null,null,null,null,null,"MERCEDES",{"$f":"SUMPRODUCT($G$5:$G$7)","v":16},{"$f":"J4-J5","v":-27},{"$f":"IF(J4=\"\",0,(RANK(J4,$J$4:$J$13)))","v":3},null,"VERSTAPPEN Max",{"$f":"$G$11","v":25},null,{"$f":"IF(O4=\"\",0,(RANK(O4,$O$4:$O$23)))","v":1}]
["HAMILTON Lewis","MERCEDES",null,5,null,null,{"$f":"IFERROR(CHOOSE(D5,25,18,15,12,10,8,6,4,2,1)+(F5=1),0)","v":10},null,"RED BULL RACING",{"$f":"SUMPRODUCT($G$11:$G$13)","v":43},{"$f":"J4-J5","v":-27},1,null,"PEREZ Sergio",{"$f":"$G$12","v":18},{"$f":"O4-O5","v":7},{"$f":"IF(O5=\"\",0,(RANK(O5,$O$4:$O$23)))","v":2}]
["RUSSELL George",null,null,7,null,null,{"$f":"IFERROR(CHOOSE(D6,25,18,15,12,10,8,6,4,2,1)+(F6=1),0)","v":6},null,"Mc LAREN",{"$f":"SUMPRODUCT($G$29:$G$31)","v":0},43,8,null,"ALONSO Fernando",{"$f":"$G$14","v":15},{"$f":"O5-O6","v":3},3]
[null,null,null,null,null,null,0,null,"FERRARI",{"$f":"SUMPRODUCT($G$8:$G$10)","v":12},-12,4,null,"SAINZ.Jr Carlos",{"$f":"$G$8","v":12},3,4]
["SAINZ.Jr Carlos","FERRARI",null,4,null,null,12,null,"ALPHA TAURI",{"$f":"SUMPRODUCT($G$23:$G$25)","v":0},12,8,null,"HAMILTON Lewis",{"$f":"$G$5","v":10},2,5]
["LECLERC Charles",null,null,"OUT",null,null,0,null,"ASTON MARTIN",{"$f":"SUMPRODUCT($G$14:$G$16)","v":23},-23,2,null,"STROLL Lance",{"$f":"$G$15","v":8},2,6]
[null,null,null,null,null,null,0,null,"WILLIAMS",{"$f":"SUMPRODUCT($G$17:$G$19)","v":1},22,7,null,"RUSSEL George",{"$f":"$G$6","v":6},2,7]
["VERSTAPPEN Max","RED BULL RACING",null,1,1,null,25,null,"HAAS",{"$f":"SUMPRODUCT($G$26:$G$28)","v":0},1,8,null,"BOTTAS Valtteri",{"$f":"$G$32","v":4},2,8]
["PEREZ Sergio",null,null,2,null,null,18,null,"ALFA ROMÉO",{"$f":"SUMPRODUCT($G$32:$G$34)","v":4},-4,5,null,"ALBON Alexander",{"$f":"$G$17","v":1},3,9]
[null,null,null,null,null,null,0,null,"ALPINE F1 TEAM",{"$f":"SUMPRODUCT($G$20:$G$22)","v":2},2,6,null,"LECLERC Charles",{"$f":"$G$9","v":0},1,10]
["ALONSO Fernando","ASTON MARTIN",null,3,null,null,15,null,null,null,null,null,null,"MAGNUSSEN Kevin",{"$f":"$G$26","v":0},0,10]
["STROLL Lance",null,null,6,null,null,8,null,null,null,null,null,null,"OCON Sebastian",{"$f":"$G$21","v":0},0,10]
[null,null,null,null,null,null,0,null,null,null,null,null,null,"TSUNODA Yoki",{"$f":"$G$23","v":0},0,10]
["ALBON Alexander","WILLIAMS",null,10,null,null,1,null,null,null,null,null,null,"GUANYU Zhou",{"$f":"$G$33","v":0},0,10]
["SARGEANT Logan",null,null,12,null,null,0,null,null,null,null,null,null,"NORRIS Lando",{"$f":"$G$29","v":0},0,10]
[null,null,null,null,null,null,0,null,null,null,null,null,null,"PIASTRI Oscar",{"$f":"$G$30","v":0},0,10]
["GASLY Pierre","ALPINE F1 TEAM",null,9,null,null,2,null,null,null,null,null,null,"GASLY Pierre",{"$f":"$G$24","v":0},0,10]
["OCON Sebastian",null,null,"OUT",null,null,0,null,null,null,null,null,null,"DEVRIES Nyck",{"$f":"$G$24","v":0},0,10]
[null,null,null,null,null,null,0,null,null,null,null,null,null,"SARGEANT Logan",{"$f":"$G$18","v":0},0,10]
["TSUNODA Yoki","ALPHA TAURI",null,11,null,null,0,null,null,null,null,null,null,"HULKENBERG Nico",{"$f":"$G$27","v":0},0,10]
["DEVRIES Nyck",null,null,14,null,null,0]
[null,null,null,null,null,null,0]
["MAGNUSSEN Kevin","HAAS",null,13,null,null,0]
["HULKENBERG Nico",null,null,15,null,null,0]
[null,null,null,null,null,null,0]
["NORRIS Lando","Mc LAREN",null,17,null,null,0]
["PIASTRI Oscar",null,null,"OUT",null,null,0]
[null,null,null,null,null,null,0]
["BOTTAS Valtteri","ALFA ROMÉO",null,8,null,null,4]
["GUANYU Zhou",null,null,16,null,null,0]
[null,null,null,null,null,null,0]

{"sheet":"Arabie Saoudite","index":5,"n_rows":34,"n_cols":18,"rows_kept":34,"cut":false,"hidden":false,"merged":[[0,0,1,16],[31,1,33,1],[31,2,33,2],[22,1,24,1],[22,2,24,2],[25,1,27,1],[25,2,27,2],[28,1,30,1],[28,2,30,2],[13,1,15,1],[13,2,15,2],[16,1,18,1],[16,2,18,2],[19,1,21,1],[19,2,21,2],[2,4,3,4],[2,0,3,0],[2,1,3,1],[2,2,3,2],[2,3,3,3],[7,1,9,1],[7,2,9,2],[2,5,3,5],[2,6,3,6],[4,1,6,1],[4,2,6,2],[36,1,36,3],[10,1,12,1],[10,2,12,2]]}
["DJEDDAH - 19 MARS 2023"]
[]
["PILOTES","ECURIES","VOITURES","Finish","Pôle","Pt tour","Points",null,"ÉCURIES","Points","Écart","Rang",null,"Noms","Points","Écart","Rang"]
[null,null,null,null,null,null,null,null,"Mc LAREN",{"$f":"SUM($G$29:$G$31)","v":0},null,{"$f":"IF(J4=\"\",0,(RANK(J4,$J$4:$J$13)))","v":7},null,"VERSTAPPEN Max",{"$f":"IF(Bahrein!$D$11=\"\",0,SUM('Bahrein:Arabie Saoudite'!$G$11))","v":44},null,{"$f":"IF(O4=\"\",0,(RANK(O4,$O$4:$O$23)))","v":1}]
["HAMILTON Lewis","MERCEDES",null,5,null,null,{"$f":"IFERROR(CHOOSE(D5,25,18,15,12,10,8,6,4,2,1)+(F5=1),0)","v":10},null,"FERRARI",{"$f":"SUM($G$8:$G$10)","v":14},{"$f":"J5-J4","v":14},{"$f":"IF(J5=0,0,(RANK(J5,$J$4:$J$13)))","v":4},null,"PEREZ Sergio",{"$f":"IF(Bahrein!$D$12=\"\",0,SUM('Bahrein:Arabie Saoudite'!$G$12))","v":43},{"$f":"O4-O5","v":1},{"$f":"IF(O5=0,0,(RANK(O5,$O$4:$O$23)))","v":2}]
["RUSSELL George",null,null,4,null,null,{"$f":"IFERROR(CHOOSE(D6,25,18,15,12,10,8,6,4,2,1)+(F6=1),0)","v":12},null,"WILLIAMS",{"$f":"SUM($G$17:$G$19)","v":0},-14,0,null,"ALONSO Fernando",{"$f":"IF(Bahrein!$D$14=\"\",0,SUM('Bahrein:Arabie Saoudite'!$G$14))","v":30},{"$f":"O5-O6","v":13},3]
[null,null,null,null,null,null,0,null,"ALFA ROMÉO",{"$f":"SUM($G$32:$G$34)","v":0},0,0,null,"SAINZ.Jr Carlos",{"$f":"IF(Bahrein!$D$8=\"\",0,SUM('Bahrein:Arabie Saoudite'!$G$8))","v":20},10,{"$f":"IF(O7=0,0,(RANK(O7,$O$4:$O$23)))","v":4}]
["SAINZ.Jr Carlos","FERRARI",null,6,null,null,8,null,"MERCEDES",{"$f":"SUM($G$5:$G$7)","v":22},22,2,null,"HAMILTON Lewis",{"$f":"IF(Bahrein!$D$5=\"\",0,SUM('Bahrein:Arabie Saoudite'!$G$5))","v":20},0,4]
["LECLERC Charles",null,null,7,null,null,6,null,"RED BULL RACING",{"$f":"SUM($G$11:$G$13)","v":44},22,1,null,"RUSSEL George",{"$f":"IF(Bahrein!$D$6=\"\",0,SUM('Bahrein:Arabie Saoudite'!$G$6))","v":18},2,6]
[null,null,null,null,null,null,0,null,"ASTON MARTIN",{"$f":"SUM($G$14:$G$16)","v":15},-29,3,null,"STROLL Lance",{"$f":"IF(Bahrein!$D$15=\"\",0,SUM('Bahrein:Arabie Saoudite'!$G$15))","v":8},10,7]
["VERSTAPPEN Max","RED BULL RACING",null,2,null,1,19,null,"ALPINE F1 TEAM",{"$f":"SUM($G$20:$G$22)","v":6},-9,5,null,"LECLERC Charles",{"$f":"IF(Bahrein!$D$9=\"\",0,SUM('Bahrein:Arabie Saoudite'!$G$9))","v":6},2,8]
["PEREZ Sergio",null,null,1,1,null,25,null,"ALPHA TAURI",{"$f":"SUM($G$23:$G$25)","v":0},-6,0,null,"GASLY Pierre",{"$f":"IF(Bahrein!$D$20=\"\",0,SUM('Bahrein:Arabie Saoudite'!$G$20))","v":4},2,9]
[null,null,null,null,null,null,0,null,"HAAS",{"$f":"SUM($G$26:$G$28)","v":1},1,6,null,"OCON Sebastian",{"$f":"IF(Bahrein!$D$21=\"\",0,SUM('Bahrein:Arabie Saoudite'!$G$21))","v":4},0,9]
["ALONSO Fernando","ASTON MARTIN",null,3,null,null,15,null,null,null,null,null,null,"ALBON Alexander",{"$f":"IF(Bahrein!$D$17=\"\",0,SUM('Bahrein:Arabie Saoudite'!$G$17))","v":1},3,11]
["STROLL Lance",null,null,"OUT",null,null,0,null,null,null,null,null,null,"MAGNUSSEN Kevin",{"$f":"IF(Bahrein!$D$26=\"\",0,SUM('Bahrein:Arabie Saoudite'!$G$26))","v":1},0,11]
[null,null,null,null,null,null,0,null,null,null,null,null,null,"BOTTAS Valtteri",{"$f":"IF(Bahrein!$D$33=\"\",0,SUM('Bahrein:Arabie Saoudite'!$G$33))","v":0},1,0]
["ALBON Alexander","WILLIAMS",null,"OUT",null,null,0,null,null,null,null,null,null,"NORRIS Lando",{"$f":"IF(Bahrein!$D$29=\"\",0,SUM('Bahrein:Arabie Saoudite'!$G$29))","v":0},0,0," "]
["SARGEANT Logan",null,null,16,null,null,0,null,null,null,null,null,null,"TSUNODA Yoki",{"$f":"IF(Bahrein!$D$23=\"\",0,SUM('Bahrein:Arabie Saoudite'!$G$23))","v":0},0,0]
[null,null,null,null,null,null,0,null,null,null,null,null,null,"DEVRIES Nyck",{"$f":"IF(Bahrein!$D$24=\"\",0,SUM('Bahrein:Arabie Saoudite'!$G$24))","v":0},0,0]
["GASLY Pierre","ALPINE F1 TEAM",null,9,null,null,2,null,null,null,null,null,null,"GUANYU Zhou",{"$f":"IF(Bahrein!$D$33=\"\",0,SUM('Bahrein:Arabie Saoudite'!$G$33))","v":0},0,0]
["OCON Sebastian",null,null,8,null,null,4,null,null,null,null,null,null,"PIASTRI Oscar",{"$f":"IF(Bahrein!$D$30=\"\",0,SUM('Bahrein:Arabie Saoudite'!$G$30))","v":0},0,0]
[null,null,null,null,null,null,0,null,null,null,null,null,null,"HULKENBERG Nico",{"$f":"IF(Bahrein!$D$27=\"\",0,SUM('Bahrein:Arabie Saoudite'!$G$27))","v":0},0,0]
["TSUNODA Yoki","ALPHA TAURI",null,11,null,null,0,null,null,null,null,null,null,"SARGEANT Logan",{"$f":"IF(Bahrein!$D$18=\"\",0,SUM('Bahrein:Arabie Saoudite'!$G$18))","v":0},0,0]
["DEVRIES Nyck",null,null,14,null,null,0]
[null,null,null,null,null,null,0]
["MAGNUSSEN Kevin","HAAS",null,10,null,null,1]
["HULKENBERG Nico",null,null,12,null,null,0]
[null,null,null,null,null,null,0]
["NORRIS Lando","Mc LAREN",null,17,null,null,0]
["PIASTRI Oscar",null,null,15,null,null,0]
[null,null,null,null,null,null,0]
["BOTTAS Valtteri","ALFA ROMÉO",null,18,null,null,0]
["GUANYU Zhou",null,null,13,null,null,{"$f":"IFERROR(CHOOSE(D33,25,18,15,12,10,8,6,4,2,1)+(F33=1),0)","v":0}]
[null,null,null,null,null,null,0]

{"sheet":"Australie","index":6,"n_rows":34,"n_cols":17,"rows_kept":34,"cut":false,"hidden":false,"merged":[[7,2,9,2],[10,2,12,2],[4,2,6,2],[2,0,3,0],[2,1,3,1],[2,2,3,2],[7,1,9,1],[10,1,12,1],[2,3,3,3],[2,5,3,5],[2,6,3,6],[2,4,3,4],[4,1,6,1],[25,1,27,1],[0,0,1,16],[36,1,36,3],[31,2,33,2],[13,2,15,2],[16,2,18,2],[19,2,21,2],[28,2,30,2],[25,2,27,2],[22,2,24,2],[28,1,30,1],[31,1,33,1],[13,1,15,1],[16,1,18,1],[19,1,21,1],[22,1,24,1]]}
["MELBOURNE - 2 AVRIL 2023"]
[]
["PILOTES","ECURIES","VOITURES","Finish","Pôle","Pt tour","Points",null,"ÉCURIES","Points","Écart","Rang",null,"Noms","Points","Écart","Rang"]
[null,null,null,null,null,null,null,null,"Mc LAREN",{"$f":"SUM($G$29:$G$31)","v":12},null,{"$f":"IF(J4=\"\",0,(RANK(J4,$J$4:$J$13)))","v":4},null,"VERSTAPPEN Max",{"$f":"IF('Arabie Saoudite'!$D$11=\"\",0,SUM(Bahrein:Australie!$G$11))","v":69},null,{"$f":"IF(O4=\"\",0,(RANK(O4,$O$4:$O$23)))","v":1}]
["HAMILTON Lewis","MERCEDES",null,2,null,null,{"$f":"IFERROR(CHOOSE(D5,25,18,15,12,10,8,6,4,2,1)+(F5=1),0)","v":18},null,"FERRARI",{"$f":"SUM($G$8:$G$10)","v":0},{"$f":"J5-J4","v":-12},{"$f":"IF(J5=\"\",0,(RANK(J5,$J$4:$J$13)))+COUNTIF(J$4:J5,J5)-1","v":8},null,"PEREZ Sergio",{"$f":"IF('Arabie Saoudite'!$D$12=\"\",0,SUM(Bahrein:Australie!$G$12))","v":54},{"$f":"O4-O5","v":15},{"$f":"IF(O5=\"\",0,(RANK(O5,$O$4:$O$23)))","v":2}]
["RUSSELL George",null,null,"OUT",null,null,{"$f":"IFERROR(CHOOSE(D6,25,18,15,12,10,8,6,4,2,1)+(F6=1),0)","v":0},null,"WILLIAMS",{"$f":"SUM($G$17:$G$19)","v":0},0,{"$f":"IF(J6=\"\",0,(RANK(J6,$J$4:$J$13)))+COUNTIF(J$4:J6,J6)-1","v":9},null,"ALONSO Fernando",{"$f":"IF('Arabie Saoudite'!$D$14=\"\",0,SUM(Bahrein:Australie!$G$14))","v":45},{"$f":"O5-O6","v":9},3]
[null,null,null,null,null,null,0,null,"ALFA ROMÉO",{"$f":"SUM($G$32:$G$34)","v":2},2,{"$f":"IF(J7=\"\",0,(RANK(J7,$J$4:$J$13)))+COUNTIF(J$4:J7,J7)-1","v":6},null,"HAMILTON Lewis",{"$f":"IF('Arabie Saoudite'!$D$5=\"\",0,SUM(Bahrein:Australie!$G$5))","v":38},7,4]
["SAINZ.Jr Carlos","FERRARI",null,12,null,null,0,null,"MERCEDES",{"$f":"SUM($G$5:$G$7)","v":18},16,{"$f":"IF(J8=\"\",0,(RANK(J8,$J$4:$J$13)))+COUNTIF(J$4:J8,J8)-1","v":3},null,"STROLL Lance",{"$f":"IF('Arabie Saoudite'!$D$15=\"\",0,SUM(Bahrein:Australie!$G$15))","v":20},18,5]
["LECLERC Charles",null,null,"OUT",null,null,0,null,"RED BULL RACING",{"$f":"SUM($G$11:$G$13)","v":36},18,{"$f":"IF(J9=\"\",0,(RANK(J9,$J$4:$J$13)))+COUNTIF(J$4:J9,J9)-1","v":1},null,"SAINZ.Jr Carlos",{"$f":"IF('Arabie Saoudite'!$D$8=\"\",0,SUM(Bahrein:Australie!$G$8))","v":20},0,5]
[null,null,null,null,null,null,0,null,"ASTON MARTIN",{"$f":"SUM($G$14:$G$16)","v":27},-9,{"$f":"IF(J10=\"\",0,(RANK(J10,$J$4:$J$13)))+COUNTIF(J$4:J10,J10)-1","v":2},null,"RUSSEL George",{"$f":"IF('Arabie Saoudite'!$D$6=\"\",0,SUM(Bahrein:Australie!$G$6))","v":18},2,7]
["VERSTAPPEN Max","RED BULL RACING",null,1,1,null,25,null,"ALPINE F1 TEAM",{"$f":"SUM($G$20:$G$22)","v":0},-27,{"$f":"IF(J11=\"\",0,(RANK(J11,$J$4:$J$13)))+COUNTIF(J$4:J11,J11)-1","v":10},null,"NORRIS Lando",{"$f":"IF('Arabie Saoudite'!$D$29=\"\",0,SUM(Bahrein:Australie!$G$29))","v":8},10,8]
["PEREZ Sergio",null,null,5,null,1,11,null,"ALPHA TAURI",{"$f":"SUM($G$23:$G$25)","v":1},1,{"$f":"IF(J12=\"\",0,(RANK(J12,$J$4:$J$13)))+COUNTIF(J$4:J12,J12)-1","v":7},null,"HULKENBERG Nico",{"$f":"IF('Arabie Saoudite'!$D$27=\"\",0,SUM(Bahrein:Australie!$G$27))","v":6},2,9]
[null,null,null,null,null,null,0,null,"HAAS",{"$f":"SUM($G$26:$G$28)","v":6},5,{"$f":"IF(J13=\"\",0,(RANK(J13,$J$4:$J$13)))+COUNTIF(J$4:J13,J13)-1","v":5},null,"LECLERC Charles",{"$f":"IF('Arabie Saoudite'!$D$9=\"\",0,SUM(Bahrein:Australie!$G$9))","v":6},0,9]
["ALONSO Fernando","ASTON MARTIN",null,3,null,null,15,null,null,null,null,null,null,"OCON Sebastian",{"$f":"IF('Arabie Saoudite'!$D$21=\"\",0,SUM(Bahrein:Australie!$G$21))","v":4},2,11]
["STROLL Lance",null,null,4,null,null,12,null,null,null,null,null,null,"GASLY Pierre",{"$f":"IF('Arabie Saoudite'!$D$20=\"\",0,SUM(Bahrein:Australie!$G$20))","v":4},0,11]
[null,null,null,null,null,null,0,null,null,null,null,null,null,"BOTTAS Valtteri",{"$f":"IF('Arabie Saoudite'!$D$32=\"\",0,SUM(Bahrein:Australie!$G$32))","v":4},0,11]
["ALBON Alexander","WILLIAMS",null,"OUT",null,null,0,null,null,null,null,null,null,"PIASTRI Oscar",{"$f":"IF('Arabie Saoudite'!$D$30=\"\",0,SUM(Bahrein:Australie!$G$30))","v":4},0,11]
["SARGEANT Logan",null,null,"OUT",null,null,0,null,null,null,null,null,null,"GUANYU Zhou",{"$f":"IF('Arabie Saoudite'!$D$33=\"\",0,SUM(Bahrein:Australie!$G$33))","v":2},2,15]
[null,null,null,null,null,null,0,null,null,null,null,null,null,"MAGNUSSEN Kevin",{"$f":"IF('Arabie Saoudite'!$D$26=\"\",0,SUM(Bahrein:Australie!$G$26))","v":1},1,16]
["GASLY Pierre","ALPINE F1 TEAM",null,"OUT",null,null,0,null,null,null,null,null,null,"TSUNODA Yoki",{"$f":"IF('Arabie Saoudite'!$D$23=\"\",0,SUM(Bahrein:Australie!$G$23))","v":1},0,16]
["OCON Sebastian",null,null,"OUT",null,null,0,null,null,null,null,null,null,"ALBON Alexander",{"$f":"IF('Arabie Saoudite'!$D$17=\"\",0,SUM(Bahrein:Australie!$G$17))","v":1},0,16]
[null,null,null,null,null,null,0,null,null,null,null,null,null,"SARGEANT Logan",{"$f":"IF('Arabie Saoudite'!$D$18=\"\",0,SUM(Bahrein:Australie!$G$18))","v":0},1,19]
["TSUNODA Yoki","ALPHA TAURI",null,10,null,null,1,null,null,null,null,null,null,"DEVRIES Nyck",{"$f":"IF('Arabie Saoudite'!$D$24=\"\",0,SUM(Bahrein:Australie!$G$24))","v":0},0,19]
["DEVRIES Nyck",null,null,"OUT",null,null,0]
[null,null,null,null,null,null,0]
["MAGNUSSEN Kevin","HAAS",null,"OUT",null,null,0]
["HULKENBERG Nico",null,null,7,null,null,6]
[null,null,null,null,null,null,0]
["NORRIS Lando","Mc LAREN",null,6,null,null,8]
["PIASTRI Oscar",null,null,8,null,null,4]
[null,null,null,null,null,null,0]
["BOTTAS Valtteri","ALFA ROMÉO",null,11,null,null,0]
["GUANYU Zhou",null,null,9,null,null,2]
[null,null,null,null,null,null,0]

{"sheet":"Azerbaïdjan","index":7,"n_rows":34,"n_cols":17,"rows_kept":34,"cut":false,"hidden":false,"merged":[[2,5,3,5],[2,6,3,6],[2,7,3,7],[0,0,1,16],[2,0,3,0],[2,1,3,1],[2,2,3,2],[2,3,3,3],[2,4,3,4],[4,1,6,1],[4,2,6,2],[7,1,9,1],[7,2,9,2],[10,1,12,1],[10,2,12,2],[13,1,15,1],[13,2,15,2],[16,1,18,1],[16,2,18,2],[19,1,21,1],[19,2,21,2],[36,1,36,3],[31,1,33,1],[31,2,33,2],[22,1,24,1],[22,2,24,2],[25,1,27,1],[25,2,27,2],[28,1,30,1],[28,2,30,2]]}
["BAKOU - 30 AVRIL 2023"]
[]
["PILOTES","ECURIES","VOITURES","Finish","Pôle","Pt tour","Points","Sprint","ÉCURIES","Points","Écart","Rang",null,"Noms","Points","Écart","Rang"]
[null,null,null,null,null,null,null,null,"MERCEDES",{"$f":"SUM($G$5:$G$7)","v":0},null,{"$f":"IF(J4=\"\",0,(RANK(J4,$J$4:$J$13)))","v":1},null,"VERSTAPPEN Max",{"$f":"IF(Australie!$D$11=\"\",0,SUM(Bahrein:Azerbaïdjan!$G$11))","v":69},null,{"$f":"IF(O4=\"\",0,(RANK(O4,$O$4:$O$23)))","v":1}]
["HAMILTON Lewis","MERCEDES",null,null,null,null,{"$f":"IFERROR(CHOOSE(D5,25,20,16,13,11,10,9,8,7,6,5,4,3,2,1),0)+IFERROR(CHOOSE(H5,12,9,7,6,5,4,3,2,1),0)+F5","v":0},null,"Mc LAREN",{"$f":"SUM($G$29:$G$31)","v":0},{"$f":"J5-J4","v":0},{"$f":"IF(J5=\"\",0,(RANK(J5,$J$4:$J$13)))+COUNTIF(J$4:J5,J5)-1","v":2},null,"PEREZ Sergio",{"$f":"IF(Australie!$D$12=\"\",0,SUM(Bahrein:Azerbaïdjan!$G$12))","v":54},{"$f":"O4-O5","v":15},{"$f":"IF(O5=\"\",0,(RANK(O5,$O$4:$O$23)))","v":2}]
["RUSSELL George",null,null,null,null,null,{"$f":"IFERROR(CHOOSE(D6,25,20,16,13,11,10,9,8,7,6,5,4,3,2,1),0)+IFERROR(CHOOSE(H6,12,9,7,6,5,4,3,2,1),0)+F6","v":0},null,"FERRARI",{"$f":"SUM($G$8:$G$10)","v":0},0,{"$f":"IF(J6=\"\",0,(RANK(J6,$J$4:$J$13)))+COUNTIF(J$4:J6,J6)-1","v":3},null,"ALONSO Fernando",{"$f":"IF(Australie!$D$14=\"\",0,SUM(Bahrein:Azerbaïdjan!$G$14))","v":45},{"$f":"O5-O6","v":9},3]
[null,null,null,null,null,null,0,null,"WILLIAMS",{"$f":"SUM($G$17:$G$19)","v":0},0,{"$f":"SUMIF(Australie!$I$4:$I$13,Azerbaïdjan!$I7,Australie!$L$4:$L$13)+$J$4","v":9},null,"HAMILTON Lewis",{"$f":"IF(Australie!$D$5=\"\",0,SUM(Bahrein:Azerbaïdjan!$G$5))","v":38},7,4]
["SAINZ.Jr Carlos","FERRARI",null,null,null,null,0,null,"ALFA ROMÉO",{"$f":"SUM($G$32:$G$34)","v":0},0,{"$f":"SUMIF(Australie!$I$4:$I$13,Azerbaïdjan!$I8,Australie!$L$4:$L$13)+$J$4","v":6},null,"SAINZ.Jr Carlos",{"$f":"IF(Australie!$D$8=\"\",0,SUM(Bahrein:Azerbaïdjan!$G$8))","v":20},18,5]
["LECLERC Charles",null,null,null,null,null,0,null,"RED BULL RACING",{"$f":"SUM($G$11:$G$13)","v":0},0,{"$f":"SUMIF(Australie!$I$4:$I$13,Azerbaïdjan!$I9,Australie!$L$4:$L$13)+$J$4","v":1},null,"STROLL Lance",{"$f":"IF(Australie!$D$15=\"\",0,SUM(Bahrein:Azerbaïdjan!$G$15))","v":20},0,5]
[null,null,null,null,null,null,0,null,"ASTON MARTIN",{"$f":"SUM($G$14:$G$16)","v":0},0,{"$f":"SUMIF(Australie!$I$4:$I$13,Azerbaïdjan!$I10,Australie!$L$4:$L$13)+$J$4","v":2},null,"RUSSEL George",{"$f":"IF(Australie!$D$6=\"\",0,SUM(Bahrein:Azerbaïdjan!$G$6))","v":18},2,7]
["VERSTAPPEN Max","RED BULL RACING",null,null,null,null,0,null,"ALPINE F1 TEAM",{"$f":"SUM($G$20:$G$22)","v":0},0,{"$f":"SUMIF(Australie!$I$4:$I$13,Azerbaïdjan!$I11,Australie!$L$4:$L$13)+$J$4","v":10},null,"NORRIS Lando",{"$f":"IF(Australie!$D$29=\"\",0,SUM(Bahrein:Azerbaïdjan!$G$29))","v":8},10,8]
["PEREZ Sergio",null,null,null,null,null,0,null,"ALPHA TAURI",{"$f":"SUM($G$23:$G$25)","v":0},0,{"$f":"SUMIF(Australie!$I$4:$I$13,Azerbaïdjan!$I12,Australie!$L$4:$L$13)+$J$4","v":7},null,"LECLERC Charles",{"$f":"IF(Australie!$D$9=\"\",0,SUM(Bahrein:Azerbaïdjan!$G$9))","v":6},2,9]
[null,null,null,null,null,null,0,null,"HAAS",{"$f":"SUM($G$26:$G$28)","v":0},0,{"$f":"IF(J13=\"\",0,(RANK(J13,$J$4:$J$13)))+COUNTIF(J$4:J13,J13)-1","v":10},null,"HULKENBERG Nico",{"$f":"IF(Australie!$D$27=\"\",0,SUM(Bahrein:Azerbaïdjan!$G$27))","v":6},0,9]
["ALONSO Fernando","ASTON MARTIN",null,null,null,null,0,null,null,null,null,null,null,"BOTTAS Valtteri",{"$f":"IF(Australie!$D$32=\"\",0,SUM(Bahrein:Azerbaïdjan!$G$32))","v":4},2,11]
["STROLL Lance",null,null,null,null,null,0,null,null,null,null,null,null,"GASLY Pierre",{"$f":"IF(Australie!$D$20=\"\",0,SUM(Bahrein:Azerbaïdjan!$G$20))","v":4},0,11]
[null,null,null,null,null,null,0,null,null,null,null,null,null,"OCON Sebastian",{"$f":"IF(Australie!$D$21=\"\",0,SUM(Bahrein:Azerbaïdjan!$G$21))","v":4},0,11]
["ALBON Alexander","WILLIAMS",null,null,null,null,0,null,null,null,null,null,null,"PIASTRI Oscar",{"$f":"IF(Australie!$D$30=\"\",0,SUM(Bahrein:Azerbaïdjan!$G$30))","v":4},0,11]
["SARGEANT Logan",null,null,null,null,null,0,null,null,null,null,null,null,"GUANYU Zhou",{"$f":"IF(Australie!$D$33=\"\",0,SUM(Bahrein:Azerbaïdjan!$G$33))","v":2},2,15]
[null,null,null,null,null,null,0,null,null,null,null,null,null,"TSUNODA Yoki",{"$f":"IF(Australie!$D$23=\"\",0,SUM(Bahrein:Azerbaïdjan!$G$23))","v":1},1,16]
["GASLY Pierre","ALPINE F1 TEAM",null,null,null,null,0,null,null,null,null,null,null,"ALBON Alexander",{"$f":"IF(Australie!$D$17=\"\",0,SUM(Bahrein:Azerbaïdjan!$G$17))","v":1},0,16]
["OCON Sebastian",null,null,null,null,null,0,null,null,null,null,null,null,"MAGNUSSEN Kevin",{"$f":"IF(Australie!$D$26=\"\",0,SUM(Bahrein:Azerbaïdjan!$G$26))","v":1},0,16]
[null,null,null,null,null,null,0,null,null,null,null,null,null,"DEVRIES Nyck",{"$f":"IF(Australie!$D$24=\"\",0,SUM(Bahrein:Azerbaïdjan!$G$24))","v":0},1,19]
["TSUNODA Yoki","ALPHA TAURI",null,null,null,null,0,null,null,null,null,null,null,"SARGEANT Logan",{"$f":"IF(Australie!$D$18=\"\",0,SUM(Bahrein:Azerbaïdjan!$G$18))","v":0},0,19]
["DEVRIES Nyck",null,null,null,null,null,0]
[null,null,null,null,null,null,0]
["MAGNUSSEN KEVIN","HAAS",null,null,null,null,0]
["HULKENBERG Nico",null,null,null,null,null,0]
[null,null,null,null,null,null,0]
["NORRIS Lando","Mc LAREN",null,null,null,null,0]
["PIASTRI Oscar",null,null,null,null,null,0]
[null,null,null,null,null,null,0]
["BOTTAS Valtteri","ALFA ROMÉO",null,null,null,null,0]
["GUANYU Zhou",null,null,null,null,null,0]
[null,null,null,null,null,null,0]

{"sheet":"Miami","index":8,"n_rows":34,"n_cols":17,"rows_kept":34,"cut":false,"hidden":false,"merged":[[2,0,3,0],[0,0,1,16],[13,1,15,1],[13,2,15,2],[16,1,18,1],[16,2,18,2],[2,1,3,1],[2,2,3,2],[2,3,3,3],[2,5,3,5],[2,6,3,6],[2,4,3,4],[4,1,6,1],[4,2,6,2],[7,1,9,1],[7,2,9,2],[10,1,12,1],[10,2,12,2],[19,1,21,1],[19,2,21,2],[36,1,36,3],[31,1,33,1],[31,2,33,2],[22,1,24,1],[22,2,24,2],[25,1,27,1],[25,2,27,2],[28,1,30,1],[28,2,30,2]]}
["MIAMI - 7 MAI 2023"]
[]
["PILOTES","ECURIES","VOITURES","Finish","Pôle","Pt tour","Points",null,"ÉCURIES","Points","Écart","Rang",null,"Noms","Points","Écart","Rang"]
[null,null,null,null,null,null,null,null,"MERCEDES",{"$f":"SUM($G$5:$G$7)","v":0},null,{"$f":"IF(J4=\"\",0,(RANK(J4,$J$4:$J$13)))","v":1},null,"HAMILTON Lewis",{"$f":"IF(Azerbaïdjan!$D$5=\"\",0,SUM(Bahrein:Azerbaïdjan!G$5))","v":0},null,{"$f":"IF(O4=\"\",0,(RANK(O4,$O$4:$O$23)))","v":1}]
["HAMILTON Lewis","MERCEDES",null,null,null,null,{"$f":"IFERROR(CHOOSE(D5,25,18,15,12,10,8,6,4,2,1)+(F5=1),0)","v":0},null,"HAAS",{"$f":"SUM($G$26:$G$28)","v":0},{"$f":"J5-J4","v":0},{"$f":"IF(J5=\"\",0,(RANK(J5,$J$4:$J$13)))+COUNTIF(J$4:J5,J5)-1","v":2},null,"PEREZ Sergio",{"$f":"IF(Azerbaïdjan!$D$12=\"\",0,SUM(Bahrein:Azerbaïdjan!G$12))","v":0},{"$f":"O4-O5","v":0},{"$f":"IF(O5=\"\",0,(RANK(O5,$O$4:$O$23)))","v":1}]
["RUSSELL George",null,null,null,null,null,{"$f":"IFERROR(CHOOSE(D6,25,18,15,12,10,8,6,4,2,1)+(F6=1),0)","v":0},null,"ALPINE F1 TEAM",{"$f":"SUM($G$20:$G$22)","v":0},0,{"$f":"IF(J6=\"\",0,(RANK(J6,$J$4:$J$13)))+COUNTIF(J$4:J6,J6)-1","v":3},null,"VERSTAPPEN Max",{"$f":"IF(Azerbaïdjan!$D$11=\"\",0,SUM(Bahrein:Azerbaïdjan!G$11))","v":0},{"$f":"O5-O6","v":0},1]
[null,null,null,null,null,null,0,null,"ALPHA TAURI",{"$f":"SUM($G$23:$G$25)","v":0},0,{"$f":"SUMIF(Azerbaïdjan!$I$4:$I$13,Miami!$I7,Azerbaïdjan!$L$4:$L$13)+$J$4","v":7},null,"ALONSO Fernando",{"$f":"IF(Azerbaïdjan!$D$14=\"\",0,SUM(Bahrein:Azerbaïdjan!G$14))","v":0},0,1]
["SAINZ.Jr Carlos","FERRARI",null,null,null,null,0,null,"Mc LAREN",{"$f":"SUM($G$29:$G$31)","v":0},0,{"$f":"SUMIF(Azerbaïdjan!$I$4:$I$13,Miami!$I8,Azerbaïdjan!$L$4:$L$13)+$J$4","v":2},null,"SAINZ.Jr Carlos",{"$f":"IF(Azerbaïdjan!$D$8=\"\",0,SUM(Bahrein:Azerbaïdjan!G$8))","v":0},0,1]
["LECLERC Charles",null,null,null,null,null,0,null,"FERRARI",{"$f":"SUM($G$8:$G$10)","v":0},0,{"$f":"SUMIF(Azerbaïdjan!$I$4:$I$13,Miami!$I9,Azerbaïdjan!$L$4:$L$13)+$J$4","v":3},null,"STROLL Lance",{"$f":"IF(Azerbaïdjan!$D$15=\"\",0,SUM(Bahrein:Azerbaïdjan!G$15))","v":0},0,1]
[null,null,null,null,null,null,0,null,"WILLIAMS",{"$f":"SUM($G$17:$G$19)","v":0},0,{"$f":"SUMIF(Azerbaïdjan!$I$4:$I$13,Miami!$I10,Azerbaïdjan!$L$4:$L$13)+$J$4","v":9},null,"RUSSEL George",{"$f":"IF(Azerbaïdjan!$D$6=\"\",0,SUM(Bahrein:Azerbaïdjan!G$6))","v":0},0,1]
["VERSTAPPEN Max","RED BULL RACING",null,null,null,null,0,null,"ALFA ROMÉO",{"$f":"SUM($G$32:$G$34)","v":0},0,{"$f":"SUMIF(Azerbaïdjan!$I$4:$I$13,Miami!$I11,Azerbaïdjan!$L$4:$L$13)+$J$4","v":6},null,"NORRIS Lando",{"$f":"IF(Azerbaïdjan!$D$29=\"\",0,SUM(Bahrein:Azerbaïdjan!G$29))","v":0},0,1]
["PEREZ Sergio",null,null,null,null,null,0,null,"RED BULL RACING",{"$f":"SUM($G$11:$G$13)","v":0},0,{"$f":"SUMIF(Azerbaïdjan!$I$4:$I$13,Miami!$I12,Azerbaïdjan!$L$4:$L$13)+$J$4","v":1},null,"LECLERC Charles",{"$f":"IF(Azerbaïdjan!$D$9=\"\",0,SUM(Bahrein:Azerbaïdjan!G$9))","v":0},0,1]
[null,null,null,null,null,null,0,null,"ASTON MARTIN",{"$f":"SUM($G$14:$G$16)","v":0},0,{"$f":"IF(J13=\"\",0,(RANK(J13,$J$4:$J$13)))+COUNTIF(J$4:J13,J13)-1","v":10},null,"HULKENBERG Nico",{"$f":"IF(Azerbaïdjan!$D$27=\"\",0,SUM(Bahrein:Azerbaïdjan!G$27))","v":0},0,1]
["ALONSO Fernando","ASTON MARTIN",null,null,null,null,0,null,null,null,null,null,null,"BOTTAS Valtteri",{"$f":"IF(Azerbaïdjan!$D$32=\"\",0,SUM(Bahrein:Azerbaïdjan!G$32))","v":0},0,1]
["STROLL Lance",null,null,null,null,null,0,null,null,null,null,null,null,"GASLY Pierre",{"$f":"IF(Azerbaïdjan!$D$20=\"\",0,SUM(Bahrein:Azerbaïdjan!G$10))","v":0},0,1]
[null,null,null,null,null,null,0,null,null,null,null,null,null,"OCON Sebastian",{"$f":"IF(Azerbaïdjan!$D$21=\"\",0,SUM(Bahrein:Azerbaïdjan!G$11))","v":0},0,1]
["ALBON Alexander","WILLIAMS",null,null,null,null,0,null,null,null,null,null,null,"PIASTRI Oscar",{"$f":"IF(Azerbaïdjan!$D$30=\"\",0,SUM(Bahrein:Azerbaïdjan!G$30))","v":0},0,1]
["SARGEANT Logan",null,null,null,null,null,0,null,null,null,null,null,null,"GUANYU Zhou",{"$f":"IF(Azerbaïdjan!$D$32=\"\",0,SUM(Bahrein:Azerbaïdjan!G$32))","v":0},0,1]
[null,null,null,null,null,null,0,null,null,null,null,null,null,"ALBON Alexander",{"$f":"IF(Azerbaïdjan!$D$17=\"\",0,SUM(Bahrein:Azerbaïdjan!G$17))","v":0},0,1]
["GASLY Pierre","ALPINE F1 TEAM",null,null,null,null,{"$f":"IFERROR(CHOOSE(D20,25,18,15,12,10,8,6,4,2,1)+(F20=1),\"\")","v":""},null,null,null,null,null,null,"MAGNUSSEN Kevin",{"$f":"IF(Azerbaïdjan!$D$26=\"\",0,SUM(Bahrein:Azerbaïdjan!G$26))","v":0},0,1]
["OCON Sebastian",null,null,null,null,null,{"$f":"IFERROR(CHOOSE(D21,25,18,15,12,10,8,6,4,2,1)+(F21=1),\"\")","v":""},null,null,null,null,null,null,"TSUNODA Yoki",{"$f":"IF(Azerbaïdjan!$D$23=\"\",0,SUM(Bahrein:Azerbaïdjan!G$23))","v":0},0,1]
[null,null,null,null,null,null,{"$f":"IFERROR(CHOOSE(D22,25,18,15,12,10,8,6,4,2,1)+(F22=1),\"\")","v":""},null,null,null,null,null,null,"DEVRIES Nyck",{"$f":"IF(Azerbaïdjan!$D$24=\"\",0,SUM(Bahrein:Azerbaïdjan!G$24))","v":0},0,1]
["TSUNODA Yoki","ALPHA TAURI",null,null,null,null,0,null,null,null,null,null,null,"SARGEANT Logan",{"$f":"IF(Azerbaïdjan!$D$18=\"\",0,SUM(Bahrein:Azerbaïdjan!G$18))","v":0},0,1]
["DEVRIES Nyck",null,null,null,null,null,0]
[null,null,null,null,null,null,0]
["MAGNUSSEN Kevin","HAAS",null,null,null,null,0]
["HULKENBERG Nico",null,null,null,null,null,0]
[null,null,null,null,null,null,0]
["NORRIS Lando","Mc LAREN",null,null,null,null,0]
["PIASTRI Oscar",null,null,null,null,null,0]
[null,null,null,null,null,null,0]
["BOTTAS Valtteri","ALFA ROMÉO",null,null,null,null,0]
["GUANYU Zhou",null,null,null,null,null,0]
[null,null,null,null,null,null,0]

{"sheet":"ItalieIm","index":9,"n_rows":34,"n_cols":17,"rows_kept":34,"cut":false,"hidden":false,"merged":[[0,0,1,16],[36,1,36,3],[2,0,3,0],[2,1,3,1],[2,2,3,2],[2,3,3,3],[2,4,3,4],[2,5,3,5],[2,6,3,6],[4,1,6,1],[4,2,6,2],[7,1,9,1],[7,2,9,2],[10,1,12,1],[10,2,12,2],[19,1,21,1],[19,2,21,2],[31,1,33,1],[31,2,33,2],[22,1,24,1],[22,2,24,2],[25,1,27,1],[25,2,27,2],[28,1,30,1],[28,2,30,2],[2,7,3,7],[13,1,15,1],[13,2,15,2],[16,1,18,1],[16,2,18,2]]}
["IMOLA - 21 MAI 2023"]
[]
["PILOTES","ECURIES","VOITURES","Finish","Pôle","Pt tour","Points",null,"ÉCURIES","Points","Écart","Rang",null,"Noms","Points","Écart","Rang"]
[null,null,null,null,null,null,null,null,"WILLIAMS",{"$f":"SUM($G$17:$G$19)","v":0},null,{"$f":"IF(J4=\"\",0,(RANK(J4,$J$4:$J$13)))","v":1},null,"VERSTAPPEN Max",{"$f":"IF(Miami!$D$12=\"\",0,SUM(Bahrein:ItalieIm!$G$11))","v":0},null,{"$f":"IF(O4=\"\",0,(RANK(O4,$O$4:$O$23)))","v":1}]
["HAMILTON Lewis","MERCEDES",null,null,null,null,{"$f":"IFERROR(CHOOSE(D5,25,18,15,12,10,8,6,4,2,1)+(F5=1),0)+IFERROR(CHOOSE(H5,8,7,6,5,4,3,2,1),0)","v":0},null,"ALFA ROMÉO",{"$f":"SUM($G$32:$G$34)","v":0},{"$f":"J5-J4","v":0},{"$f":"IF(J5=\"\",0,(RANK(J5,$J$4:$J$13)))+COUNTIF(J$4:J5,J5)-1","v":2},null,"PEREZ Sergio",{"$f":"IF(Miami!$D$12=\"\",0,SUM(Bahrein:ItalieIm!$G$11))","v":0},{"$f":"O4-O5","v":0},{"$f":"IF(O5=\"\",0,(RANK(O5,$O$4:$O$23)))","v":1}]
["RUSSELL George",null,null,null,null,null,{"$f":"IFERROR(CHOOSE(D6,25,18,15,12,10,8,6,4,2,1)+(F6=1),0)+IFERROR(CHOOSE(H6,8,7,6,5,4,3,2,1),0)","v":0},null,"ALPHA TAURI",{"$f":"SUM($G$23:$G$25)","v":0},0,{"$f":"IF(J6=\"\",0,(RANK(J6,$J$4:$J$13)))+COUNTIF(J$4:J6,J6)-1","v":3},null,"ALONSO Fernando",{"$f":"IF(Miami!$D$12=\"\",0,SUM(Bahrein:ItalieIm!$G$11))","v":0},{"$f":"O5-O6","v":0},1]
[null,null,null,null,null,null,0,null,"RED BULL RACING",{"$f":"SUM($G$11:$G$13)","v":0},0,{"$f":"SUMIF(Miami!$I$4:$I$13,ItalieIm!$I7,Miami!$L$4:$L$13)+$J$4","v":1},null,"HAMILTON Lewis",{"$f":"IF(Miami!$D$12=\"\",0,SUM(Bahrein:ItalieIm!$G$11))","v":0},0,1]
["SAINZ.Jr Carlos","FERRARI",null,null,null,null,0,null,"HAAS",{"$f":"SUM($G$26:$G$28)","v":0},0,{"$f":"SUMIF(Miami!$I$4:$I$13,ItalieIm!$I8,Miami!$L$4:$L$13)+$J$4","v":2},null,"SAINZ.Jr Carlos",{"$f":"IF(Miami!$D$12=\"\",0,SUM(Bahrein:ItalieIm!$G$11))","v":0},0,1]
["LECLERC Charles",null,null,null,null,null,0,null,"Mc LAREN",{"$f":"SUM($G$29:$G$31)","v":0},0,{"$f":"SUMIF(Miami!$I$4:$I$13,ItalieIm!$I9,Miami!$L$4:$L$13)+$J$4","v":2},null,"STROLL Lance",{"$f":"IF(Miami!$D$12=\"\",0,SUM(Bahrein:ItalieIm!$G$11))","v":0},0,1]
[null,null,null,null,null,null,0,null,"ASTON MARTIN",{"$f":"SUM($G$14:$G$16)","v":0},0,{"$f":"SUMIF(Miami!$I$4:$I$13,ItalieIm!$I10,Miami!$L$4:$L$13)+$J$4","v":10},null,"RUSSEL George",{"$f":"IF(Miami!$D$12=\"\",0,SUM(Bahrein:ItalieIm!$G$11))","v":0},0,1]
["VERSTAPPEN Max","RED BULL RACING",null,null,null,null,0,null,"FERRARI",{"$f":"SUM($G$8:$G$10)","v":0},0,{"$f":"SUMIF(Miami!$I$4:$I$13,ItalieIm!$I11,Miami!$L$4:$L$13)+$J$4","v":3},null,"NORRIS Lando",{"$f":"IF(Miami!$D$12=\"\",0,SUM(Bahrein:ItalieIm!$G$11))","v":0},0,1]
["PEREZ Sergio",null,null,null,null,null,0,null,"MERCEDES",{"$f":"SUM($G$5:$G$7)","v":0},0,{"$f":"SUMIF(Miami!$I$4:$I$13,ItalieIm!$I12,Miami!$L$4:$L$13)+$J$4","v":1},null,"LECLERC Charles",{"$f":"IF(Miami!$D$12=\"\",0,SUM(Bahrein:ItalieIm!$G$11))","v":0},0,1]
[null,null,null,null,null,null,0,null,"ALPINE F1 TEAM",{"$f":"SUM($G$20:$G$22)","v":0},0,{"$f":"IF(J13=\"\",0,(RANK(J13,$J$4:$J$13)))+COUNTIF(J$4:J13,J13)-1","v":10},null,"HULKENBERG Nico",{"$f":"IF(Miami!$D$12=\"\",0,SUM(Bahrein:ItalieIm!$G$11))","v":0},0,1]
["ALONSO Fernando","ASTON MARTIN",null,null,null,null,0,null,null,null,null,null,null,"BOTTAS Valtteri",{"$f":"IF(Miami!$D$12=\"\",0,SUM(Bahrein:ItalieIm!$G$11))","v":0},0,1]
["STROLL Lance",null,null,null,null,null,0,null,null,null,null,null,null,"GASLY Pierre",{"$f":"IF(Miami!$D$12=\"\",0,SUM(Bahrein:ItalieIm!$G$11))","v":0},0,1]
[null,null,null,null,null,null,0,null,null,null,null,null,null,"OCON Sebastian",{"$f":"IF(Miami!$D$12=\"\",0,SUM(Bahrein:ItalieIm!$G$11))","v":0},0,1]
["ALBON Alexander","WILLIAMS",null,null,null,null,0,null,null,null,null,null,null,"PIASTRI Oscar",{"$f":"IF(Miami!$D$12=\"\",0,SUM(Bahrein:ItalieIm!$G$11))","v":0},0,1]
["SARGEANT Logan",null,null,null,null,null,0,null,null,null,null,null,null,"GUANYU Zhou",{"$f":"IF(Miami!$D$12=\"\",0,SUM(Bahrein:ItalieIm!$G$11))","v":0},0,1]
[null,null,null,null,null,null,0,null,null,null,null,null,null,"ALBON Alexander",{"$f":"IF(Miami!$D$12=\"\",0,SUM(Bahrein:ItalieIm!$G$11))","v":0},0,1]
["GASLY Pierre","ALPINE F1 TEAM",null,null,null,null,0,null,null,null,null,null,null,"MAGNUSSEN Kevin",{"$f":"IF(Miami!$D$12=\"\",0,SUM(Bahrein:ItalieIm!$G$11))","v":0},0,1]
["OCON Sebastian",null,null,null,null,null,0,null,null,null,null,null,null,"TSUNODA Yoki",{"$f":"IF(Miami!$D$12=\"\",0,SUM(Bahrein:ItalieIm!$G$11))","v":0},0,1]
[null,null,null,null,null,null,0,null,null,null,null,null,null,"DEVRIES Nyck",{"$f":"IF(Miami!$D$12=\"\",0,SUM(Bahrein:ItalieIm!$G$11))","v":0},0,1]
["TSUNODA Yoki","ALPHA TAURI",null,null,null,null,0,null,null,null,null,null,null,"SARGEANT Logan",{"$f":"IF(Miami!$D$12=\"\",0,SUM(Bahrein:ItalieIm!$G$11))","v":0},0,1]
["DEVRIES Nyck",null,null,null,null,null,0]
[null,null,null,null,null,null,0]
["MAGNUSSEN Kevin","HAAS",null,null,null,null,0]
["HULKENBERG Nico",null,null,null,null,null,0]
[null,null,null,null,null,null,0]
["NORRIS Lando","Mc LAREN",null,null,null,null,{"$f":"IFERROR(CHOOSE(D29,25,18,15,12,10,8,6,4,2,1)+(F29=1),0)+IFERROR(CHOOSE(H29,8,7,6,5,4,3,2,1),0)","v":0}]
["PIASTRI Oscar",null,null,null,null,null,0]
[null,null,null,null,null,null,0]
["BOTTAS Valtteri","ALFA ROMÉO",null,null,null,null,0]
["GUANYU Zhou",null,null,null,null,null,0]
[null,null,null,null,null,null,0]

{"sheet":"Monaco","index":10,"n_rows":34,"n_cols":17,"rows_kept":34,"cut":false,"hidden":false,"merged":[[2,0,3,0],[0,0,1,16],[13,1,15,1],[13,2,15,2],[16,1,18,1],[16,2,18,2],[2,1,3,1],[2,2,3,2],[2,3,3,3],[2,5,3,5],[2,6,3,6],[2,4,3,4],[4,1,6,1],[4,2,6,2],[7,1,9,1],[7,2,9,2],[10,1,12,1],[10,2,12,2],[19,1,21,1],[19,2,21,2],[36,1,36,3],[31,1,33,1],[31,2,33,2],[22,1,24,1],[22,2,24,2],[25,1,27,1],[25,2,27,2],[28,1,30,1],[28,2,30,2]]}
["MONACO - 28 MAI 2023"]
[]
["PILOTES","ECURIES","VOITURES","Finish","Pôle","Pt tour","Points",null,"ÉCURIES","Points","Écart","Rang",null,"Noms","Points","Écart","Rang"]
[null,null,null,null,null,null,null,null,"MERCEDES",{"$f":"SUM($G$5:$G$7)","v":0},null,{"$f":"IF(J4=\"\",0,(RANK(J4,$J$4:$J$13)))","v":1},null,"VERSTAPPEN Max",{"$f":"IF(ItalieIm!$D$11=\"\",0,SUM(Bahrein:Monaco!$G$11))","v":0},null,{"$f":"IF(O4=\"\",0,(RANK(O4,$O$4:$O$23)))","v":1}]
["HAMILTON Lewis","MERCEDES",null,null,null,null,{"$f":"IFERROR(CHOOSE(D5,25,18,15,12,10,8,6,4,2,1)+(F5=1),0)","v":0},null,"Mc LAREN",{"$f":"SUM($G$29:$G$31)","v":0},{"$f":"J5-J4","v":0},{"$f":"IF(J5=\"\",0,(RANK(J5,$J$4:$J$13)))+COUNTIF(J$4:J5,J5)-1","v":2},null,"PEREZ Sergio",{"$f":"IF(SUM($G$5:$G$34)=0,0,SUM(Bahrein:Monaco!$G$11))","v":0},{"$f":"O4-O5","v":0},{"$f":"IF(O5=\"\",0,(RANK(O5,$O$4:$O$23)))","v":1}]
["RUSSELL George",null,null,null,null,null,{"$f":"IFERROR(CHOOSE(D6,25,18,15,12,10,8,6,4,2,1)+(F6=1),0)","v":0},null,"FERRARI",{"$f":"SUM($G$8:$G$10)","v":0},0,{"$f":"IF(J6=\"\",0,(RANK(J6,$J$4:$J$13)))+COUNTIF(J$4:J6,J6)-1","v":3},null,"SAINZ.Jr Carlos",{"$f":"IF(SUM($G$5:$G$34)=0,0,SUM(Bahrein:Monaco!$G$11))","v":0},{"$f":"O5-O6","v":0},1]
[null,null,null,null,null,null,0,null,"WILLIAMS",{"$f":"SUM($G$17:$G$19)","v":0},0,{"$f":"SUMIF(ItalieIm!$I$4:$I$13,Monaco!$I7,ItalieIm!$L$4:$L$13)+$J$4","v":1},null,"ALONSO Fernando",{"$f":"IF(SUM($G$5:$G$34)=0,0,SUM(Bahrein:Monaco!$G$11))","v":0},0,1]
["SAINZ.Jr Carlos","FERRARI",null,null,null,null,0,null,"ALFA ROMÉO",{"$f":"SUM($G$32:$G$34)","v":0},0,{"$f":"SUMIF(ItalieIm!$I$4:$I$13,Monaco!$I8,ItalieIm!$L$4:$L$13)+$J$4","v":2},null,"HAMILTON Lewis",{"$f":"IF(SUM($G$5:$G$34)=0,0,SUM(Bahrein:Monaco!$G$11))","v":0},0,1]
["LECLERC Charles",null,null,null,null,null,0,null,"RED BULL RACING",{"$f":"SUM($G$11:$G$13)","v":0},0,{"$f":"SUMIF(ItalieIm!$I$4:$I$13,Monaco!$I9,ItalieIm!$L$4:$L$13)+$J$4","v":1},null,"STROLL Lance",{"$f":"IF(SUM($G$5:$G$34)=0,0,SUM(Bahrein:Monaco!$G$11))","v":0},0,1]
[null,null,null,null,null,null,0,null,"ASTON MARTIN",{"$f":"SUM($G$14:$G$16)","v":0},0,{"$f":"SUMIF(ItalieIm!$I$4:$I$13,Monaco!$I10,ItalieIm!$L$4:$L$13)+$J$4","v":10},null,"RUSSEL George",{"$f":"IF(SUM($G$5:$G$34)=0,0,SUM(Bahrein:Monaco!$G$11))","v":0},0,1]
["VERSTAPPEN Max","RED BULL RACING",null,null,null,null,0,null,"ALPINE F1 TEAM",{"$f":"SUM($G$20:$G$22)","v":0},0,{"$f":"SUMIF(ItalieIm!$I$4:$I$13,Monaco!$I11,ItalieIm!$L$4:$L$13)+$J$4","v":10},null,"NORRIS Lando",{"$f":"IF(SUM($G$5:$G$34)=0,0,SUM(Bahrein:Monaco!$G$11))","v":0},0,1]
["PEREZ Sergio",null,null,null,null,null,0,null,"ALPHA TAURI",{"$f":"SUM($G$23:$G$25)","v":0},0,{"$f":"SUMIF(ItalieIm!$I$4:$I$13,Monaco!$I12,ItalieIm!$L$4:$L$13)+$J$4","v":3},null,"LECLERC Charles",{"$f":"IF(SUM($G$5:$G$34)=0,0,SUM(Bahrein:Monaco!$G$11))","v":0},0,1]
[null,null,null,null,null,null,0,null,"HAAS",{"$f":"SUM($G$26:$G$28)","v":0},0,{"$f":"IF(J13=\"\",0,(RANK(J13,$J$4:$J$13)))+COUNTIF(J$4:J13,J13)-1","v":10},null,"HULKENBERG Nico",{"$f":"IF(SUM($G$5:$G$34)=0,0,SUM(Bahrein:Monaco!$G$11))","v":0},0,1]
["ALONSO Fernando","ASTON MARTIN",null,null,null,null,0,null,null,null,null,null,null,"BOTTAS Valtteri",{"$f":"IF(SUM($G$5:$G$34)=0,0,SUM(Bahrein:Monaco!$G$11))","v":0},0,1]
["STROLL Lance",null,null,null,null,null,0,null,null,null,null,null,null,"GASLY Pierre",{"$f":"IF(SUM($G$5:$G$34)=0,0,SUM(Bahrein:Monaco!$G$11))","v":0},0,1]
[null,null,null,null,null,null,0,null,null,null,null,null,null,"OCON Sebastian",{"$f":"IF(SUM($G$5:$G$34)=0,0,SUM(Bahrein:Monaco!$G$11))","v":0},0,1]
["ALBON Alexander","WILLIAMS",null,null,null,null,0,null,null,null,null,null,null,"PIASTRI Oscar",{"$f":"IF(SUM($G$5:$G$34)=0,0,SUM(Bahrein:Monaco!$G$11))","v":0},0,1]
["SARGEANT Logan",null,null,null,null,null,0,null,null,null,null,null,null,"GUANYU Zhou",{"$f":"IF(SUM($G$5:$G$34)=0,0,SUM(Bahrein:Monaco!$G$11))","v":0},0,1]
[null,null,null,null,null,null,0,null,null,null,null,null,null,"ALBON Alexander",{"$f":"IF(SUM($G$5:$G$34)=0,0,SUM(Bahrein:Monaco!$G$11))","v":0},0,1]
["GASLY Pierre","ALPINE F1 TEAM",null,null,null,null,0,null,null,null,null,null,null,"MAGNUSSEN Kevin",{"$f":"IF(SUM($G$5:$G$34)=0,0,SUM(Bahrein:Monaco!$G$11))","v":0},0,1]
["OCON Sebastian",null,null,null,null,null,0,null,null,null,null,null,null,"TSUNODA Yoki",{"$f":"IF(SUM($G$5:$G$34)=0,0,SUM(Bahrein:Monaco!$G$11))","v":0},0,1]
[null,null,null,null,null,null,0,null,null,null,null,null,null,"DEVRIES Nyck",{"$f":"IF(SUM($G$5:$G$34)=0,0,SUM(Bahrein:Monaco!$G$11))","v":0},0,1]
["TSUNODA Yoki","ALPHA TAURI",null,null,null,null,0,null,null,null,null,null,null,"SARGEANT Logan",{"$f":"IF(SUM($G$5:$G$34)=0,0,SUM(Bahrein:Monaco!$G$11))","v":0},0,1]
["DEVRIES Nyck",null,null,null,null,null,0]
[null,null,null,null,null,null,0]
["MAGNUSSEN Kevin","HAAS",null,null,null,null,0]
["HULKENBERG Nico",null,null,null,null,null,0]
[null,null,null,null,null,null,0]
["NORRIS Lando","Mc LAREN",null,null,null,null,0]
["PIASTRI Oscar",null,null,null,null,null,0]
[null,null,null,null,null,null,0]
["BOTTAS Valtteri","ALFA ROMÉO",null,null,null,null,0]
["GUANYU Zhou",null,null,null,null,null,0]
[null,null,null,null,null,null,0]

{"sheet":"Espagne","index":11,"n_rows":34,"n_cols":17,"rows_kept":34,"cut":false,"hidden":false,"merged":[[10,1,12,1],[10,2,12,2],[2,0,3,0],[0,0,1,16],[4,2,6,2],[7,1,9,1],[7,2,9,2],[2,1,3,1],[2,2,3,2],[2,3,3,3],[2,5,3,5],[2,6,3,6],[2,4,3,4],[4,1,6,1],[36,1,36,3],[13,1,15,1],[13,2,15,2],[16,1,18,1],[16,2,18,2],[19,1,21,1],[19,2,21,2],[31,1,33,1],[31,2,33,2],[22,1,24,1],[22,2,24,2],[25,1,27,1],[25,2,27,2],[28,1,30,1],[28,2,30,2]]}
["BARCELONE - 4 JUIN 2023"]
[]
["PILOTES","ECURIES","VOITURES","Finish","Pôle","Pt tour","Points",null,"ÉCURIES","Points","Écart","Rang",null,"Noms","Points","Écart","Rang"]
[null,null,null,null,null,null,null,null,"MERCEDES",{"$f":"SUM($G$5:$G$7)","v":0},null,{"$f":"IF(J4=\"\",0,(RANK(J4,$J$4:$J$13)))","v":1},null,"VERSTAPPEN Max",{"$f":"IF(Monaco!$D$11=\"\",0,SUM(Bahrein:Espagne!$G$11))","v":0},null,{"$f":"IF(O4=\"\",0,(RANK(O4,$O$4:$O$23)))","v":1}]
["HAMILTON Lewis","MERCEDES",null,null,null,null,{"$f":"IFERROR(CHOOSE(D5,25,18,15,12,10,8,6,4,2,1)+(F5=1),0)","v":0},null,"Mc LAREN",{"$f":"SUM($G$29:$G$31)","v":0},{"$f":"J5-J4","v":0},{"$f":"IF(J5=\"\",0,(RANK(J5,$J$4:$J$13)))+COUNTIF(J$4:J5,J5)-1","v":2},null,"PEREZ Sergio",{"$f":"IF(Monaco!$D$11=\"\",0,SUM(Bahrein:Espagne!$G$11))","v":0},{"$f":"O4-O5","v":0},{"$f":"IF(O5=\"\",0,(RANK(O5,$O$4:$O$23)))","v":1}]
["RUSSELL George",null,null,null,null,null,{"$f":"IFERROR(CHOOSE(D6,25,18,15,12,10,8,6,4,2,1)+(F6=1),0)","v":0},null,"FERRARI",{"$f":"SUM($G$8:$G$10)","v":0},0,{"$f":"IF(J6=\"\",0,(RANK(J6,$J$4:$J$13)))+COUNTIF(J$4:J6,J6)-1","v":3},null,"ALONSO Fernando",{"$f":"IF(Monaco!$D$11=\"\",0,SUM(Bahrein:Espagne!$G$11))","v":0},{"$f":"O5-O6","v":0},1]
[null,null,null,null,null,null,0,null,"WILLIAMS",{"$f":"SUM($G$17:$G$19)","v":0},0,{"$f":"SUMIF(Monaco!$I$4:$I$13,Espagne!$I7,Monaco!$L$4:$L$13)+$J7","v":1},null,"HAMILTON Lewis",{"$f":"IF(Monaco!$D$11=\"\",0,SUM(Bahrein:Espagne!$G$11))","v":0},0,1]
["SAINZ.Jr Carlos","FERRARI",null,null,null,null,0,null,"ALFA ROMÉO",{"$f":"SUM($G$32:$G$34)","v":0},0,{"$f":"SUMIF(Monaco!$I$4:$I$13,Espagne!$I8,Monaco!$L$4:$L$13)+$J8","v":2},null,"SAINZ.Jr Carlos",{"$f":"IF(Monaco!$D$11=\"\",0,SUM(Bahrein:Espagne!$G$11))","v":0},0,1]
["LECLERC Charles",null,null,null,null,null,0,null,"RED BULL RACING",{"$f":"SUM($G$11:$G$13)","v":0},0,{"$f":"SUMIF(Monaco!$I$4:$I$13,Espagne!$I9,Monaco!$L$4:$L$13)+$J9","v":1},null,"STROLL Lance",{"$f":"IF(Monaco!$D$11=\"\",0,SUM(Bahrein:Espagne!$G$11))","v":0},0,1]
[null,null,null,null,null,null,0,null,"ASTON MARTIN",{"$f":"SUM($G$14:$G$16)","v":0},0,{"$f":"SUMIF(Monaco!$I$4:$I$13,Espagne!$I10,Monaco!$L$4:$L$13)+$J10","v":10},null,"RUSSEL George",{"$f":"IF(Monaco!$D$11=\"\",0,SUM(Bahrein:Espagne!$G$11))","v":0},0,1]
["VERSTAPPEN Max","RED BULL RACING",null,null,null,null,0,null,"ALPINE F1 TEAM",{"$f":"SUM($G$20:$G$22)","v":0},0,{"$f":"SUMIF(Monaco!$I$4:$I$13,Espagne!$I11,Monaco!$L$4:$L$13)+$J11","v":10},null,"NORRIS Lando",{"$f":"IF(Monaco!$D$11=\"\",0,SUM(Bahrein:Espagne!$G$11))","v":0},0,1]
["PEREZ Sergio",null,null,null,null,null,0,null,"ALPHA TAURI",{"$f":"SUM($G$23:$G$25)","v":0},0,{"$f":"SUMIF(Monaco!$I$4:$I$13,Espagne!$I12,Monaco!$L$4:$L$13)+$J12","v":3},null,"LECLERC Charles",{"$f":"IF(Monaco!$D$11=\"\",0,SUM(Bahrein:Espagne!$G$11))","v":0},0,1]
[null,null,null,null,null,null,0,null,"HAAS",{"$f":"SUM($G$26:$G$28)","v":0},0,{"$f":"IF(J13=\"\",0,(RANK(J13,$J$4:$J$13)))+COUNTIF(J$4:J13,J13)-1","v":10},null,"HULKENBERG Nico",{"$f":"IF(Monaco!$D$11=\"\",0,SUM(Bahrein:Espagne!$G$11))","v":0},0,1]
["ALONSO Fernando","ASTON MARTIN",null,null,null,null,0,null,null,null,null,null,null,"BOTTAS Valtteri",{"$f":"IF(Monaco!$D$11=\"\",0,SUM(Bahrein:Espagne!$G$11))","v":0},0,1]
["STROLL Lance",null,null,null,null,null,0,null,null,null,null,null,null,"GASLY Pierre",{"$f":"IF(Monaco!$D$11=\"\",0,SUM(Bahrein:Espagne!$G$11))","v":0},0,1]
[null,null,null,null,null,null,0,null,null,null,null,null,null,"OCON Sebastian",{"$f":"IF(Monaco!$D$11=\"\",0,SUM(Bahrein:Espagne!$G$11))","v":0},0,1]
["ALBON Alexander","WILLIAMS",null,null,null,null,0,null,null,null,null,null,null,"PIASTRI Oscar",{"$f":"IF(Monaco!$D$11=\"\",0,SUM(Bahrein:Espagne!$G$11))","v":0},0,1]
["SARGEANT Logan",null,null,null,null,null,0,null,null,null,null,null,null,"GUANYU Zhou",{"$f":"IF(Monaco!$D$11=\"\",0,SUM(Bahrein:Espagne!$G$11))","v":0},0,1]
[null,null,null,null,null,null,0,null,null,null,null,null,null,"ALBON Alexander",{"$f":"IF(Monaco!$D$11=\"\",0,SUM(Bahrein:Espagne!$G$11))","v":0},0,1]
["GASLY Pierre","ALPINE F1 TEAM",null,null,null,null,0,null,null,null,null,null,null,"MAGNUSSUN Kevin",{"$f":"IF(Monaco!$D$11=\"\",0,SUM(Bahrein:Espagne!$G$11))","v":0},0,1]
["OCON Sebastian",null,null,null,null,null,0,null,null,null,null,null,null,"TSUNODA Yoki",{"$f":"IF(Monaco!$D$11=\"\",0,SUM(Bahrein:Espagne!$G$11))","v":0},0,1]
[null,null,null,null,null,null,0,null,null,null,null,null,null,"DEVRIES Nyck",{"$f":"IF(Monaco!$D$11=\"\",0,SUM(Bahrein:Espagne!$G$11))","v":0},0,1]
["TSUNODA Yoki","ALPHA TAURI",null,null,null,null,0,null,null,null,null,null,null,"SARGEANT Logan",{"$f":"IF(Monaco!$D$11=\"\",0,SUM(Bahrein:Espagne!$G$11))","v":0},0,1]
["DEVRIES Nyck",null,null,null,null,null,0]
[null,null,null,null,null,null,0]
["MAGNUSSEN Kevin","HAAS",null,null,null,null,0]
["HULKENBERG Nico",null,null,null,null,null,0]
[null,null,null,null,null,null,0]
["NORRIS Lando","Mc LAREN",null,null,null,null,0]
["PIASTRI Oscar",null,null,null,null,null,0]
[null,null,null,null,null,null,0]
["BOTTAS Valtteri","ALFA ROMÉO",null,null,null,null,0]
["GUANYU Zhou",null,null,null,null,null,0]
[null,null,null,null,null,null,0]

{"sheet":"Canada","index":12,"n_rows":34,"n_cols":17,"rows_kept":34,"cut":false,"hidden":false,"merged":[[31,1,33,1],[31,2,33,2],[36,1,36,3],[22,1,24,1],[22,2,24,2],[25,1,27,1],[25,2,27,2],[28,1,30,1],[28,2,30,2],[13,1,15,1],[13,2,15,2],[16,1,18,1],[16,2,18,2],[19,1,21,1],[19,2,21,2],[4,1,6,1],[4,2,6,2],[7,1,9,1],[7,2,9,2],[10,1,12,1],[10,2,12,2],[2,5,3,5],[2,6,3,6],[0,0,1,16],[2,0,3,0],[2,1,3,1],[2,2,3,2],[2,3,3,3],[2,4,3,4]]}
["MONTRÉAL - 18 JUIN 2023"]
[]
["PILOTES","ECURIES","VOITURES","Finish","Pôle","Pt tour","Points",null,"ÉCURIES","Points","Écart","Rang",null,"Noms","Points","Écart","Rang"]
[null,null,null,null,null,null,null,null,"MERCEDES",{"$f":"SUM($G$5:$G$7)","v":0},null,{"$f":"IF(J4=\"\",0,(RANK(J4,$J$4:$J$13)))","v":1},null,"VERSTAPPEN Max",{"$f":"IF(Espagne!$D$11=\"\",0,SUM(Bahrein:Canada!$G$11))","v":0},null,{"$f":"IF(O4=\"\",0,(RANK(O4,$O$4:$O$23)))","v":1}]
["HAMILTON Lewis","MERCEDES",null,null,null,null,{"$f":"IFERROR(CHOOSE(D5,25,18,15,12,10,8,6,4,2,1)+(F5=1),0)","v":0},null,"Mc LAREN",{"$f":"SUM($G$29:$G$31)","v":0},{"$f":"J5-J4","v":0},{"$f":"IF(J5=\"\",0,(RANK(J5,$J$4:$J$13)))+COUNTIF(J$4:J5,J5)-1","v":2},null,"PEREZ Sergio",{"$f":"IF(Espagne!$D$11=\"\",0,SUM(Bahrein:Canada!$G$11))","v":0},{"$f":"O4-O5","v":0},{"$f":"IF(O5=\"\",0,(RANK(O5,$O$4:$O$23)))","v":1}]
["RUSSELL George",null,null,null,null,null,{"$f":"IFERROR(CHOOSE(D6,25,18,15,12,10,8,6,4,2,1)+(F6=1),0)","v":0},null,"FERRARI",{"$f":"SUM($G$8:$G$10)","v":0},0,{"$f":"IF(J6=\"\",0,(RANK(J6,$J$4:$J$13)))+COUNTIF(J$4:J6,J6)-1","v":3},null,"ALONSO Fernando",{"$f":"IF(Espagne!$D$11=\"\",0,SUM(Bahrein:Canada!$G$11))","v":0},{"$f":"O5-O6","v":0},1]
[null,null,null,null,null,null,0,null,"WILLIAMS",{"$f":"SUM($G$17:$G$19)","v":0},0,{"$f":"SUMIF(Espagne!$I$4:$I$13,Canada!$I7,Espagne!$L$4:$L$13)+$J7","v":1},null,"HAMILTON Lewis",{"$f":"IF(Espagne!$D$11=\"\",0,SUM(Bahrein:Canada!$G$11))","v":0},0,1]
["SAINZ.Jr Carlos","FERRARI",null,null,null,null,0,null,"ALFA ROMÉO",{"$f":"SUM($G$32:$G$34)","v":0},0,{"$f":"SUMIF(Espagne!$I$4:$I$13,Canada!$I8,Espagne!$L$4:$L$13)+$J8","v":2},null,"SAINZ.Jr Carlos",{"$f":"IF(Espagne!$D$11=\"\",0,SUM(Bahrein:Canada!$G$11))","v":0},0,1]
["LECLERC Charles",null,null,null,null,null,0,null,"RED BULL RACING",{"$f":"SUM($G$11:$G$13)","v":0},0,{"$f":"SUMIF(Espagne!$I$4:$I$13,Canada!$I9,Espagne!$L$4:$L$13)+$J9","v":1},null,"STROLL Lance",{"$f":"IF(Espagne!$D$11=\"\",0,SUM(Bahrein:Canada!$G$11))","v":0},0,1]
[null,null,null,null,null,null,0,null,"ASTON MARTIN",{"$f":"SUM($G$14:$G$16)","v":0},0,{"$f":"SUMIF(Espagne!$I$4:$I$13,Canada!$I10,Espagne!$L$4:$L$13)+$J10","v":10},null,"RUSSEL George",{"$f":"IF(Espagne!$D$11=\"\",0,SUM(Bahrein:Canada!$G$11))","v":0},0,1]
["VERSTAPPEN Max","RED BULL RACING",null,null,null,null,0,null,"ALPINE F1 TEAM",{"$f":"SUM($G$20:$G$22)","v":0},0,{"$f":"SUMIF(Espagne!$I$4:$I$13,Canada!$I11,Espagne!$L$4:$L$13)+$J11","v":10},null,"NORRIS Lando",{"$f":"IF(Espagne!$D$11=\"\",0,SUM(Bahrein:Canada!$G$11))","v":0},0,1]
["PEREZ Sergio",null,null,null,null,null,0,null,"ALPHA TAURI",{"$f":"SUM($G$23:$G$25)","v":0},0,{"$f":"SUMIF(Espagne!$I$4:$I$13,Canada!$I12,Espagne!$L$4:$L$13)+$J12","v":3},null,"LECLERC Charles",{"$f":"IF(Espagne!$D$11=\"\",0,SUM(Bahrein:Canada!$G$11))","v":0},0,1]
[null,null,null,null,null,null,0,null,"HAAS",{"$f":"SUM($G$26:$G$28)","v":0},0,{"$f":"IF(J13=\"\",0,(RANK(J13,$J$4:$J$13)))+COUNTIF(J$4:J13,J13)-1","v":10},null,"HULKENBERG Nico",{"$f":"IF(Espagne!$D$11=\"\",0,SUM(Bahrein:Canada!$G$11))","v":0},0,1]
["ALONSO Fernando","ASTON MARTIN",null,null,null,null,0,null,null,null,null,null,null,"BOTTAS Valtteri",{"$f":"IF(Espagne!$D$11=\"\",0,SUM(Bahrein:Canada!$G$11))","v":0},0,1]
["STROLL Lance",null,null,null,null,null,0,null,null,null,null,null,null,"GASLY Pierre",{"$f":"IF(Espagne!$D$11=\"\",0,SUM(Bahrein:Canada!$G$11))","v":0},0,1]
[null,null,null,null,null,null,0,null,null,null,null,null,null,"OCON Sebastian",{"$f":"IF(Espagne!$D$11=\"\",0,SUM(Bahrein:Canada!$G$11))","v":0},0,1]
["ALBON Alexander","WILLIAMS",null,null,null,null,0,null,null,null,null,null,null,"PIASTRI Oscar",{"$f":"IF(Espagne!$D$11=\"\",0,SUM(Bahrein:Canada!$G$11))","v":0},0,1]
["SARGEANT Logan",null,null,null,null,null,0,null,null,null,null,null,null,"GUANYU Zhou",{"$f":"IF(Espagne!$D$11=\"\",0,SUM(Bahrein:Canada!$G$11))","v":0},0,1]
[null,null,null,null,null,null,0,null,null,null,null,null,null,"ALBON Alexander",{"$f":"IF(Espagne!$D$11=\"\",0,SUM(Bahrein:Canada!$G$11))","v":0},0,1]
["GASLY Pierre","ALPINE F1 TEAM",null,null,null,null,0,null,null,null,null,null,null,"MAGNUSSEN Kevin",{"$f":"IF(Espagne!$D$11=\"\",0,SUM(Bahrein:Canada!$G$11))","v":0},0,1]
["OCON Sebastian",null,null,null,null,null,0,null,null,null,null,null,null,"TSUNODA Yoki",{"$f":"IF(Espagne!$D$11=\"\",0,SUM(Bahrein:Canada!$G$11))","v":0},0,1]
[null,null,null,null,null,null,0,null,null,null,null,null,null,"DEVRIES Nyck",{"$f":"IF(Espagne!$D$11=\"\",0,SUM(Bahrein:Canada!$G$11))","v":0},0,1]
["TSUNODA Yoki","ALPHA TAURI",null,null,null,null,0,null,null,null,null,null,null,"SARGEANT Logan",{"$f":"IF(Espagne!$D$11=\"\",0,SUM(Bahrein:Canada!$G$11))","v":0},0,1]
["DEVRIES Nyck",null,null,null,null,null,0]
[null,null,null,null,null,null,0]
["MAGNUSSEN Kevin","HAAS",null,null,null,null,0]
["HULKENBERG Nico",null,null,null,null,null,0]
[null,null,null,null,null,null,0]
["NORRIS Lando","Mc LAREN",null,null,null,null,0]
["PIASTRI Oscar",null,null,null,null,null,0]
[null,null,null,null,null,null,0]
["BOTTAS Valtteri","ALFA ROMÉO",null,null,null,null,0]
["GUANYU Zhou",null,null,null,null,null,0]
[null,null,null,null,null,null,0]

{"sheet":"Autriche","index":13,"n_rows":34,"n_cols":17,"rows_kept":34,"cut":false,"hidden":false,"merged":[[2,0,3,0],[2,7,3,7],[0,0,1,16],[4,1,6,1],[4,2,6,2],[2,1,3,1],[2,2,3,2],[2,3,3,3],[2,5,3,5],[2,6,3,6],[2,4,3,4],[7,1,9,1],[7,2,9,2],[10,1,12,1],[10,2,12,2],[13,1,15,1],[13,2,15,2],[16,1,18,1],[16,2,18,2],[19,1,21,1],[19,2,21,2],[36,1,36,3],[31,1,33,1],[31,2,33,2],[22,1,24,1],[22,2,24,2],[25,1,27,1],[25,2,27,2],[28,1,30,1],[28,2,30,2]]}
["SPIELBERG - 2 JUILLET 2023"]
[]
["PILOTES","ECURIES","VOITURES","Finish","Pôle","Pt tour","Points","Sprint","ÉCURIES","Points","Écart","Rang",null,"Noms","Points","Écart","Rang"]
[null,null,null,null,null,null,null,null,"MERCEDES",{"$f":"SUM($G$5:$G$7)","v":0},null,{"$f":"IF(J4=\"\",0,(RANK(J4,$J$4:$J$13)))","v":1},null,"VERSTAPPEN Max",{"$f":"IF(Canada!$D$11=\"\",0,SUM(Bahrein:Autriche!$G$11))","v":0},null,{"$f":"IF(O4=\"\",0,(RANK(O4,$O$4:$O$23)))","v":1}]
["HAMILTON Lewis","MERCEDES",null,null,null,null,{"$f":"IFERROR(CHOOSE(D5,25,18,15,12,10,8,6,4,2,1),0)+IFERROR(CHOOSE(H5,8,7,6,5,4,3,2,1),0)+F5","v":0},null,"Mc LAREN",{"$f":"SUM($G$29:$G$31)","v":0},{"$f":"J5-J4","v":0},{"$f":"IF(J5=\"\",0,(RANK(J5,$J$4:$J$13)))+COUNTIF(J$4:J5,J5)-1","v":2},null,"PEREZ Sergio",{"$f":"IF(Canada!$D$11=\"\",0,SUM(Bahrein:Autriche!$G$11))","v":0},{"$f":"O4-O5","v":0},{"$f":"IF(O5=\"\",0,(RANK(O5,$O$4:$O$23)))","v":1}]
["RUSSELL George",null,null,null,null,null,{"$f":"IFERROR(CHOOSE(D6,25,18,15,12,10,8,6,4,2,1),0)+IFERROR(CHOOSE(H6,8,7,6,5,4,3,2,1),0)+F6","v":0},null,"FERRARI",{"$f":"SUM($G$8:$G$10)","v":0},0,{"$f":"IF(J6=\"\",0,(RANK(J6,$J$4:$J$13)))+COUNTIF(J$4:J6,J6)-1","v":3},null,"ALONSO Fernando",{"$f":"IF(Canada!$D$11=\"\",0,SUM(Bahrein:Autriche!$G$11))","v":0},{"$f":"O5-O6","v":0},1]
[null,null,null,null,null,null,0,null,"WILLIAMS",{"$f":"SUM($G$17:$G$19)","v":0},0,{"$f":"SUMIF(Canada!$I$4:$I$13,Autriche!$I7,Canada!$L$4:$L$13)+$J7","v":1},null,"HAMILTON Lewis",{"$f":"IF(Canada!$D$11=\"\",0,SUM(Bahrein:Autriche!$G$11))","v":0},0,1]
["SAINZ.Jr Carlos","FERRARI",null,null,null,null,0,null,"ALFA ROMÉO",{"$f":"SUM($G$32:$G$34)","v":0},0,{"$f":"SUMIF(Canada!$I$4:$I$13,Autriche!$I8,Canada!$L$4:$L$13)+$J8","v":2},null,"SAINZ.Jr Carlos",{"$f":"IF(Canada!$D$11=\"\",0,SUM(Bahrein:Autriche!$G$11))","v":0},0,1]
["LECLERC Charles",null,null,null,null,null,0,null,"RED BULL RACING",{"$f":"SUM($G$11:$G$13)","v":0},0,{"$f":"SUMIF(Canada!$I$4:$I$13,Autriche!$I9,Canada!$L$4:$L$13)+$J9","v":1},null,"STROLL Lance",{"$f":"IF(Canada!$D$11=\"\",0,SUM(Bahrein:Autriche!$G$11))","v":0},0,1]
[null,null,null,null,null,null,0,null,"ASTON MARTIN",{"$f":"SUM($G$14:$G$16)","v":0},0,{"$f":"SUMIF(Canada!$I$4:$I$13,Autriche!$I10,Canada!$L$4:$L$13)+$J10","v":10},null,"RUSSEL George",{"$f":"IF(Canada!$D$11=\"\",0,SUM(Bahrein:Autriche!$G$11))","v":0},0,1]
["VERSTAPPEN Max","RED BULL RACING",null,null,null,null,0,null,"ALPINE F1 TEAM",{"$f":"SUM($G$20:$G$22)","v":0},0,{"$f":"SUMIF(Canada!$I$4:$I$13,Autriche!$I11,Canada!$L$4:$L$13)+$J11","v":10},null,"NORRIS Lando",{"$f":"IF(Canada!$D$11=\"\",0,SUM(Bahrein:Autriche!$G$11))","v":0},0,1]
["PEREZ Sergio",null,null,null,null,null,0,null,"ALPHA TAURI",{"$f":"SUM($G$23:$G$25)","v":0},0,{"$f":"SUMIF(Canada!$I$4:$I$13,Autriche!$I12,Canada!$L$4:$L$13)+$J12","v":3},null,"LECLERC Charles",{"$f":"IF(Canada!$D$11=\"\",0,SUM(Bahrein:Autriche!$G$11))","v":0},0,1]
[null,null,null,null,null,null,0,null,"HAAS",{"$f":"SUM($G$26:$G$28)","v":0},0,{"$f":"IF(J13=\"\",0,(RANK(J13,$J$4:$J$13)))+COUNTIF(J$4:J13,J13)-1","v":10},null,"HULKENBERG Nico",{"$f":"IF(Canada!$D$11=\"\",0,SUM(Bahrein:Autriche!$G$11))","v":0},0,1]
["ALONSO Fernando","ASTON MARTIN",null,null,null,null,0,null,null,null,null,null,null,"BOTTAS Valtteri",{"$f":"IF(Canada!$D$11=\"\",0,SUM(Bahrein:Autriche!$G$11))","v":0},0,1]
["STROLL Lance",null,null,null,null,null,0,null,null,null,null,null,null,"GASLY Pierre",{"$f":"IF(Canada!$D$11=\"\",0,SUM(Bahrein:Autriche!$G$11))","v":0},0,1]
[null,null,null,null,null,null,0,null,null,null,null,null,null,"OCON Sebastian",{"$f":"IF(Canada!$D$11=\"\",0,SUM(Bahrein:Autriche!$G$11))","v":0},0,1]
["ALBON Alexander","WILLIAMS",null,null,null,null,0,null,null,null,null,null,null,"PIASTRI Oscar",{"$f":"IF(Canada!$D$11=\"\",0,SUM(Bahrein:Autriche!$G$11))","v":0},0,1]
["SARGEANT Logan",null,null,null,null,null,0,null,null,null,null,null,null,"GUANYU Zhou",{"$f":"IF(Canada!$D$11=\"\",0,SUM(Bahrein:Autriche!$G$11))","v":0},0,1]
[null,null,null,null,null,null,0,null,null,null,null,null,null,"ALBON Alexander",{"$f":"IF(Canada!$D$11=\"\",0,SUM(Bahrein:Autriche!$G$11))","v":0},0,1]
["GASLY Pierre","ALPINE F1 TEAM",null,null,null,null,0,null,null,null,null,null,null,"MAGNUSSEN Kevin",{"$f":"IF(Canada!$D$11=\"\",0,SUM(Bahrein:Autriche!$G$11))","v":0},0,1]
["OCON Sebastian",null,null,null,null,null,0,null,null,null,null,null,null,"TSUNODA Yoki",{"$f":"IF(Canada!$D$11=\"\",0,SUM(Bahrein:Autriche!$G$11))","v":0},0,1]
[null,null,null,null,null,null,0,null,null,null,null,null,null,"SARGEANT Logan",{"$f":"IF(Canada!$D$11=\"\",0,SUM(Bahrein:Autriche!$G$11))","v":0},0,1]
["TSUNODA Yoki","ALPHA TAURI",null,null,null,null,0,null,null,null,null,null,null,"DEVRIES Nyck",{"$f":"IF(Canada!$D$11=\"\",0,SUM(Bahrein:Autriche!$G$11))","v":0},0,1]
["DEVRIES Nyck",null,null,null,null,null,0]
[null,null,null,null,null,null,0]
["MAGNUSSEN Kevin","HAAS",null,null,null,null,0]
["HULKENBERG Nico",null,null,null,null,null,0]
[null,null,null,null,null,null,0]
["NORRIS Lando","Mc LAREN",null,null,null,null,0]
["PIASTRI Oscar",null,null,null,null,null,0]
[null,null,null,null,null,null,0]
["BOTTAS Valtteri","ALFA ROMÉO",null,null,null,null,0]
["GUANYU Zhou",null,null,null,null,null,0]
[null,null,null,null,null,null,0]

{"sheet":"GB","index":14,"n_rows":34,"n_cols":17,"rows_kept":34,"cut":false,"hidden":false,"merged":[[2,5,3,5],[2,6,3,6],[2,7,3,7],[0,0,1,16],[2,0,3,0],[2,1,3,1],[2,2,3,2],[2,3,3,3],[2,4,3,4],[4,1,6,1],[4,2,6,2],[7,1,9,1],[7,2,9,2],[10,1,12,1],[10,2,12,2],[13,1,15,1],[13,2,15,2],[16,1,18,1],[16,2,18,2],[19,1,21,1],[19,2,21,2],[36,1,36,3],[31,1,33,1],[31,2,33,2],[22,1,24,1],[22,2,24,2],[25,1,27,1],[25,2,27,2],[28,1,30,1],[28,2,30,2]]}
["SILVERSTONE - 9 JUILLET 2023"]
[]
["PILOTES","ECURIES","VOITURES","Finish","Pôle","Pt tour","Points",null,"ÉCURIES","Points","Écart","Rang",null,"Noms","Points","Écart","Rang"]
[null,null,null,null,null,null,null,null,"MERCEDES",{"$f":"SUM($G$5:$G$7)","v":0},null,{"$f":"IF(J4=\"\",0,(RANK(J4,$J$4:$J$13)))","v":1},null,"VERSTAPPEN Max",{"$f":"IF(Autriche!$D$11=\"\",0,SUM(Bahrein:GB!$G$11))","v":0},null,{"$f":"IF(O4=\"\",0,(RANK(O4,$O$4:$O$23)))","v":1}]
["HAMILTON Lewis","MERCEDES",null,null,null,null,{"$f":"IFERROR(CHOOSE(D5,25,18,15,12,10,8,6,4,2,1)+(F5=1),0)","v":0},null,"Mc LAREN",{"$f":"SUM($G$29:$G$31)","v":0},{"$f":"J5-J4","v":0},{"$f":"IF(J5=\"\",0,(RANK(J5,$J$4:$J$13)))+COUNTIF(J$4:J5,J5)-1","v":2},null,"PEREZ Sergio",{"$f":"IF(Autriche!$D$11=\"\",0,SUM(Bahrein:GB!$G$11))","v":0},{"$f":"O4-O5","v":0},{"$f":"IF(O5=\"\",0,(RANK(O5,$O$4:$O$23)))","v":1}]
["RUSSELL George",null,null,null,null,null,{"$f":"IFERROR(CHOOSE(D6,25,18,15,12,10,8,6,4,2,1)+(F6=1),0)","v":0},null,"FERRARI",{"$f":"SUM($G$8:$G$10)","v":0},0,{"$f":"IF(J6=\"\",0,(RANK(J6,$J$4:$J$13)))+COUNTIF(J$4:J6,J6)-1","v":3},null,"ALONSO Fernando",{"$f":"IF(Autriche!$D$11=\"\",0,SUM(Bahrein:GB!$G$11))","v":0},{"$f":"O5-O6","v":0},1]
[null,null,null,null,null,null,0,null,"WILLIAMS",{"$f":"SUM($G$17:$G$19)","v":0},0,{"$f":"SUMIF(Autriche!$I$4:$I$13,GB!$I7,Autriche!$L$4:$L$13)+$J7","v":1},null,"HAMILTON Lewis",{"$f":"IF(Autriche!$D$11=\"\",0,SUM(Bahrein:GB!$G$11))","v":0},0,1]
["SAINZ.Jr Carlos","FERRARI",null,null,null,null,0,null,"ALFA ROMÉO",{"$f":"SUM($G$32:$G$34)","v":0},0,{"$f":"SUMIF(Autriche!$I$4:$I$13,GB!$I8,Autriche!$L$4:$L$13)+$J8","v":2},null,"SAINZ.Jr Carlos",{"$f":"IF(Autriche!$D$11=\"\",0,SUM(Bahrein:GB!$G$11))","v":0},0,1]
["LECLERC Charles",null,null,null,null,null,0,null,"RED BULL RACING",{"$f":"SUM($G$11:$G$13)","v":0},0,{"$f":"SUMIF(Autriche!$I$4:$I$13,GB!$I9,Autriche!$L$4:$L$13)+$J9","v":1},null,"STROLL Lance",{"$f":"IF(Autriche!$D$11=\"\",0,SUM(Bahrein:GB!$G$11))","v":0},0,1]
[null,null,null,null,null,null,0,null,"ASTON MARTIN",{"$f":"SUM($G$14:$G$16)","v":0},0,{"$f":"SUMIF(Autriche!$I$4:$I$13,GB!$I10,Autriche!$L$4:$L$13)+$J10","v":10},null,"RUSSEL George",{"$f":"IF(Autriche!$D$11=\"\",0,SUM(Bahrein:GB!$G$11))","v":0},0,1]
["VERSTAPPEN Max","RED BULL RACING",null,null,null,null,0,null,"ALPINE F1 TEAM",{"$f":"SUM($G$20:$G$22)","v":0},0,{"$f":"SUMIF(Autriche!$I$4:$I$13,GB!$I11,Autriche!$L$4:$L$13)+$J11","v":10},null,"NORRIS Lando",{"$f":"IF(Autriche!$D$11=\"\",0,SUM(Bahrein:GB!$G$11))","v":0},0,1]
["PEREZ Sergio",null,null,null,null,null,0,null,"ALPHA TAURI",{"$f":"SUM($G$23:$G$25)","v":0},0,{"$f":"SUMIF(Autriche!$I$4:$I$13,GB!$I12,Autriche!$L$4:$L$13)+$J12","v":3},null,"LECLERC Charles",{"$f":"IF(Autriche!$D$11=\"\",0,SUM(Bahrein:GB!$G$11))","v":0},0,1]
[null,null,null,null,null,null,0,null,"HAAS",{"$f":"SUM($G$26:$G$28)","v":0},0,{"$f":"IF(J13=\"\",0,(RANK(J13,$J$4:$J$13)))+COUNTIF(J$4:J13,J13)-1","v":10},null,"HULKENBERG Nico",{"$f":"IF(Autriche!$D$11=\"\",0,SUM(Bahrein:GB!$G$11))","v":0},0,1]
["ALONSO Fernando","ASTON MARTIN",null,null,null,null,0,null,null,null,null,null,null,"BOTTAS Valtteri",{"$f":"IF(Autriche!$D$11=\"\",0,SUM(Bahrein:GB!$G$11))","v":0},0,1]
["STROLL Lance",null,null,null,null,null,0,null,null,null,null,null,null,"GASLY Pierre",{"$f":"IF(Autriche!$D$11=\"\",0,SUM(Bahrein:GB!$G$11))","v":0},0,1]
[null,null,null,null,null,null,0,null,null,null,null,null,null,"OCON Sebastian",{"$f":"IF(Autriche!$D$11=\"\",0,SUM(Bahrein:GB!$G$11))","v":0},0,1]
["ALBON Alexander","WILLIAMS",null,null,null,null,0,null,null,null,null,null,null,"PIASTRI Oscar",{"$f":"IF(Autriche!$D$11=\"\",0,SUM(Bahrein:GB!$G$11))","v":0},0,1]
["SARGEANT Logan",null,null,null,null,null,0,null,null,null,null,null,null,"GUANYU Zhou",{"$f":"IF(Autriche!$D$11=\"\",0,SUM(Bahrein:GB!$G$11))","v":0},0,1]
[null,null,null,null,null,null,0,null,null,null,null,null,null,"MAGNUSSEN Kevin",{"$f":"IF(Autriche!$D$11=\"\",0,SUM(Bahrein:GB!$G$11))","v":0},0,1]
["GASLY Pierre","ALPINE F1 TEAM",null,null,null,null,0,null,null,null,null,null,null,"ALBON Alexander",{"$f":"IF(Autriche!$D$11=\"\",0,SUM(Bahrein:GB!$G$11))","v":0},0,1]
["OCON Sebastian",null,null,null,null,null,0,null,null,null,null,null,null,"TSUNODA Yoki",{"$f":"IF(Autriche!$D$11=\"\",0,SUM(Bahrein:GB!$G$11))","v":0},0,1]
[null,null,null,null,null,null,0,null,null,null,null,null,null,"SARGEANT Logan",{"$f":"IF(Autriche!$D$11=\"\",0,SUM(Bahrein:GB!$G$11))","v":0},0,1]
["TSUNODA Yoki","ALPHA TAURI",null,null,null,null,0,null,null,null,null,null,null,"DEVRIES Nyck",{"$f":"IF(Autriche!$D$11=\"\",0,SUM(Bahrein:GB!$G$11))","v":0},0,1]
["DEVRIES Nyck",null,null,null,null,null,0]
[null,null,null,null,null,null,0]
["MAGNUSSEN Kevin","HAAS",null,null,null,null,0]
["HULKENBERG Nico",null,null,null,null,null,0]
[null,null,null,null,null,null,0]
["NORRIS Lando","Mc LAREN",null,null,null,null,0]
["PIASTRI Oscar",null,null,null,null,null,0]
[null,null,null,null,null,null,0]
["BOTTAS Valtteri","ALFA ROMÉO",null,null,null,null,0]
["GUANYU Zhou",null,null,null,null,null,0]
[null,null,null,null,null,null,0]

{"sheet":"Hongrie","index":15,"n_rows":34,"n_cols":17,"rows_kept":34,"cut":false,"hidden":false,"merged":[[2,5,3,5],[2,6,3,6],[0,0,1,16],[4,1,6,1],[4,2,6,2],[2,0,3,0],[2,1,3,1],[2,2,3,2],[2,3,3,3],[2,4,3,4],[7,1,9,1],[7,2,9,2],[10,1,12,1],[10,2,12,2],[13,1,15,1],[13,2,15,2],[16,1,18,1],[16,2,18,2],[19,1,21,1],[19,2,21,2],[36,1,36,3],[31,1,33,1],[31,2,33,2],[22,1,24,1],[22,2,24,2],[25,1,27,1],[25,2,27,2],[28,1,30,1],[28,2,30,2]]}
["BUDAPEST - 23 JUILLET 2023"]
[]
["PILOTES","ECURIES","VOITURES","Finish","Pôle","Pt tour","Points",null,"ÉCURIES","Points","Écart","Rang",null,"Noms","Points","Écart","Rang"]
[null,null,null,null,null,null,null,null,"MERCEDES",{"$f":"SUM($G$5:$G$7)","v":0},null,{"$f":"IF(J4=\"\",0,(RANK(J4,$J$4:$J$13)))","v":1},null,"VERSTAPPEN Max",{"$f":"IF(GB!$D$11=\"\",0,SUM(Bahrein:Hongrie!$G$11))","v":0},null,{"$f":"IF(O4=\"\",0,(RANK(O4,$O$4:$O$23)))","v":1}]
["HAMILTON Lewis","MERCEDES",null,null,null,null,{"$f":"IFERROR(CHOOSE(D5,25,18,15,12,10,8,6,4,2,1)+(F5=1),0)","v":0},null,"Mc LAREN",{"$f":"SUM($G$29:$G$31)","v":0},{"$f":"J5-J4","v":0},{"$f":"IF(J5=\"\",0,(RANK(J5,$J$4:$J$13)))+COUNTIF(J$4:J5,J5)-1","v":2},null,"PEREZ Sergio",{"$f":"IF(GB!$D$11=\"\",0,SUM(Bahrein:Hongrie!$G$11))","v":0},{"$f":"O4-O5","v":0},{"$f":"IF(O5=\"\",0,(RANK(O5,$O$4:$O$23)))","v":1}]
["RUSSELL GEORGE",null,null,null,null,null,{"$f":"IFERROR(CHOOSE(D6,25,18,15,12,10,8,6,4,2,1)+(F6=1),0)","v":0},null,"FERRARI",{"$f":"SUM($G$8:$G$10)","v":0},0,{"$f":"IF(J6=\"\",0,(RANK(J6,$J$4:$J$13)))+COUNTIF(J$4:J6,J6)-1","v":3},null,"ALONSO Fernando",{"$f":"IF(GB!$D$11=\"\",0,SUM(Bahrein:Hongrie!$G$11))","v":0},{"$f":"O5-O6","v":0},1]
[null,null,null,null,null,null,0,null,"WILLIAMS",{"$f":"SUM($G$17:$G$19)","v":0},0,{"$f":"SUMIF(GB!I$4:$I$13,Hongrie!$I7,GB!L$4:$L$13)+$J7","v":1},null,"HAMILTON Lewis",{"$f":"IF(GB!$D$11=\"\",0,SUM(Bahrein:Hongrie!$G$11))","v":0},0,1]
["SAINZ.Jr Carlos","FERRARI",null,null,null,null,0,null,"ALFA ROMÉO",{"$f":"SUM($G$32:$G$34)","v":0},0,{"$f":"SUMIF(GB!I$4:$I$13,Hongrie!$I8,GB!L$4:$L$13)+$J8","v":2},null,"SAINZ.Jr Carlos",{"$f":"IF(GB!$D$11=\"\",0,SUM(Bahrein:Hongrie!$G$11))","v":0},0,1]
["LECLERC Charles",null,null,null,null,null,0,null,"RED BULL RACING",{"$f":"SUM($G$11:$G$13)","v":0},0,{"$f":"SUMIF(GB!I$4:$I$13,Hongrie!$I9,GB!L$4:$L$13)+$J9","v":1},null,"STROLL Lance",{"$f":"IF(GB!$D$11=\"\",0,SUM(Bahrein:Hongrie!$G$11))","v":0},0,1]
[null,null,null,null,null,null,0,null,"ASTON MARTIN",{"$f":"SUM($G$14:$G$16)","v":0},0,{"$f":"SUMIF(GB!I$4:$I$13,Hongrie!$I10,GB!L$4:$L$13)+$J10","v":10},null,"SARGEANT Logan",{"$f":"IF(GB!$D$11=\"\",0,SUM(Bahrein:Hongrie!$G$11))","v":0},0,1]
["VERSTAPPEN Max","RED BULL RACING",null,null,null,null,0,null,"ALPINE F1 TEAM",{"$f":"SUM($G$20:$G$22)","v":0},0,{"$f":"SUMIF(GB!I$4:$I$13,Hongrie!$I11,GB!L$4:$L$13)+$J11","v":10},null,"RUSSEL George",{"$f":"IF(GB!$D$11=\"\",0,SUM(Bahrein:Hongrie!$G$11))","v":0},0,1]
["PEREZ Sergio",null,null,null,null,null,0,null,"ALPHA TAURI",{"$f":"SUM($G$23:$G$25)","v":0},0,{"$f":"SUMIF(GB!I$4:$I$13,Hongrie!$I12,GB!L$4:$L$13)+$J12","v":3},null,"NORRIS Lando",{"$f":"IF(GB!$D$11=\"\",0,SUM(Bahrein:Hongrie!$G$11))","v":0},0,1]
[null,null,null,null,null,null,0,null,"HAAS",{"$f":"SUM($G$26:$G$28)","v":0},0,{"$f":"IF(J13=\"\",0,(RANK(J13,$J$4:$J$13)))+COUNTIF(J$4:J13,J13)-1","v":10},null,"LECLERC Charles",{"$f":"IF(GB!$D$11=\"\",0,SUM(Bahrein:Hongrie!$G$11))","v":0},0,1]
["ALONSO Fernando","ASTON MARTIN",null,null,null,null,0,null,null,null,null,null,null,"HULKENBERG Nico",{"$f":"IF(GB!$D$11=\"\",0,SUM(Bahrein:Hongrie!$G$11))","v":0},0,1]
["STROLL Lance",null,null,null,null,null,0,null,null,null,null,null,null,"BOTTAS Valtteri",{"$f":"IF(GB!$D$11=\"\",0,SUM(Bahrein:Hongrie!$G$11))","v":0},0,1]
[null,null,null,null,null,null,0,null,null,null,null,null,null,"GASLY Pierre",{"$f":"IF(GB!$D$11=\"\",0,SUM(Bahrein:Hongrie!$G$11))","v":0},0,1]
["ALBON Alexander","WILLIAMS",null,null,null,null,0,null,null,null,null,null,null,"PIASTRI Oscar",{"$f":"IF(GB!$D$11=\"\",0,SUM(Bahrein:Hongrie!$G$11))","v":0},0,1]
["SARGEANT Logan",null,null,null,null,null,0,null,null,null,null,null,null,"GUANYU Zhou",{"$f":"IF(GB!$D$11=\"\",0,SUM(Bahrein:Hongrie!$G$11))","v":0},0,1]
[null,null,null,null,null,null,0,null,null,null,null,null,null,"ALBON Alexander",{"$f":"IF(GB!$D$11=\"\",0,SUM(Bahrein:Hongrie!$G$11))","v":0},0,1]
["GASLY Pierre","ALPINE F1 TEAM",null,null,null,null,0,null,null,null,null,null,null,"MAGNUSEN Kevin",{"$f":"IF(GB!$D$11=\"\",0,SUM(Bahrein:Hongrie!$G$11))","v":0},0,1]
["OCON Sebastian",null,null,null,null,null,0,null,null,null,null,null,null,"TSUNODA Yoki",{"$f":"IF(GB!$D$11=\"\",0,SUM(Bahrein:Hongrie!$G$11))","v":0},0,1]
[null,null,null,null,null,null,0,null,null,null,null,null,null,"OCON Sebastian",{"$f":"IF(GB!$D$11=\"\",0,SUM(Bahrein:Hongrie!$G$11))","v":0},0,1]
["TSUNODA Yoki","ALPHA TAURI",null,null,null,null,0,null,null,null,null,null,null,"DEVRIES Nyck",{"$f":"IF(GB!$D$11=\"\",0,SUM(Bahrein:Hongrie!$G$11))","v":0},0,1]
["DEVRIES Nyck",null,null,null,null,null,0]
[null,null,null,null,null,null,0]
["MAGNUSEN Kevin","HAAS",null,null,null,null,0]
["HULKENBERG Nico",null,null,null,null,null,0]
[null,null,null,null,null,null,0]
["NORRIS Lando","Mc LAREN",null,null,null,null,0]
["PIASTRI Oscar",null,null,null,null,null,0]
[null,null,null,null,null,null,0]
["BOTTAS Valtteri","ALFA ROMÉO",null,null,null,null,0]
["GUANYU Zhou",null,null,null,null,null,0]
[null,null,null,null,null,null,0]

{"sheet":"Belgique","index":16,"n_rows":34,"n_cols":17,"rows_kept":34,"cut":false,"hidden":false,"merged":[[2,5,3,5],[2,6,3,6],[2,7,3,7],[0,0,1,16],[2,0,3,0],[2,1,3,1],[2,2,3,2],[2,3,3,3],[2,4,3,4],[4,1,6,1],[4,2,6,2],[7,1,9,1],[7,2,9,2],[10,1,12,1],[10,2,12,2],[13,1,15,1],[13,2,15,2],[16,1,18,1],[16,2,18,2],[19,1,21,1],[19,2,21,2],[36,1,36,3],[31,1,33,1],[31,2,33,2],[22,1,24,1],[22,2,24,2],[25,1,27,1],[25,2,27,2],[28,1,30,1],[28,2,30,2]]}
["SPA FRANCORCHAMPS - 30 JUILLET 2023"]
[]
["PILOTES","ECURIES","VOITURES","Finish","Pôle","Pt tour","Points","Sprint","ÉCURIES","Points","Écart","Rang",null,"Noms","Points","Écart","Rang"]
[null,null,null,null,null,null,null,null,"MERCEDES",{"$f":"SUM($G$5:$G$7)","v":0},null,{"$f":"IF(J4=\"\",0,(RANK(J4,$J$4:$J$13)))","v":1},null,"VERSTAPPEN Max",{"$f":"IF(Hongrie!$D$11=\"\",0,SUM(Bahrein:Belgique!$G$11))","v":0},null,{"$f":"IF(O4=\"\",0,(RANK(O4,$O$4:$O$23)))","v":1}]
["HAMILTON Lewis","MERCEDES",null,null,null,null,{"$f":"IFERROR(CHOOSE(D5,25,18,15,12,10,8,6,4,2,1),0)+IFERROR(CHOOSE(H5,8,7,6,5,4,3,2,1),0)+F5","v":0},null,"Mc LAREN",{"$f":"SUM($G$29:$G$31)","v":0},{"$f":"J5-J4","v":0},{"$f":"IF(J5=\"\",0,(RANK(J5,$J$4:$J$13)))+COUNTIF(J$4:J5,J5)-1","v":2},null,"PEREZ Sergio",{"$f":"IF(Hongrie!$D$11=\"\",0,SUM(Bahrein:Belgique!$G$11))","v":0},{"$f":"O4-O5","v":0},{"$f":"IF(O5=\"\",0,(RANK(O5,$O$4:$O$23)))","v":1}]
["RUSSELL George",null,null,null,null,null,{"$f":"IFERROR(CHOOSE(D6,25,18,15,12,10,8,6,4,2,1),0)+IFERROR(CHOOSE(H6,8,7,6,5,4,3,2,1),0)+F6","v":0},null,"FERRARI",{"$f":"SUM($G$8:$G$10)","v":0},0,{"$f":"IF(J6=\"\",0,(RANK(J6,$J$4:$J$13)))+COUNTIF(J$4:J6,J6)-1","v":3},null,"ALONSO Fernando",{"$f":"IF(Hongrie!$D$11=\"\",0,SUM(Bahrein:Belgique!$G$11))","v":0},{"$f":"O5-O6","v":0},1]
[null,null,null,null,null,null,0,null,"WILLIAMS",{"$f":"SUM($G$17:$G$19)","v":0},0,{"$f":"SUMIF(Hongrie!$I$4:$I$13,Belgique!$I$4,Hongrie!$L$4:$L$13)+$J$4","v":1},null,"HAMILTON Lewis",{"$f":"IF(Hongrie!$D$11=\"\",0,SUM(Bahrein:Belgique!$G$11))","v":0},0,1]
["SAINZ.Jr Carlos","FERRARI",null,null,null,null,0,null,"ALFA ROMÉO",{"$f":"SUM($G$32:$G$34)","v":0},0,{"$f":"SUMIF(Hongrie!$I$4:$I$13,Belgique!$I$4,Hongrie!$L$4:$L$13)+$J$4","v":1},null,"SAINZ.Jr Carlos",{"$f":"IF(Hongrie!$D$11=\"\",0,SUM(Bahrein:Belgique!$G$11))","v":0},0,1]
["LECLERC Charles",null,null,null,null,null,0,null,"RED BULL RACING",{"$f":"SUM($G$11:$G$13)","v":0},0,{"$f":"SUMIF(Hongrie!$I$4:$I$13,Belgique!$I$4,Hongrie!$L$4:$L$13)+$J$4","v":1},null,"STROLL Lance",{"$f":"IF(Hongrie!$D$11=\"\",0,SUM(Bahrein:Belgique!$G$11))","v":0},0,1]
[null,null,null,null,null,null,0,null,"ASTON MARTIN",{"$f":"SUM($G$14:$G$16)","v":0},0,{"$f":"SUMIF(Hongrie!$I$4:$I$13,Belgique!$I$4,Hongrie!$L$4:$L$13)+$J$4","v":1},null,"RUSSEL George",{"$f":"IF(Hongrie!$D$11=\"\",0,SUM(Bahrein:Belgique!$G$11))","v":0},0,1]
["VERSTAPPEN Max","RED BULL RACING",null,null,null,null,0,null,"ALPINE F1 TEAM",{"$f":"SUM($G$20:$G$22)","v":0},0,{"$f":"SUMIF(Hongrie!$I$4:$I$13,Belgique!$I$4,Hongrie!$L$4:$L$13)+$J$4","v":1},null,"NORRIS Lando",{"$f":"IF(Hongrie!$D$11=\"\",0,SUM(Bahrein:Belgique!$G$11))","v":0},0,1]
["PEREZ Sergio",null,null,null,null,null,0,null,"ALPHA TAURI",{"$f":"SUM($G$23:$G$25)","v":0},0,{"$f":"SUMIF(Hongrie!$I$4:$I$13,Belgique!$I$4,Hongrie!$L$4:$L$13)+$J$4","v":1},null,"LECLERC Charles",{"$f":"IF(Hongrie!$D$11=\"\",0,SUM(Bahrein:Belgique!$G$11))","v":0},0,1]
[null,null,null,null,null,null,0,null,"HAAS",{"$f":"SUM($G$26:$G$28)","v":0},0,{"$f":"IF(J13=\"\",0,(RANK(J13,$J$4:$J$13)))+COUNTIF(J$4:J13,J13)-1","v":10},null,"HULKENBERG Nico",{"$f":"IF(Hongrie!$D$11=\"\",0,SUM(Bahrein:Belgique!$G$11))","v":0},0,1]
["ALONSO Fernando","ASTON MARTIN",null,null,null,null,0,null,null,null,null,null,null,"BOTTAS Valtteri",{"$f":"IF(Hongrie!$D$11=\"\",0,SUM(Bahrein:Belgique!$G$11))","v":0},0,1]
["STROLL Lance",null,null,null,null,null,0,null,null,null,null,null,null,"GASLY Pierre",{"$f":"IF(Hongrie!$D$11=\"\",0,SUM(Bahrein:Belgique!$G$11))","v":0},0,1]
[null,null,null,null,null,null,0,null,null,null,null,null,null,"OCON Sebastian",{"$f":"IF(Hongrie!$D$11=\"\",0,SUM(Bahrein:Belgique!$G$11))","v":0},0,1]
["ALBON Alexander","WILLIAMS",null,null,null,null,0,null,null,null,null,null,null,"PIASTRI Oscar",{"$f":"IF(Hongrie!$D$11=\"\",0,SUM(Bahrein:Belgique!$G$11))","v":0},0,1]
["SARGEANT Logan",null,null,null,null,null,0,null,null,null,null,null,null,"GUANYU Zhou",{"$f":"IF(Hongrie!$D$11=\"\",0,SUM(Bahrein:Belgique!$G$11))","v":0},0,1]
[null,null,null,null,null,null,0,null,null,null,null,null,null,"ALBON Alexander",{"$f":"IF(Hongrie!$D$11=\"\",0,SUM(Bahrein:Belgique!$G$11))","v":0},0,1]
["GASLY Pierre","ALPINE F1 TEAM",null,null,null,null,0,null,null,null,null,null,null,"MAGNUSSEN Kevin",{"$f":"IF(Hongrie!$D$11=\"\",0,SUM(Bahrein:Belgique!$G$11))","v":0},0,1]
["OCON Sebastian",null,null,null,null,null,0,null,null,null,null,null,null,"TSUNODA Yoki",{"$f":"IF(Hongrie!$D$11=\"\",0,SUM(Bahrein:Belgique!$G$11))","v":0},0,1]
[null,null,null,null,null,null,0,null,null,null,null,null,null,"SARGEANT Logan",{"$f":"IF(Hongrie!$D$11=\"\",0,SUM(Bahrein:Belgique!$G$11))","v":0},0,1]
["TSUNODA Yoki","ALPHA TAURI",null,null,null,null,0,null,null,null,null,null,null,"DEVRIES Nyck",{"$f":"IF(Hongrie!$D$11=\"\",0,SUM(Bahrein:Belgique!$G$11))","v":0},0,1]
["DEVRIES Nyck",null,null,null,null,null,0]
[null,null,null,null,null,null,0]
["MAGNUSSEN Kevin","HAAS",null,null,null,null,0]
["HULKENBERG Nico",null,null,null,null,null,0]
[null,null,null,null,null,null,0]
["NORRIS Lando","Mc LAREN",null,null,null,null,0]
["PIASTRI Oscar",null,null,null,null,null,0]
[null,null,null,null,null,null,0]
["BOTTAS Valtteri","ALFA ROMÉO",null,null,null,null,0]
["GUANYU Zhou",null,null,null,null,null,0]
[null,null,null,null,null,null,0]

{"sheet":"Pays-Bas","index":17,"n_rows":34,"n_cols":17,"rows_kept":34,"cut":false,"hidden":false,"merged":[[2,5,3,5],[2,6,3,6],[0,0,1,16],[4,1,6,1],[4,2,6,2],[2,0,3,0],[2,1,3,1],[2,2,3,2],[2,3,3,3],[2,4,3,4],[7,1,9,1],[7,2,9,2],[10,1,12,1],[10,2,12,2],[13,1,15,1],[13,2,15,2],[16,1,18,1],[16,2,18,2],[19,1,21,1],[19,2,21,2],[36,1,36,3],[31,1,33,1],[31,2,33,2],[22,1,24,1],[22,2,24,2],[25,1,27,1],[25,2,27,2],[28,1,30,1],[28,2,30,2]]}
["ZANDVOORT - 27 AOUT 2023"]
[]
["PILOTES","ECURIES","VOITURES","Finish","Pôle","Pt tour","Points",null,"ÉCURIES","Points","Écart","Rang",null,"Noms","Points","Écart","Rang"]
[null,null,null,null,null,null,null,null,"MERCEDES",{"$f":"SUM($G$5:$G$7)","v":0},null,{"$f":"IF(J4=\"\",0,(RANK(J4,$J$4:$J$13)))","v":1},null,"VERSTAPPEN Max",{"$f":"IF(Belgique!$D$11=\"\",0,SUM('Bahrein:Pays-Bas'!$G$11))","v":0},0,{"$f":"IF(O4=\"\",0,(RANK(O4,$O$4:$O$23)))","v":1}]
["HAMILTON Lewis","MERCEDES",null,null,null,null,{"$f":"IFERROR(CHOOSE(D5,25,18,15,12,10,8,6,4,2,1)+(F5=1),0)","v":0},null,"Mc LAREN",{"$f":"SUM($G$29:$G$31)","v":0},{"$f":"J5-J4","v":0},{"$f":"IF(J5=\"\",0,(RANK(J5,$J$4:$J$13)))+COUNTIF(J$4:J5,J5)-1","v":2},null,"PEREZ Sergio",{"$f":"IF(Belgique!$D$11=\"\",0,SUM('Bahrein:Pays-Bas'!$G$11))","v":0},{"$f":"O4-O5","v":0},{"$f":"IF(O5=\"\",0,(RANK(O5,$O$4:$O$23)))","v":1}]
["RUSSELL George",null,null,null,null,null,{"$f":"IFERROR(CHOOSE(D6,25,18,15,12,10,8,6,4,2,1)+(F6=1),0)","v":0},null,"FERRARI",{"$f":"SUM($G$8:$G$10)","v":0},0,{"$f":"IF(J6=\"\",0,(RANK(J6,$J$4:$J$13)))+COUNTIF(J$4:J6,J6)-1","v":3},null,"ALONSO Fernando",{"$f":"IF(Belgique!$D$11=\"\",0,SUM('Bahrein:Pays-Bas'!$G$11))","v":0},{"$f":"O5-O6","v":0},1]
[null,null,null,null,null,null,0,null,"WILLIAMS",{"$f":"SUM($G$17:$G$19)","v":0},0,{"$f":"SUMIF(Belgique!$I$4:$I$13,'Pays-Bas'!$I7,Belgique!$L$4:$L$13)+$J7","v":1},null,"HAMILTON Lewis",{"$f":"IF(Belgique!$D$11=\"\",0,SUM('Bahrein:Pays-Bas'!$G$11))","v":0},0,1]
["SAINZ.Jr Carlos","FERRARI",null,null,null,null,0,null,"ALFA ROMÉO",{"$f":"SUM($G$32:$G$34)","v":0},0,{"$f":"SUMIF(Belgique!$I$4:$I$13,'Pays-Bas'!$I8,Belgique!$L$4:$L$13)+$J8","v":1},null,"SAINZ.Jr Carlos",{"$f":"IF(Belgique!$D$11=\"\",0,SUM('Bahrein:Pays-Bas'!$G$11))","v":0},0,1]
["LECLERC Charles",null,null,null,null,null,0,null,"RED BULL RACING",{"$f":"SUM($G$11:$G$13)","v":0},0,{"$f":"SUMIF(Belgique!$I$4:$I$13,'Pays-Bas'!$I9,Belgique!$L$4:$L$13)+$J9","v":1},null,"STROLL Lance",{"$f":"IF(Belgique!$D$11=\"\",0,SUM('Bahrein:Pays-Bas'!$G$11))","v":0},0,1]
[null,null,null,null,null,null,0,null,"ASTON MARTIN",{"$f":"SUM($G$14:$G$16)","v":0},0,{"$f":"SUMIF(Belgique!$I$4:$I$13,'Pays-Bas'!$I10,Belgique!$L$4:$L$13)+$J10","v":1},null,"RUSSEL George",{"$f":"IF(Belgique!$D$11=\"\",0,SUM('Bahrein:Pays-Bas'!$G$11))","v":0},0,1]
["VERSTAPPEN Max","RED BULL RACING",null,null,null,null,0,null,"ALPINE F1 TEAM",{"$f":"SUM($G$20:$G$22)","v":0},0,{"$f":"SUMIF(Belgique!$I$4:$I$13,'Pays-Bas'!$I11,Belgique!$L$4:$L$13)+$J11","v":1},null,"NORRIS Lando",{"$f":"IF(Belgique!$D$11=\"\",0,SUM('Bahrein:Pays-Bas'!$G$11))","v":0},0,1]
["PEREZ Sergio",null,null,null,null,null,0,null,"ALPHA TAURI",{"$f":"SUM($G$23:$G$25)","v":0},0,{"$f":"SUMIF(Belgique!$I$4:$I$13,'Pays-Bas'!$I12,Belgique!$L$4:$L$13)+$J12","v":1},null,"LECLERC Charles",{"$f":"IF(Belgique!$D$11=\"\",0,SUM('Bahrein:Pays-Bas'!$G$11))","v":0},0,1]
[null,null,null,null,null,null,0,null,"HAAS",{"$f":"SUM($G$26:$G$28)","v":0},0,{"$f":"IF(J13=\"\",0,(RANK(J13,$J$4:$J$13)))+COUNTIF(J$4:J13,J13)-1","v":10},null,"HULKENBERG Nico",{"$f":"IF(Belgique!$D$11=\"\",0,SUM('Bahrein:Pays-Bas'!$G$11))","v":0},0,1]
["ALONSO Fernando","ASTON MARTIN",null,null,null,null,0,null,null,null,null,null,null,"BOTTAS Valtteri",{"$f":"IF(Belgique!$D$11=\"\",0,SUM('Bahrein:Pays-Bas'!$G$11))","v":0},0,1]
["STROLL Lance",null,null,null,null,null,0,null,null,null,null,null,null,"GASLY Pierre",{"$f":"IF(Belgique!$D$11=\"\",0,SUM('Bahrein:Pays-Bas'!$G$11))","v":0},0,1]
[null,null,null,null,null,null,0,null,null,null,null,null,null,"OCON Sebastian",{"$f":"IF(Belgique!$D$11=\"\",0,SUM('Bahrein:Pays-Bas'!$G$11))","v":0},0,1]
["ALBON Alexander","WILLIAMS",null,null,null,null,0,null,null,null,null,null,null,"PIASTRI Oscar",{"$f":"IF(Belgique!$D$11=\"\",0,SUM('Bahrein:Pays-Bas'!$G$11))","v":0},0,1]
["SARGEANT Logan",null,null,null,null,null,0,null,null,null,null,null,null,"GUANYU Zhou",{"$f":"IF(Belgique!$D$11=\"\",0,SUM('Bahrein:Pays-Bas'!$G$11))","v":0},0,1]
[null,null,null,null,null,null,0,null,null,null,null,null,null,"ALBON Alexander",{"$f":"IF(Belgique!$D$11=\"\",0,SUM('Bahrein:Pays-Bas'!$G$11))","v":0},0,1]
["GASLY Pierre","ALPINE F1 TEAM",null,null,null,null,0,null,null,null,null,null,null,"MAGNUSSEN Kevin",{"$f":"IF(Belgique!$D$11=\"\",0,SUM('Bahrein:Pays-Bas'!$G$11))","v":0},0,1]
["OCON Sebastian",null,null,null,null,null,0,null,null,null,null,null,null,"TSUNODA Yoki",{"$f":"IF(Belgique!$D$11=\"\",0,SUM('Bahrein:Pays-Bas'!$G$11))","v":0},0,1]
[null,null,null,null,null,null,0,null,null,null,null,null,null,"DEVRIES Nyck",{"$f":"IF(Belgique!$D$11=\"\",0,SUM('Bahrein:Pays-Bas'!$G$11))","v":0},0,1]
["TSUNODA Yoki","ALPHA TAURI",null,null,null,null,0,null,null,null,null,null,null,"SARGEANT Logan",{"$f":"IF(Belgique!$D$11=\"\",0,SUM('Bahrein:Pays-Bas'!$G$11))","v":0},0,1]
["DEVRIES Nyck",null,null,null,null,null,0]
[null,null,null,null,null,null,0]
["MAGNUSSEN Kevin","HAAS",null,null,null,null,0]
["HULKENBERG Nico",null,null,null,null,null,0]
[null,null,null,null,null,null,0]
["NORRIS Lando","Mc LAREN",null,null,null,null,0]
["PIASTRI Oscar",null,null,null,null,null,0]
[null,null,null,null,null,null,0]
["BOTTAS Valtteri","ALFA ROMÉO",null,null,null,null,0]
["GUANYU Zhou",null,null,null,null,null,0]
[null,null,null,null,null,null,0]

{"sheet":"Italie","index":18,"n_rows":60,"n_cols":17,"rows_kept":60,"cut":false,"hidden":false,"merged":[[2,5,3,5],[2,6,3,6],[2,7,3,7],[0,0,1,16],[2,0,3,0],[2,1,3,1],[2,2,3,2],[2,3,3,3],[2,4,3,4],[4,1,6,1],[4,2,6,2],[7,1,9,1],[7,2,9,2],[10,1,12,1],[10,2,12,2],[13,1,15,1],[13,2,15,2],[16,1,18,1],[16,2,18,2],[19,1,21,1],[19,2,21,2],[36,1,36,3],[31,1,33,1],[31,2,33,2],[22,1,24,1],[22,2,24,2],[25,1,27,1],[25,2,27,2],[28,1,30,1],[28,2,30,2]]}
["MONZA - 3 SEPTEMBRE 2023"]
[]
["PILOTES","ECURIES","VOITURES","Finish","Pôle","Pt tour","Points",null,"ÉCURIES","Points","Écart","Rang",null,"Noms","Points","Écart","Rang"]
[null,null,null,null,null,null,null,null,"MERCEDES",{"$f":"SUM($G$5:$G$7)","v":0},null,{"$f":"IF(J4=\"\",0,(RANK(J4,$J$4:$J$13)))","v":1},null,"VERSTAPPEN Max",{"$f":"IF('Pays-Bas'!$D$11=\"\",0,SUM(Bahrein:Italie!$G$11))","v":0},null,{"$f":"IF(O4=\"\",0,(RANK(O4,$O$4:$O$23)))","v":1}]
["HAMILTON Lewis","MERCEDES",null,null,null,null,{"$f":"IFERROR(CHOOSE(D5,25,18,15,12,10,8,6,4,2,1)+(F5=1),0)","v":0},null,"Mc LAREN",{"$f":"SUM($G$29:$G$31)","v":0},{"$f":"J5-J4","v":0},{"$f":"IF(J5=\"\",0,(RANK(J5,$J$4:$J$13)))+COUNTIF(J$4:J5,J5)-1","v":2},null,"PEREZ Sergio",{"$f":"IF('Pays-Bas'!$D$11=\"\",0,SUM(Bahrein:Italie!$G$11))","v":0},{"$f":"O4-O5","v":0},{"$f":"IF(O5=\"\",0,(RANK(O5,$C$40:$C$60)))","v":1}]
["RUSSELL George",null,null,null,null,null,{"$f":"IFERROR(CHOOSE(D6,25,18,15,12,10,8,6,4,2,1)+(F6=1),0)","v":0},null,"FERRARI",{"$f":"SUM($G$8:$G$10)","v":0},0,{"$f":"IF(J6=\"\",0,(RANK(J6,$J$4:$J$13)))+COUNTIF(J$4:J6,J6)-1","v":3},null,"ALONSO Fernando",{"$f":"IF('Pays-Bas'!$D$11=\"\",0,SUM(Bahrein:Italie!$G$11))","v":0},0,1]
[null,null,null,null,null,null,0,null,"WILLIAMS",{"$f":"SUM($G$17:$G$19)","v":0},0,{"$f":"SUMIF('Pays-Bas'!$I$4:$I$13,Italie!$I7,'Pays-Bas'!$L$4:$L$13)+$J7","v":1},null,"HAMILTON Lewis",{"$f":"IF('Pays-Bas'!$D$11=\"\",0,SUM(Bahrein:Italie!$G$11))","v":0},0,1]
["SAINZ.Jr Carlos","FERRARI",null,null,null,null,0,null,"ALFA ROMÉO",{"$f":"SUM($G$32:$G$34)","v":0},0,{"$f":"SUMIF('Pays-Bas'!$I$4:$I$13,Italie!$I8,'Pays-Bas'!$L$4:$L$13)+$J8","v":1},null,"SAINZ.Jr Carlos",{"$f":"IF('Pays-Bas'!$D$11=\"\",0,SUM(Bahrein:Italie!$G$11))","v":0},0,1]
["LECLERC Charles",null,null,null,null,null,0,null,"RED BULL RACING",{"$f":"SUM($G$11:$G$13)","v":0},0,{"$f":"SUMIF('Pays-Bas'!$I$4:$I$13,Italie!$I9,'Pays-Bas'!$L$4:$L$13)+$J9","v":1},null,"STROLL Lance",{"$f":"IF('Pays-Bas'!$D$11=\"\",0,SUM(Bahrein:Italie!$G$11))","v":0},0,1]
[null,null,null,null,null,null,0,null,"ASTON MARTIN",{"$f":"SUM($G$14:$G$16)","v":0},0,{"$f":"SUMIF('Pays-Bas'!$I$4:$I$13,Italie!$I10,'Pays-Bas'!$L$4:$L$13)+$J10","v":1},null,"RUSSEL George",{"$f":"IF('Pays-Bas'!$D$11=\"\",0,SUM(Bahrein:Italie!$G$11))","v":0},0,1]
["VERSTAPPEN Max","RED BULL RACING",null,null,null,null,0,null,"ALPINE F1 TEAM",{"$f":"SUM($G$20:$G$22)","v":0},0,{"$f":"SUMIF('Pays-Bas'!$I$4:$I$13,Italie!$I11,'Pays-Bas'!$L$4:$L$13)+$J11","v":1},null,"NORRIS Lando",{"$f":"IF('Pays-Bas'!$D$11=\"\",0,SUM(Bahrein:Italie!$G$11))","v":0},0,1]
["PEREZ Sergio",null,null,null,null,null,0,null,"ALPHA TAURI",{"$f":"SUM($G$23:$G$25)","v":0},0,{"$f":"SUMIF('Pays-Bas'!$I$4:$I$13,Italie!$I12,'Pays-Bas'!$L$4:$L$13)+$J12","v":1},null,"LECLERC Charles",{"$f":"IF('Pays-Bas'!$D$11=\"\",0,SUM(Bahrein:Italie!$G$11))","v":0},0,1]
[null,null,null,null,null,null,0,null,"HAAS",{"$f":"SUM($G$26:$G$28)","v":0},0,{"$f":"IF(J13=\"\",0,(RANK(J13,$J$4:$J$13)))+COUNTIF(J$4:J13,J13)-1","v":10},null,"BOTTAS Valtteri",{"$f":"IF('Pays-Bas'!$D$11=\"\",0,SUM(Bahrein:Italie!$G$11))","v":0},0,1]
["ALONSO Fernando","ASTON MARTIN",null,null,null,null,0,null,null,null,null,null,null,"GASLY Pierre",{"$f":"IF('Pays-Bas'!$D$11=\"\",0,SUM(Bahrein:Italie!$G$11))","v":0},0,1]
["STROLL Lance",null,null,null,null,null,0,null,null,null,null,null,null,"OCON Sebastian",{"$f":"IF('Pays-Bas'!$D$11=\"\",0,SUM(Bahrein:Italie!$G$11))","v":0},0,1]
[null,null,null,null,null,null,0,null,null,null,null,null,null,"PIASTRI Oscar",{"$f":"IF('Pays-Bas'!$D$11=\"\",0,SUM(Bahrein:Italie!$G$11))","v":0},0,1]
["ALBON Alexander","WILLIAMS",null,null,null,null,0,null,null,null,null,null,null,"GUANYU Zhou",{"$f":"IF('Pays-Bas'!$D$11=\"\",0,SUM(Bahrein:Italie!$G$11))","v":0},0,1]
["SARGEANT Logan",null,null,null,null,null,0,null,null,null,null,null,null,"ALBON Alexander",{"$f":"IF('Pays-Bas'!$D$11=\"\",0,SUM(Bahrein:Italie!$G$11))","v":0},0,1]
[null,null,null,null,null,null,0,null,null,null,null,null,null,"PIASTRI Oscar",{"$f":"IF('Pays-Bas'!$D$11=\"\",0,SUM(Bahrein:Italie!$G$11))","v":0},0,1]
["GASLY Pierre","ALPINE F1 TEAM",null,null,null,null,0,null,null,null,null,null,null,"HULKENBERG Nico",{"$f":"IF('Pays-Bas'!$D$11=\"\",0,SUM(Bahrein:Italie!$G$11))","v":0},0,1]
["OCON Sebastian",null,null,null,null,null,0,null,null,null,null,null,null,"MAGNUSSEN Kevin",{"$f":"IF('Pays-Bas'!$D$11=\"\",0,SUM(Bahrein:Italie!$G$11))","v":0},0,1]
[null,null,null,null,null,null,0,null,null,null,null,null,null,"TSUNODA Yoki",{"$f":"IF('Pays-Bas'!$D$11=\"\",0,SUM(Bahrein:Italie!$G$11))","v":0},0,1]
["TSUNODA Yoki","ALPHA TAURI",null,null,null,null,0,null,null,null,null,null,null,"DEVRIES Nyck",{"$f":"IF('Pays-Bas'!$D$11=\"\",0,SUM(Bahrein:Italie!$G$11))","v":0},0,1]
["DEVRIES Nyck",null,null,null,null,null,0]
[null,null,null,null,null,null,0]
["MAGNUSSEN Kevin","HAAS",null,null,null,null,0]
["HULKENBERG Nico",null,null,null,null,null,0]
[null,null,null,null,null,null,0]
["NORRIS Lando","Mc LAREN",null,null,null,null,0]
["PIASTRI Oscar",null,null,null,null,null,0]
[null,null,null,null,null,null,0]
["BOTTAS Valtteri","ALFA ROMÉO",null,null,null,null,0]
["GUANYU Zhou",null,null,null,null,null,0]
[null,null,null,null,null,null,0]
[]
[]
[]
[]
[]
[null,"SARGEANT Logan",{"$f":"IF('Pays-Bas'!$D$11=\"\",0,SUM(Bahrein:Italie!$G$11))","v":0}]
[]
[]
[]
[]
[]
[]
[]
[]
[]
[]
[]
[]
[]
[]
[]
[]
[]
[]
[]
[null,null,null,{"$f":"O23-C60","v":0},{"$f":"IF(C60=\"\",0,(RANK(C60,$C$40:$C$60)))","v":0}]

{"sheet":"Singapour","index":19,"n_rows":34,"n_cols":17,"rows_kept":34,"cut":false,"hidden":false,"merged":[[0,0,1,16],[31,1,33,1],[31,2,33,2],[22,1,24,1],[22,2,24,2],[25,1,27,1],[25,2,27,2],[28,1,30,1],[28,2,30,2],[13,1,15,1],[13,2,15,2],[16,1,18,1],[16,2,18,2],[19,1,21,1],[19,2,21,2],[2,4,3,4],[2,0,3,0],[2,1,3,1],[2,2,3,2],[2,3,3,3],[7,1,9,1],[7,2,9,2],[2,5,3,5],[2,6,3,6],[4,1,6,1],[4,2,6,2],[36,1,36,3],[10,1,12,1],[10,2,12,2]]}
["SINGAPOUR - 17 SEPTEMBRE 2023"]
[]
["PILOTES","ECURIES","VOITURES","Finish","Pôle","Pt tour","Points",null,"ÉCURIES","Points","Écart","Rang",null,"Noms","Points","Écart","Rang"]
[null,null,null,null,null,null,null,null,"ALPINE F1 TEAM",{"$f":"SUM($G$20:$G$22)","v":0},null,{"$f":"IF(J4=\"\",0,(RANK(J4,$J$4:$J$13)))","v":1},null,"VERSTAPPEN Max",{"$f":"IF(Italie!$D$11=\"\",0,SUM(Bahrein:Singapour!$G$11))","v":0},null,{"$f":"IF(O4=\"\",0,(RANK(O4,$O$4:$O$23)))","v":1}]
["HAMILTON Lewis","MERCEDES",null,null,null,null,{"$f":"IFERROR(CHOOSE(D5,25,18,15,12,10,8,6,4,2,1)+(F5=1),0)","v":0},null,"Mc LAREN",{"$f":"SUM($G$29:$G$31)","v":0},{"$f":"J5-J4","v":0},{"$f":"IF(J5=\"\",0,(RANK(J5,$J$4:$J$13)))+COUNTIF(J$4:J5,J5)-1","v":2},null,"PEREZ Sergio",{"$f":"IF(Italie!$D$11=\"\",0,SUM(Bahrein:Singapour!$G$11))","v":0},{"$f":"O4-O5","v":0},{"$f":"IF(O5=\"\",0,(RANK(O5,$O$4:$O$23)))","v":1}]
["RUSSELL George",null,null,null,null,null,{"$f":"IFERROR(CHOOSE(D6,25,18,15,12,10,8,6,4,2,1)+(F6=1),0)","v":0},null,"FERRARI",{"$f":"SUM($G$8:$G$10)","v":0},0,{"$f":"IF(J6=\"\",0,(RANK(J6,$J$4:$J$13)))+COUNTIF(J$4:J6,J6)-1","v":3},null,"ALONSO Fernando",{"$f":"IF(Italie!$D$11=\"\",0,SUM(Bahrein:Singapour!$G$11))","v":0},{"$f":"O5-O6","v":0},1]
[null,null,null,null,null,null,0,null,"WILLIAMS",{"$f":"SUM($G$17:$G$19)","v":0},0,{"$f":"SUMIF(Italie!$I$4:$I$13,Singapour!$I7,Italie!$L$4:$L$13)+$J$4","v":1},null,"HAMILTON Lewis",{"$f":"IF(Italie!$D$11=\"\",0,SUM(Bahrein:Singapour!$G$11))","v":0},0,1]
["SAINZ.Jr Carlos","FERRARI",null,null,null,null,0,null,"ALFA ROMÉO",{"$f":"SUM($G$32:$G$34)","v":0},0,{"$f":"SUMIF(Italie!$I$4:$I$13,Singapour!$I8,Italie!$L$4:$L$13)+$J$4","v":1},null,"SAINZ.Jr Carlos",{"$f":"IF(Italie!$D$11=\"\",0,SUM(Bahrein:Singapour!$G$11))","v":0},0,1]
["LECLERC Charles",null,null,null,null,null,0,null,"MERCEDES",{"$f":"SUM($G$5:$G$7)","v":0},0,{"$f":"SUMIF(Italie!$I$4:$I$13,Singapour!$I9,Italie!$L$4:$L$13)+$J$4","v":1},null,"RUSSEL George",{"$f":"IF(Italie!$D$11=\"\",0,SUM(Bahrein:Singapour!$G$11))","v":0},0,1]
[null,null,null,null,null,null,0,null,"RED BULL RACING",{"$f":"SUM($G$11:$G$13)","v":0},0,{"$f":"SUMIF(Italie!$I$4:$I$13,Singapour!$I10,Italie!$L$4:$L$13)+$J$4","v":1},null,"STROLL Lance",{"$f":"IF(Italie!$D$11=\"\",0,SUM(Bahrein:Singapour!$G$11))","v":0},0,1]
["VERSTAPPEN Max","RED BULL RACING",null,null,null,null,0,null,"ASTON MARTIN",{"$f":"SUM($G$14:$G$16)","v":0},0,{"$f":"SUMIF(Italie!$I$4:$I$13,Singapour!$I11,Italie!$L$4:$L$13)+$J$4","v":1},null,"NORRIS Lando",{"$f":"IF(Italie!$D$11=\"\",0,SUM(Bahrein:Singapour!$G$11))","v":0},0,1]
["PEREZ Sergio",null,null,null,null,null,0,null,"ALPHA TAURI",{"$f":"SUM($G$23:$G$25)","v":0},0,{"$f":"SUMIF(Italie!$I$4:$I$13,Singapour!$I12,Italie!$L$4:$L$13)+$J$4","v":1},null,"BOTTAS Valtteri",{"$f":"IF(Italie!$D$11=\"\",0,SUM(Bahrein:Singapour!$G$11))","v":0},0,1]
[null,null,null,null,null,null,0,null,"HAAS",{"$f":"SUM($G$26:$G$28)","v":0},0,{"$f":"IF(J13=\"\",0,(RANK(J13,$J$4:$J$13)))+COUNTIF(J$4:J13,J13)-1","v":10},null,"TSUNODA Yoki",{"$f":"IF(Italie!$D$11=\"\",0,SUM(Bahrein:Singapour!$G$11))","v":0},0,1]
["ALONSO Fernando","ASTON MARTIN",null,null,null,null,0,null,null,null,null,null,null,"GASLY Pierre",{"$f":"IF(Italie!$D$11=\"\",0,SUM(Bahrein:Singapour!$G$11))","v":0},0,1]
["STROLL Lance",null,null,null,null,null,0,null,null,null,null,null,null,"ALBON Alexander",{"$f":"IF(Italie!$D$11=\"\",0,SUM(Bahrein:Singapour!$G$11))","v":0},0,1]
[null,null,null,null,null,null,0,null,null,null,null,null,null,"DEVRIES Nyck",{"$f":"IF(Italie!$D$11=\"\",0,SUM(Bahrein:Singapour!$G$11))","v":0},0,1]
["ALBON Alexander","WILLIAMS",null,null,null,null,0,null,null,null,null,null,null,"GUANYU Zhou",{"$f":"IF(Italie!$D$11=\"\",0,SUM(Bahrein:Singapour!$G$11))","v":0},0,1]
["SARGEANT Logan",null,null,null,null,null,0,null,null,null,null,null,null,"MAGNUSSEN Kevin",{"$f":"IF(Italie!$D$11=\"\",0,SUM(Bahrein:Singapour!$G$11))","v":0},0,1]
[null,null,null,null,null,null,0,null,null,null,null,null,null,"PIASTRI Oscar",{"$f":"IF(Italie!$D$11=\"\",0,SUM(Bahrein:Singapour!$G$11))","v":0},0,1]
["GASLY Pierre","ALPINE F1 TEAM",null,null,null,null,0,null,null,null,null,null,null,"HULKENBERG Nico",{"$f":"IF(Italie!$D$11=\"\",0,SUM(Bahrein:Singapour!$G$11))","v":0},0,1]
["OCON Sebastian",null,null,null,null,null,0,null,null,null,null,null,null,"OCON Sebastian",{"$f":"IF(Italie!$D$11=\"\",0,SUM(Bahrein:Singapour!$G$11))","v":0},0,1]
[null,null,null,null,null,null,0,null,null,null,null,null,null,"SARGEANT Logan",{"$f":"IF(Italie!$D$11=\"\",0,SUM(Bahrein:Singapour!$G$11))","v":0},0,1]
["TSUNODA Yoki","ALPHA TAURI",null,null,null,null,0,null,null,null,null,null,null,"LECLERC Charles",{"$f":"IF(Italie!$D$11=\"\",0,SUM(Bahrein:Singapour!$G$11))","v":0},0,1]
["DEVRIES Nyck",null,null,null,null,null,0]
[null,null,null,null,null,null,0]
["MAGNUSSEN Kevin","HAAS",null,null,null,null,0]
["HULKENBERG Nico",null,null,null,null,null,0]
[null,null,null,null,null,null,0]
["NORRIS Lando","Mc LAREN",null,null,null,null,0]
["PIASTRI Oscar",null,null,null,null,null,0]
[null,null,null,null,null,null,0]
["BOTTAS Valtteri","ALFA ROMÉO",null,null,null,null,0]
["GUANYU Zhou",null,null,null,null,null,0]
[null,null,null,null,null,null,0]

{"sheet":"Japon","index":20,"n_rows":34,"n_cols":17,"rows_kept":34,"cut":false,"hidden":false,"merged":[[2,4,3,4],[2,5,3,5],[2,6,3,6],[4,1,6,1],[4,2,6,2],[2,1,3,1],[2,2,3,2],[2,3,3,3],[7,1,9,1],[7,2,9,2],[10,1,12,1],[10,2,12,2],[19,2,21,2],[0,0,1,16],[36,1,36,3],[31,1,33,1],[31,2,33,2],[2,0,3,0],[22,1,24,1],[22,2,24,2],[25,1,27,1],[25,2,27,2],[28,1,30,1],[28,2,30,2],[13,1,15,1],[13,2,15,2],[16,1,18,1],[16,2,18,2],[19,1,21,1]]}
["SUZUKA- 24 SEPTEMBRE 2023"]
[]
["PILOTES","ECURIES","VOITURES","Finish","Pôle","Pt tour","Points",null,"ÉCURIES","Points","Écart","Rang",null,"Noms","Points","Écart","Rang"]
[null,null,null,null,null,null,null,null,"Mc LAREN",{"$f":"SUM($G$29:$G$31)","v":0},null,{"$f":"IF(J4=\"\",0,(RANK(J4,$J$4:$J$13)))","v":1},null,"VERSTAPPEN Max",{"$f":"IF(Singapour!$D$11=\"\",0,SUM(Bahrein:Japon!$G$11))","v":0},null,{"$f":"IF(O4=\"\",0,(RANK(O4,$O$4:$O$23)))","v":1}]
["HAMILTON Lewis","MERCEDES",null,null,null,null,{"$f":"IFERROR(CHOOSE(D5,25,18,15,12,10,8,6,4,2,1)+(F5=1),0)","v":0},null,"FERRARI",{"$f":"SUM($G$8:$G$10)","v":0},{"$f":"J5-J4","v":0},{"$f":"IF(J5=\"\",0,(RANK(J5,$J$4:$J$13)))+COUNTIF(J$4:J5,J5)-1","v":2},null,"PEREZ Sergio",{"$f":"IF(Singapour!$D$11=\"\",0,SUM(Bahrein:Japon!$G$11))","v":0},{"$f":"O4-O5","v":0},{"$f":"IF(O5=\"\",0,(RANK(O5,$O$4:$O$23)))","v":1}]
["RUSSELL George",null,null,null,null,null,{"$f":"IFERROR(CHOOSE(D6,25,18,15,12,10,8,6,4,2,1)+(F6=1),0)","v":0},null,"WILLIAMS",{"$f":"SUM($G$17:$G$19)","v":0},0,{"$f":"IF(J6=\"\",0,(RANK(J6,$J$4:$J$13)))+COUNTIF(J$4:J6,J6)-1","v":3},null,"ALONSO Fernando",{"$f":"IF(Singapour!$D$11=\"\",0,SUM(Bahrein:Japon!$G$11))","v":0},{"$f":"O5-O6","v":0},1]
[null,null,null,null,null,null,0,null,"ALFA ROMÉO",{"$f":"SUM($G$32:$G$34)","v":0},0,{"$f":"SUMIF(Singapour!$I$4:$I$13,Japon!$I7,Singapour!$L$4:$L$13)+$J$4","v":1},null,"HAMILTON Lewis",{"$f":"IF(Singapour!$D$11=\"\",0,SUM(Bahrein:Japon!$G$11))","v":0},0,1]
["SAINZ.Jr Carlos","FERRARI",null,null,null,null,0,null,"MERCEDES",{"$f":"SUM($G$5:$G$7)","v":0},0,{"$f":"SUMIF(Singapour!$I$4:$I$13,Japon!$I8,Singapour!$L$4:$L$13)+$J$4","v":1},null,"SAINZ.Jr Carlos",{"$f":"IF(Singapour!$D$11=\"\",0,SUM(Bahrein:Japon!$G$11))","v":0},0,1]
["LECLERC Charles",null,null,null,null,null,0,null,"RED BULL RACING",{"$f":"SUM($G$11:$G$13)","v":0},0,{"$f":"SUMIF(Singapour!$I$4:$I$13,Japon!$I9,Singapour!$L$4:$L$13)+$J$4","v":1},null,"STROLL Lance",{"$f":"IF(Singapour!$D$11=\"\",0,SUM(Bahrein:Japon!$G$11))","v":0},0,1]
[null,null,null,null,null,null,0,null,"ASTON MARTIN",{"$f":"SUM($G$14:$G$16)","v":0},0,{"$f":"SUMIF(Singapour!$I$4:$I$13,Japon!$I10,Singapour!$L$4:$L$13)+$J$4","v":1},null,"RUSSEL George",{"$f":"IF(Singapour!$D$11=\"\",0,SUM(Bahrein:Japon!$G$11))","v":0},0,1]
["VERSTAPPEN Max","RED BULL RACING",null,null,null,null,0,null,"ALPINE F1 TEAM",{"$f":"SUM($G$20:$G$22)","v":0},0,{"$f":"SUMIF(Singapour!$I$4:$I$13,Japon!$I11,Singapour!$L$4:$L$13)+$J$4","v":1},null,"NORRIS Lando",{"$f":"IF(Singapour!$D$11=\"\",0,SUM(Bahrein:Japon!$G$11))","v":0},0,1]
["PEREZ Sergio",null,null,null,null,null,0,null,"ALPHA TAURI",{"$f":"SUM($G$23:$G$25)","v":0},0,{"$f":"SUMIF(Singapour!$I$4:$I$13,Japon!$I12,Singapour!$L$4:$L$13)+$J$4","v":1},null,"LECLERC Charles",{"$f":"IF(Singapour!$D$11=\"\",0,SUM(Bahrein:Japon!$G$11))","v":0},0,1]
[null,null,null,null,null,null,0,null,"HAAS",{"$f":"SUM($G$26:$G$28)","v":0},0,{"$f":"IF(J13=\"\",0,(RANK(J13,$J$4:$J$13)))+COUNTIF(J$4:J13,J13)-1","v":10},null,"HULKENBERG Nico",{"$f":"IF(Singapour!$D$11=\"\",0,SUM(Bahrein:Japon!$G$11))","v":0},0,1]
["ALONSO Fernando","ASTON MARTIN",null,null,null,null,0,null,null,null,null,null,null,"GASLY Pierre",{"$f":"IF(Singapour!$D$11=\"\",0,SUM(Bahrein:Japon!$G$11))","v":0},0,1]
["STROLL Lance",null,null,null,null,null,0,null,null,null,null,null,null,"OCON Sebastian",{"$f":"IF(Singapour!$D$11=\"\",0,SUM(Bahrein:Japon!$G$11))","v":0},0,1]
[null,null,null,null,null,null,0,null,null,null,null,null,null,"BOTTAS Valtteri",{"$f":"IF(Singapour!$D$11=\"\",0,SUM(Bahrein:Japon!$G$11))","v":0},0,1]
["ALBON Alexander","WILLIAMS",null,null,null,null,0,null,null,null,null,null,null,"PIASTRI Oscar",{"$f":"IF(Singapour!$D$11=\"\",0,SUM(Bahrein:Japon!$G$11))","v":0},0,1]
["SARGEANT Logan",null,null,null,null,null,0,null,null,null,null,null,null,"GUANYU Zhou",{"$f":"IF(Singapour!$D$11=\"\",0,SUM(Bahrein:Japon!$G$11))","v":0},0,1]
[null,null,null,null,null,null,0,null,null,null,null,null,null,"ALBON Alexander",{"$f":"IF(Singapour!$D$11=\"\",0,SUM(Bahrein:Japon!$G$11))","v":0},0,1]
["GASLY Pierre","ALPINE F1 TEAM",null,null,null,null,0,null,null,null,null,null,null,"MAGNUSSEN Kevin",{"$f":"IF(Singapour!$D$11=\"\",0,SUM(Bahrein:Japon!$G$11))","v":0},0,1]
["OCON Sebastian",null,null,null,null,null,0,null,null,null,null,null,null,"TSUNODA Yoki",{"$f":"IF(Singapour!$D$11=\"\",0,SUM(Bahrein:Japon!$G$11))","v":0},0,1]
[null,null,null,null,null,null,0,null,null,null,null,null,null,"DEVRIES Nyck",{"$f":"IF(Singapour!$D$11=\"\",0,SUM(Bahrein:Japon!$G$11))","v":0},0,1]
["TSUNODA Yoki","ALPHA TAURI",null,null,null,null,0,null,null,null,null,null,null,"SARGEANT Logan",{"$f":"IF(Singapour!$D$11=\"\",0,SUM(Bahrein:Japon!$G$11))","v":0},0,1]
["DEVRIES Nyck",null,null,null,null,null,0]
[null,null,null,null,null,null,0]
["MAGNUSSEN Kevin","HAAS",null,null,null,null,0]
["HULKENBERG Nico",null,null,null,null,null,0]
[null,null,null,null,null,null,0]
["NORRIS Lando","Mc LAREN",null,null,null,null,0]
["PIASTRI Oscar",null,null,null,null,null,0]
[null,null,null,null,null,null,0]
["BOTTAS Valtteri","ALFA ROMÉO",null,null,null,null,0]
["GUANYU Zhou",null,null,null,null,null,0]
[null,null,null,null,null,null,0]

{"sheet":"Qatar","index":21,"n_rows":34,"n_cols":17,"rows_kept":34,"cut":false,"hidden":false,"merged":[[2,5,3,5],[2,6,3,6],[2,7,3,7],[0,0,1,16],[2,0,3,0],[2,1,3,1],[2,2,3,2],[2,3,3,3],[2,4,3,4],[4,1,6,1],[4,2,6,2],[7,1,9,1],[7,2,9,2],[10,1,12,1],[10,2,12,2],[13,1,15,1],[13,2,15,2],[16,1,18,1],[16,2,18,2],[19,1,21,1],[19,2,21,2],[36,1,36,3],[31,1,33,1],[31,2,33,2],[22,1,24,1],[22,2,24,2],[25,1,27,1],[25,2,27,2],[28,1,30,1],[28,2,30,2]]}
["LOSAIL - 8 OCTOBRE 2023 "]
[]
["PILOTES","ECURIES","VOITURES","Finish","Pôle","Pt tour","Points","Sprint","ÉCURIES","Points","Écart","Rang",null,"Noms","Points",null,"Rang"]
[null,null,null,null,null,null,null,null,"ALPINE F1 TEAM",{"$f":"SUM($G$20:$G$22)","v":0},null,{"$f":"IF(J4=\"\",0,(RANK(J4,$J$4:$J$13)))","v":1},null,"VERSTAPPEN Max",{"$f":"IF(Japon!$D$11=\"\",0,SUM(Bahrein:Qatar!$G$11))","v":0},0,{"$f":"IF(O4=\"\",0,(RANK(O4,$O$4:$O$23)))","v":1}]
["HAMILTON Lewis","MERCEDES",null,null,null,null,{"$f":"IFERROR(CHOOSE(D5,25,18,15,12,10,8,6,4,2,1),0)+IFERROR(CHOOSE(H5,8,7,6,5,4,3,2,1),0)+F5","v":0},null,"Mc LAREN",{"$f":"SUM($G$29:$G$31)","v":0},{"$f":"J5-J4","v":0},{"$f":"IF(J5=\"\",0,(RANK(J5,$J$4:$J$13)))+COUNTIF(J$4:J5,J5)-1","v":2},null,"PEREZ Sergio",{"$f":"IF(Japon!$D$11=\"\",0,SUM(Bahrein:Qatar!$G$11))","v":0},{"$f":"O4-O5","v":0},{"$f":"IF(O5=\"\",0,(RANK(O5,$O$4:$O$23)))","v":1}]
["RUSSELL George",null,null,null,null,null,{"$f":"IFERROR(CHOOSE(D6,25,18,15,12,10,8,6,4,2,1),0)+IFERROR(CHOOSE(H6,8,7,6,5,4,3,2,1),0)+F6","v":0},null,"FERRARI",{"$f":"SUM($G$8:$G$10)","v":0},0,{"$f":"IF(J6=\"\",0,(RANK(J6,$J$4:$J$13)))+COUNTIF(J$4:J6,J6)-1","v":3},null,"ALONSO Fernando",{"$f":"IF(Japon!$D$11=\"\",0,SUM(Bahrein:Qatar!$G$11))","v":0},{"$f":"O5-O6","v":0},1]
[null,null,null,null,null,null,0,null,"WILLIAMS",{"$f":"SUM($G$17:$G$19)","v":0},0,{"$f":"SUMIF(Japon!$I$4:$I$13,Qatar!$I7,Japon!$L$4:$L$13)+$J7","v":3},null,"HAMILTON Lewis",{"$f":"IF(Japon!$D$11=\"\",0,SUM(Bahrein:Qatar!$G$11))","v":0},0,1]
["SAINZ.Jr Carlos","FERRARI",null,null,null,null,0,null,"ALFA ROMÉO",{"$f":"SUM($G$32:$G$34)","v":0},0,{"$f":"SUMIF(Japon!$I$4:$I$13,Qatar!$I8,Japon!$L$4:$L$13)+$J8","v":1},null,"SAINZ.Jr Carlos",{"$f":"IF(Japon!$D$11=\"\",0,SUM(Bahrein:Qatar!$G$11))","v":0},0,1]
["LECLERC Charles",null,null,null,null,null,0,null,"MERCEDES",{"$f":"SUM($G$5:$G$7)","v":0},0,{"$f":"SUMIF(Japon!$I$4:$I$13,Qatar!$I9,Japon!$L$4:$L$13)+$J9","v":1},null,"STROLL Lance",{"$f":"IF(Japon!$D$11=\"\",0,SUM(Bahrein:Qatar!$G$11))","v":0},0,1]
[null,null,null,null,null,null,0,null,"RED BULL RACING",{"$f":"SUM($G$11:$G$13)","v":0},0,{"$f":"SUMIF(Japon!$I$4:$I$13,Qatar!$I10,Japon!$L$4:$L$13)+$J10","v":1},null,"RUSSEL George",{"$f":"IF(Japon!$D$11=\"\",0,SUM(Bahrein:Qatar!$G$11))","v":0},0,1]
["VERSTAPPEN Max","RED BULL RACING",null,null,null,null,0,null,"ASTON MARTIN",{"$f":"SUM($G$14:$G$16)","v":0},0,{"$f":"SUMIF(Japon!$I$4:$I$13,Qatar!$I11,Japon!$L$4:$L$13)+$J11","v":1},null,"NORRIS Lando",{"$f":"IF(Japon!$D$11=\"\",0,SUM(Bahrein:Qatar!$G$11))","v":0},0,1]
["PEREZ Sergio",null,null,null,null,null,0,null,"ALPHA TAURI",{"$f":"SUM($G$23:$G$25)","v":0},0,{"$f":"SUMIF(Japon!$I$4:$I$13,Qatar!$I12,Japon!$L$4:$L$13)+$J12","v":1},null,"LECLERC Charles",{"$f":"IF(Japon!$D$11=\"\",0,SUM(Bahrein:Qatar!$G$11))","v":0},0,1]
[null,null,null,null,null,null,0,null,"HAAS",{"$f":"SUM($G$26:$G$28)","v":0},0,{"$f":"IF(J13=\"\",0,(RANK(J13,$J$4:$J$13)))+COUNTIF(J$4:J13,J13)-1","v":10},null,"HULKENBERG Nico",{"$f":"IF(Japon!$D$11=\"\",0,SUM(Bahrein:Qatar!$G$11))","v":0},0,1]
["ALONSO Fernando","ASTON MARTIN",null,null,null,null,0,null,null,null,null,null,null,"BOTTAS Valtteri",{"$f":"IF(Japon!$D$11=\"\",0,SUM(Bahrein:Qatar!$G$11))","v":0},0,1]
["STROLL Lance",null,null,null,null,null,0,null,null,null,null,null,null,"GASLY Pierre",{"$f":"IF(Japon!$D$11=\"\",0,SUM(Bahrein:Qatar!$G$11))","v":0},0,1]
[null,null,null,null,null,null,0,null,null,null,null,null,null,"OCON Sebastian",{"$f":"IF(Japon!$D$11=\"\",0,SUM(Bahrein:Qatar!$G$11))","v":0},0,1]
["ALBON Alexander","WILLIAMS",null,null,null,null,0,null,null,null,null,null,null,"PIASTRI Oscar",{"$f":"IF(Japon!$D$11=\"\",0,SUM(Bahrein:Qatar!$G$11))","v":0},0,1]
["SARGEANT Logan",null,null,null,null,null,0,null,null,null,null,null,null,"GUANYU Zhou",{"$f":"IF(Japon!$D$11=\"\",0,SUM(Bahrein:Qatar!$G$11))","v":0},0,1]
[null,null,null,null,null,null,0,null,null,null,null,null,null,"MAGNUSSEN Kevin",{"$f":"IF(Japon!$D$11=\"\",0,SUM(Bahrein:Qatar!$G$11))","v":0},0,1]
["GASLY Pierre","ALPINE F1 TEAM",null,null,null,null,0,null,null,null,null,null,null,"ALBON Alexander",{"$f":"IF(Japon!$D$11=\"\",0,SUM(Bahrein:Qatar!$G$11))","v":0},0,1]
["OCON Sebastian",null,null,null,null,null,0,null,null,null,null,null,null,"TSUNODA Yoki",{"$f":"IF(Japon!$D$11=\"\",0,SUM(Bahrein:Qatar!$G$11))","v":0},0,1]
[null,null,null,null,null,null,0,null,null,null,null,null,null,"SARGEANT Logan",{"$f":"IF(Japon!$D$11=\"\",0,SUM(Bahrein:Qatar!$G$11))","v":0},0,1]
["TSUNODA Yoki","ALPHA TAURI",null,null,null,null,0,null,null,null,null,null,null,"DEVRIES Nyck",{"$f":"IF(Japon!$D$11=\"\",0,SUM(Bahrein:Qatar!$G$11))","v":0},0,1]
["DEVRIES Nyck",null,null,null,null,null,0]
[null,null,null,null,null,null,0]
["MAGNUSSEN Kevin","HAAS",null,null,null,null,0]
["HULKENBERG Nico",null,null,null,null,null,0]
[null,null,null,null,null,null,0]
["NORRIS Lando","Mc LAREN",null,null,null,null,0]
["PIASTRI Oscar",null,null,null,null,null,0]
[null,null,null,null,null,null,0]
["BOTTAS Valtteri","ALFA ROMÉO",null,null,null,null,0]
["GUANYU Zhou",null,null,null,null,null,0]
[null,null,null,null,null,null,0]

{"sheet":"USA","index":22,"n_rows":34,"n_cols":17,"rows_kept":34,"cut":false,"hidden":false,"merged":[[0,0,1,16],[19,1,21,1],[19,2,21,2],[31,1,33,1],[31,2,33,2],[22,1,24,1],[22,2,24,2],[25,1,27,1],[25,2,27,2],[28,1,30,1],[28,2,30,2],[10,2,12,2],[13,1,15,1],[13,2,15,2],[16,1,18,1],[16,2,18,2],[2,7,3,7],[36,1,36,3],[2,0,3,0],[2,1,3,1],[2,2,3,2],[2,3,3,3],[7,1,9,1],[7,2,9,2],[10,1,12,1],[2,4,3,4],[2,5,3,5],[2,6,3,6],[4,1,6,1],[4,2,6,2]]}
["AUSTIN - 22 OCTOBRE 2023"]
[]
["PILOTES","ECURIES","VOITURES","Finish","Pôle","Pt tour","Points","Sprint","ÉCURIES","Points","Écart","Rang",null,"Noms","Points","Écart","Rang"]
[null,null,null,null,null,null,null,null,"Mc LAREN",{"$f":"SUM($G$29:$G$31)","v":0},null,{"$f":"IF(J4=\"\",0,(RANK(J4,$J$4:$J$13)))","v":1},null,"VERSTAPPEN Max",{"$f":"IF(Qatar!$D$11=\"\",0,SUM(Bahrein:USA!$G$11))","v":0},null,{"$f":"IF(O4=\"\",0,(RANK(O4,$O$4:$O$23)))","v":1}]
["HAMILTON Lewis","MERCEDES",null,null,null,null,{"$f":"IFERROR(CHOOSE(D5,25,18,15,12,10,8,6,4,2,1),0)+IFERROR(CHOOSE(H5,8,7,6,5,4,3,2,1),0)+F5","v":0},null,"FERRARI",{"$f":"SUM($G$8:$G$10)","v":0},{"$f":"J5-J4","v":0},{"$f":"IF(J5=\"\",0,(RANK(J5,$J$4:$J$13)))+COUNTIF(J$4:J5,J5)-1","v":2},null,"PEREZ Sergio",{"$f":"IF(Qatar!$D$11=\"\",0,SUM(Bahrein:USA!$G$11))","v":0},{"$f":"O4-O5","v":0},{"$f":"IF(O5=\"\",0,(RANK(O5,$O$4:$O$23)))","v":1}]
["RUSSELL George",null,null,null,null,null,{"$f":"IFERROR(CHOOSE(D6,25,18,15,12,10,8,6,4,2,1),0)+IFERROR(CHOOSE(H6,8,7,6,5,4,3,2,1),0)+F6","v":0},null,"WILLIAMS",{"$f":"SUM($G$17:$G$19)","v":0},0,{"$f":"IF(J6=\"\",0,(RANK(J6,$J$4:$J$13)))+COUNTIF(J$4:J6,J6)-1","v":3},null,"ALONSO Fernando",{"$f":"IF(Qatar!$D$11=\"\",0,SUM(Bahrein:USA!$G$11))","v":0},{"$f":"O5-O6","v":0},1]
[null,null,null,null,null,null,0,null,"ALFA ROMÉO",{"$f":"SUM($G$32:$G$34)","v":0},0,{"$f":"SUMIF(Qatar!$I$4:$I$13,USA!$I7,Qatar!$L$4:$L$13)+$J7","v":1},null,"HAMILTON Lewis",{"$f":"IF(Qatar!$D$11=\"\",0,SUM(Bahrein:USA!$G$11))","v":0},0,1]
["SAINZ.Jr Carlos","FERRARI",null,null,null,null,0,null,"MERCEDES",{"$f":"SUM($G$5:$G$7)","v":0},0,{"$f":"SUMIF(Qatar!$I$4:$I$13,USA!$I8,Qatar!$L$4:$L$13)+$J8","v":1},null,"SAINZ.Jr Carlos",{"$f":"IF(Qatar!$D$11=\"\",0,SUM(Bahrein:USA!$G$11))","v":0},0,1]
["LECLERC Charles",null,null,null,null,null,0,null,"RED BULL RACING",{"$f":"SUM($G$11:$G$13)","v":0},0,{"$f":"SUMIF(Qatar!$I$4:$I$13,USA!$I9,Qatar!$L$4:$L$13)+$J9","v":1},null,"STROLL Lance",{"$f":"IF(Qatar!$D$11=\"\",0,SUM(Bahrein:USA!$G$11))","v":0},0,1]
[null,null,null,null,null,null,0,null,"ASTON MARTIN",{"$f":"SUM($G$14:$G$16)","v":0},0,{"$f":"SUMIF(Qatar!$I$4:$I$13,USA!$I10,Qatar!$L$4:$L$13)+$J10","v":1},null,"RUSSEL George",{"$f":"IF(Qatar!$D$11=\"\",0,SUM(Bahrein:USA!$G$11))","v":0},0,1]
["VERSTAPPEN Max","RED BULL RACING",null,null,null,null,0,null,"ALPINE F1 TEAM",{"$f":"SUM($G$20:$G$22)","v":0},0,{"$f":"SUMIF(Qatar!$I$4:$I$13,USA!$I11,Qatar!$L$4:$L$13)+$J11","v":1},null,"NORRIS Lando",{"$f":"IF(Qatar!$D$11=\"\",0,SUM(Bahrein:USA!$G$11))","v":0},0,1]
["PEREZ Sergio",null,null,null,null,null,0,null,"ALPHA TAURI",{"$f":"SUM($G$23:$G$25)","v":0},0,{"$f":"SUMIF(Qatar!$I$4:$I$13,USA!$I12,Qatar!$L$4:$L$13)+$J12","v":1},null,"LECLERC Charles",{"$f":"IF(Qatar!$D$11=\"\",0,SUM(Bahrein:USA!$G$11))","v":0},0,1]
[null,null,null,null,null,null,0,null,"HAAS",{"$f":"SUM($G$26:$G$28)","v":0},0,{"$f":"IF(J13=\"\",0,(RANK(J13,$J$4:$J$13)))+COUNTIF(J$4:J13,J13)-1","v":10},null,"HULKENBERG Nico",{"$f":"IF(Qatar!$D$11=\"\",0,SUM(Bahrein:USA!$G$11))","v":0},0,1]
["ALONSO Fernando","ASTON MARTIN",null,null,null,null,0,null,null,null,null,null,null,"BOTTAS Valtteri",{"$f":"IF(Qatar!$D$11=\"\",0,SUM(Bahrein:USA!$G$11))","v":0},0,1]
["STROLL Lance",null,null,null,null,null,0,null,null,null,null,null,null,"GASLY Pierre",{"$f":"IF(Qatar!$D$11=\"\",0,SUM(Bahrein:USA!$G$11))","v":0},0,1]
[null,null,null,null,null,null,0,null,null,null,null,null,null,"OCON Sebastian",{"$f":"IF(Qatar!$D$11=\"\",0,SUM(Bahrein:USA!$G$11))","v":0},0,1]
["ALBON Alexander","WILLIAMS",null,null,null,null,0,null,null,null,null,null,null,"PIASTRI Oscar",{"$f":"IF(Qatar!$D$11=\"\",0,SUM(Bahrein:USA!$G$11))","v":0},0,1]
["SARGEANT Logan",null,null,null,null,null,0,null,null,null,null,null,null,"GUANYU Zhou",{"$f":"IF(Qatar!$D$11=\"\",0,SUM(Bahrein:USA!$G$11))","v":0},0,1]
[null,null,null,null,null,null,0,null,null,null,null,null,null,"ALBON Alexander",{"$f":"IF(Qatar!$D$11=\"\",0,SUM(Bahrein:USA!$G$11))","v":0},0,1]
["GASLY Pierre","ALPINE F1 TEAM",null,null,null,null,0,null,null,null,null,null,null,"MAGNUSSEN Kevin",{"$f":"IF(Qatar!$D$11=\"\",0,SUM(Bahrein:USA!$G$11))","v":0},0,1]
["OCON Sebastian",null,null,null,null,null,0,null,null,null,null,null,null,"TSUNODA Yoki",{"$f":"IF(Qatar!$D$11=\"\",0,SUM(Bahrein:USA!$G$11))","v":0},0,1]
[null,null,null,null,null,null,0,null,null,null,null,null,null,"DEVRIES Nyck",{"$f":"IF(Qatar!$D$11=\"\",0,SUM(Bahrein:USA!$G$11))","v":0},0,1]
["TSUNODA Yoki","ALPHA TAURI",null,null,null,null,0,null,null,null,null,null,null,"SARGEANT Logan",{"$f":"IF(Qatar!$D$11=\"\",0,SUM(Bahrein:USA!$G$11))","v":0},0,1]
["DEVRIES Nyck",null,null,null,null,null,0]
[null,null,null,null,null,null,0]
["MAGNUSSEN Kevin","HAAS",null,null,null,null,0]
["HULKENBERG Nico",null,null,null,null,null,0]
[null,null,null,null,null,null,0]
["NORRIS Lando","Mc LAREN",null,null,null,null,0]
["PIASTRI Oscar",null,null,null,null,null,0]
[null,null,null,null,null,null,0]
["BOTTAS Valtteri","ALFA ROMÉO",null,null,null,null,0]
["GUANYU Zhou",null,null,null,null,null,0]
[null,null,null,null,null,null,0]

{"sheet":"Mexique","index":23,"n_rows":34,"n_cols":17,"rows_kept":34,"cut":false,"hidden":false,"merged":[[2,5,3,5],[2,6,3,6],[0,0,1,16],[4,1,6,1],[4,2,6,2],[2,0,3,0],[2,1,3,1],[2,2,3,2],[2,3,3,3],[2,4,3,4],[7,1,9,1],[7,2,9,2],[10,1,12,1],[10,2,12,2],[13,1,15,1],[13,2,15,2],[16,1,18,1],[16,2,18,2],[19,1,21,1],[19,2,21,2],[36,1,36,3],[31,1,33,1],[31,2,33,2],[22,1,24,1],[22,2,24,2],[25,1,27,1],[25,2,27,2],[28,1,30,1],[28,2,30,2]]}
["MEXICO - 29 OCTOBRE 2023"]
[]
["PILOTES","ECURIES","VOITURES","Finish","Pôle","Pt tour","Points",null,"ÉCURIES","Points","Écart","Rang",null,"Noms","Points","Écart","Rang"]
[null,null,null,null,null,null,null,null,"Mc LAREN",{"$f":"SUM($G$29:$G$31)","v":0},null,{"$f":"IF(J4=\"\",0,(RANK(J4,$J$4:$J$13)))","v":1},null,"VERSTAPPEN Max",{"$f":"IF(USA!$D$11=\"\",0,SUM(Bahrein:Mexique!$G$11))","v":0},null,{"$f":"IF(O4=\"\",0,(RANK(O4,$O$4:$O$23)))","v":1}]
["HAMILTON Lewis","MERCEDES",null,null,null,null,{"$f":"IFERROR(CHOOSE(D5,25,18,15,12,10,8,6,4,2,1)+(F5=1),0)","v":0},null,"FERRARI",{"$f":"SUM($G$8:$G$10)","v":0},{"$f":"J5-J4","v":0},{"$f":"IF(J5=\"\",0,(RANK(J5,$J$4:$J$13)))+COUNTIF(J$4:J5,J5)-1","v":2},null,"PEREZ Sergio",{"$f":"IF(USA!$D$11=\"\",0,SUM(Bahrein:Mexique!$G$11))","v":0},{"$f":"O4-O5","v":0},{"$f":"IF(O5=\"\",0,(RANK(O5,$O$4:$O$23)))","v":1}]
["RUSSELL George",null,null,null,null,null,{"$f":"IFERROR(CHOOSE(D6,25,18,15,12,10,8,6,4,2,1)+(F6=1),0)","v":0},null,"WILLIAMS",{"$f":"SUM($G$17:$G$19)","v":0},0,{"$f":"IF(J6=\"\",0,(RANK(J6,$J$4:$J$13)))+COUNTIF(J$4:J6,J6)-1","v":3},null,"ALONSO Fernando",{"$f":"IF(USA!$D$11=\"\",0,SUM(Bahrein:Mexique!$G$11))","v":0},{"$f":"O5-O6","v":0},1]
[null,null,null,null,null,null,0,null,"ALFA ROMÉO",{"$f":"SUM($G$32:$G$34)","v":0},0,{"$f":"SUMIF(USA!$I$4:$I$13,Mexique!$I7,USA!$L$4:$L$13)+$J7","v":1},null,"HAMILTON Lewis",{"$f":"IF(USA!$D$11=\"\",0,SUM(Bahrein:Mexique!$G$11))","v":0},0,1]
["SAINZ.Jr Carlos","FERRARI",null,null,null,null,0,null,"MERCEDES",{"$f":"SUM($G$5:$G$7)","v":0},0,{"$f":"SUMIF(USA!$I$4:$I$13,Mexique!$I8,USA!$L$4:$L$13)+$J8","v":1},null,"SAINZ.Jr Carlos",{"$f":"IF(USA!$D$11=\"\",0,SUM(Bahrein:Mexique!$G$11))","v":0},0,1]
["LECLERC Charles",null,null,null,null,null,0,null,"RED BULL RACING",{"$f":"SUM($G$11:$G$13)","v":0},0,{"$f":"SUMIF(USA!$I$4:$I$13,Mexique!$I9,USA!$L$4:$L$13)+$J9","v":1},null,"STROLL Lance",{"$f":"IF(USA!$D$11=\"\",0,SUM(Bahrein:Mexique!$G$11))","v":0},0,1]
[null,null,null,null,null,null,0,null,"ASTON MARTIN",{"$f":"SUM($G$14:$G$16)","v":0},0,{"$f":"SUMIF(USA!$I$4:$I$13,Mexique!$I10,USA!$L$4:$L$13)+$J10","v":1},null,"RUSSEL George",{"$f":"IF(USA!$D$11=\"\",0,SUM(Bahrein:Mexique!$G$11))","v":0},0,1]
["VERSTAPPEN Max","RED BULL RACING",null,null,null,null,0,null,"ALPINE F1 TEAM",{"$f":"SUM($G$20:$G$22)","v":0},0,{"$f":"SUMIF(USA!$I$4:$I$13,Mexique!$I11,USA!$L$4:$L$13)+$J11","v":1},null,"NORRIS Lando",{"$f":"IF(USA!$D$11=\"\",0,SUM(Bahrein:Mexique!$G$11))","v":0},0,1]
["PEREZ Sergio",null,null,null,null,null,0,null,"ALPHA TAURI",{"$f":"SUM($G$23:$G$25)","v":0},0,{"$f":"SUMIF(USA!$I$4:$I$13,Mexique!$I12,USA!$L$4:$L$13)+$J12","v":1},null,"LECLERC Charles",{"$f":"IF(USA!$D$11=\"\",0,SUM(Bahrein:Mexique!$G$11))","v":0},0,1]
[null,null,null,null,null,null,0,null,"HAAS",{"$f":"SUM($G$26:$G$28)","v":0},0,{"$f":"IF(J13=\"\",0,(RANK(J13,$J$4:$J$13)))+COUNTIF(J$4:J13,J13)-1","v":10},null,"HULKENBERG Nico",{"$f":"IF(USA!$D$11=\"\",0,SUM(Bahrein:Mexique!$G$11))","v":0},0,1]
["ALONSO Fernando","ASTON MARTIN",null,null,null,null,0,null,null,null,null,null,null,"BOTTAS Valtteri",{"$f":"IF(USA!$D$11=\"\",0,SUM(Bahrein:Mexique!$G$11))","v":0},0,1]
["STROLL Lance",null,null,null,null,null,0,null,null,null,null,null,null,"GASLY Pierre",{"$f":"IF(USA!$D$11=\"\",0,SUM(Bahrein:Mexique!$G$11))","v":0},0,1]
[null,null,null,null,null,null,0,null,null,null,null,null,null,"OCON Sebastian",{"$f":"IF(USA!$D$11=\"\",0,SUM(Bahrein:Mexique!$G$11))","v":0},0,1]
["ALBON Alexander","WILLIAMS",null,null,null,null,0,null,null,null,null,null,null,"PIASTRI Oscar",{"$f":"IF(USA!$D$11=\"\",0,SUM(Bahrein:Mexique!$G$11))","v":0},0,1]
["SARGEANT Logan",null,null,null,null,null,0,null,null,null,null,null,null,"GUANYU Zhou",{"$f":"IF(USA!$D$11=\"\",0,SUM(Bahrein:Mexique!$G$11))","v":0},0,1]
[null,null,null,null,null,null,0,null,null,null,null,null,null,"ALBON Alexander",{"$f":"IF(USA!$D$11=\"\",0,SUM(Bahrein:Mexique!$G$11))","v":0},0,1]
["GASLY Pierre","ALPINE F1 TEAM",null,null,null,null,0,null,null,null,null,null,null,"MAGNUSSEN Kevin",{"$f":"IF(USA!$D$11=\"\",0,SUM(Bahrein:Mexique!$G$11))","v":0},0,1]
["OCON Sebastian",null,null,null,null,null,0,null,null,null,null,null,null,"TSUNODA Yoki",{"$f":"IF(USA!$D$11=\"\",0,SUM(Bahrein:Mexique!$G$11))","v":0},0,1]
[null,null,null,null,null,null,0,null,null,null,null,null,null,"SARGEANT Logan",{"$f":"IF(USA!$D$11=\"\",0,SUM(Bahrein:Mexique!$G$11))","v":0},0,1]
["TSUNODA Yoki","ALPHA TAURI",null,null,null,null,0,null,null,null,null,null,null,"DEVRIES Nyck",{"$f":"IF(USA!$D$11=\"\",0,SUM(Bahrein:Mexique!$G$11))","v":0},0,1]
["DEVRIES Nyck",null,null,null,null,null,0]
[null,null,null,null,null,null,0]
["MAGNUSSEN Kevin","HAAS",null,null,null,null,0]
["HULKENBERG Nico",null,null,null,null,null,0]
[null,null,null,null,null,null,0]
["NORRIS Lando","Mc LAREN",null,null,null,null,0]
["PIASTRI Oscar",null,null,null,null,null,0]
[null,null,null,null,null,null,0]
["BOTTAS Valtteri","ALFA ROMÉO",null,null,null,null,0]
["GUANYU Zhou",null,null,null,null,null,0]
[null,null,null,null,null,null,0]

{"sheet":"Brésil","index":24,"n_rows":34,"n_cols":17,"rows_kept":34,"cut":false,"hidden":false,"merged":[[2,5,3,5],[2,6,3,6],[2,7,3,7],[0,0,1,16],[2,0,3,0],[2,1,3,1],[2,2,3,2],[2,3,3,3],[2,4,3,4],[4,1,6,1],[4,2,6,2],[7,1,9,1],[7,2,9,2],[10,1,12,1],[10,2,12,2],[13,1,15,1],[13,2,15,2],[16,1,18,1],[16,2,18,2],[19,1,21,1],[19,2,21,2],[36,1,36,3],[31,1,33,1],[31,2,33,2],[22,1,24,1],[22,2,24,2],[25,1,27,1],[25,2,27,2],[28,1,30,1],[28,2,30,2]]}
["INTERLAGOS - 5 NOVEMBRE 2023"]
[]
["PILOTES","ECURIES","VOITURES","Finish","Pôle","Pt tour","Points","Sprint","ÉCURIES","Points","Écart","Rang",null,"Noms","Points","Écart","Rang"]
[null,null,null,null,null,null,null,null,"Mc LAREN",{"$f":"SUM($G$29:$G$31)","v":0},null,{"$f":"IF(J4=\"\",0,(RANK(J4,$J$4:$J$13)))","v":1},null,"VERSTAPPEN Max",{"$f":"IF(Mexique!$D$11=\"\",0,SUM(Bahrein:Brésil!$G$11))","v":0},null,{"$f":"IF(O4=\"\",0,(RANK(O4,$O$4:$O$23)))","v":1}]
["HAMILTON Lewis","MERCEDES",null,null,null,null,{"$f":"IFERROR(CHOOSE(D5,25,18,15,12,10,8,6,4,2,1),0)+IFERROR(CHOOSE(H5,8,7,6,5,4,3,2,1),0)+F5","v":0},null,"FERRARI",{"$f":"SUM($G$8:$G$10)","v":0},{"$f":"J5-J4","v":0},{"$f":"IF(J5=\"\",0,(RANK(J5,$J$4:$J$13)))+COUNTIF(J$4:J5,J5)-1","v":2},null,"PEREZ Sergio",{"$f":"IF(Mexique!$D$11=\"\",0,SUM(Bahrein:Brésil!$G$11))","v":0},{"$f":"O4-O5","v":0},{"$f":"IF(O5=\"\",0,(RANK(O5,$O$4:$O$23)))","v":1}]
["RUSSELL George",null,null,null,null,null,{"$f":"IFERROR(CHOOSE(D6,25,18,15,12,10,8,6,4,2,1),0)+IFERROR(CHOOSE(H6,8,7,6,5,4,3,2,1),0)+F6","v":0},null,"WILLIAMS",{"$f":"SUM($G$17:$G$19)","v":0},0,{"$f":"IF(J6=\"\",0,(RANK(J6,$J$4:$J$13)))+COUNTIF(J$4:J6,J6)-1","v":3},null,"ALONSO Fernando",{"$f":"IF(Mexique!$D$11=\"\",0,SUM(Bahrein:Brésil!$G$11))","v":0},{"$f":"O5-O6","v":0},1]
[null,null,null,null,null,null,0,null,"ALFA ROMÉO",{"$f":"SUM($G$32:$G$34)","v":0},0,{"$f":"SUMIF(Mexique!$I$4:$I$13,Brésil!$I7,Mexique!$L$4:$L$13)+$J7","v":1},null,"HAMILTON Lewis",{"$f":"IF(Mexique!$D$11=\"\",0,SUM(Bahrein:Brésil!$G$11))","v":0},0,1]
["SAINZ.Jr Carlos","FERRARI",null,null,null,null,0,null,"MERCEDES",{"$f":"SUM($G$5:$G$7)","v":0},0,{"$f":"SUMIF(Mexique!$I$4:$I$13,Brésil!$I8,Mexique!$L$4:$L$13)+$J8","v":1},null,"SAINZ.Jr Carlos",{"$f":"IF(Mexique!$D$11=\"\",0,SUM(Bahrein:Brésil!$G$11))","v":0},0,1]
["LECLERC Charles",null,null,null,null,null,0,null,"RED BULL RACING",{"$f":"SUM($G$11:$G$13)","v":0},0,{"$f":"SUMIF(Mexique!$I$4:$I$13,Brésil!$I9,Mexique!$L$4:$L$13)+$J9","v":1},null,"STROLL Lance",{"$f":"IF(Mexique!$D$11=\"\",0,SUM(Bahrein:Brésil!$G$11))","v":0},0,1]
[null,null,null,null,null,null,0,null,"ASTON MARTIN",{"$f":"SUM($G$14:$G$16)","v":0},0,{"$f":"SUMIF(Mexique!$I$4:$I$13,Brésil!$I10,Mexique!$L$4:$L$13)+$J10","v":1},null,"RUSSEL George",{"$f":"IF(Mexique!$D$11=\"\",0,SUM(Bahrein:Brésil!$G$11))","v":0},0,1]
["VERSTAPPEN Max","RED BULL RACING",null,null,null,null,0,null,"ALPINE F1 TEAM",{"$f":"SUM($G$20:$G$22)","v":0},0,{"$f":"SUMIF(Mexique!$I$4:$I$13,Brésil!$I11,Mexique!$L$4:$L$13)+$J11","v":1},null,"NORRIS Lando",{"$f":"IF(Mexique!$D$11=\"\",0,SUM(Bahrein:Brésil!$G$11))","v":0},0,1]
["PEREZ Sergio",null,null,null,null,null,0,null,"ALPHA TAURI",{"$f":"SUM($G$23:$G$25)","v":0},0,{"$f":"SUMIF(Mexique!$I$4:$I$13,Brésil!$I12,Mexique!$L$4:$L$13)+$J12","v":1},null,"LECLERC Charles",{"$f":"IF(Mexique!$D$11=\"\",0,SUM(Bahrein:Brésil!$G$11))","v":0},0,1]
[null,null,null,null,null,null,0,null,"HAAS",{"$f":"SUM($G$26:$G$28)","v":0},0,{"$f":"IF(J13=\"\",0,(RANK(J13,$J$4:$J$13)))+COUNTIF(J$4:J13,J13)-1","v":10},null,"HULKENBERG Nico",{"$f":"IF(Mexique!$D$11=\"\",0,SUM(Bahrein:Brésil!$G$11))","v":0},0,1]
["ALONSO Fernando","ASTON MARTIN",null,null,null,null,0,null,null,null,null,null,null,"BOTTAS Valtteri",{"$f":"IF(Mexique!$D$11=\"\",0,SUM(Bahrein:Brésil!$G$11))","v":0},0,1]
["STROLL Lance",null,null,null,null,null,0,null,null,null,null,null,null,"GASLY Pierre",{"$f":"IF(Mexique!$D$11=\"\",0,SUM(Bahrein:Brésil!$G$11))","v":0},0,1]
[null,null,null,null,null,null,0,null,null,null,null,null,null,"OCON Sebastian",{"$f":"IF(Mexique!$D$11=\"\",0,SUM(Bahrein:Brésil!$G$11))","v":0},0,1]
["ALBON Alexander","WILLIAMS",null,null,null,null,0,null,null,null,null,null,null,"PIASTRI Oscar",{"$f":"IF(Mexique!$D$11=\"\",0,SUM(Bahrein:Brésil!$G$11))","v":0},0,1]
["SARGEANT Logan",null,null,null,null,null,0,null,null,null,null,null,null,"GUANYU Zhou",{"$f":"IF(Mexique!$D$11=\"\",0,SUM(Bahrein:Brésil!$G$11))","v":0},0,1]
[null,null,null,null,null,null,0,null,null,null,null,null,null,"ALBON Alexander",{"$f":"IF(Mexique!$D$11=\"\",0,SUM(Bahrein:Brésil!$G$11))","v":0},0,1]
["GASLY Pierre","ALPINE F1 TEAM",null,null,null,null,0,null,null,null,null,null,null,"MAGNUSSEN Kevin",{"$f":"IF(Mexique!$D$11=\"\",0,SUM(Bahrein:Brésil!$G$11))","v":0},0,1]
["OCON Sebastian",null,null,null,null,null,0,null,null,null,null,null,null,"TSUNODA Yoki",{"$f":"IF(Mexique!$D$11=\"\",0,SUM(Bahrein:Brésil!$G$11))","v":0},0,1]
[null,null,null,null,null,null,0,null,null,null,null,null,null,"DEVRIES Nyck",{"$f":"IF(Mexique!$D$11=\"\",0,SUM(Bahrein:Brésil!$G$11))","v":0},0,1]
["TSUNODA Yoki","ALPHA TAURI",null,null,null,null,0,null,null,null,null,null,null,"SARGEANT Logan",{"$f":"IF(Mexique!$D$11=\"\",0,SUM(Bahrein:Brésil!$G$11))","v":0},0,1]
["DEVRIES Nyck",null,null,null,null,null,0]
[null,null,null,null,null,null,0]
["MAGNUSSEN Kevin","HAAS",null,null,null,null,0]
["HULKENBERG Nico",null,null,null,null,null,0]
[null,null,null,null,null,null,0]
["NORRIS Lando","Mc LAREN",null,null,null,null,0]
["PIASTRI Oscar",null,null,null,null,null,0]
[null,null,null,null,null,null,0]
["BOTTAS Valtteri","ALFA ROMÉO",null,null,null,null,0]
["GUANYU Zhou",null,null,null,null,null,0]
[null,null,null,null,null,null,0]

{"sheet":"Las Végas","index":25,"n_rows":34,"n_cols":17,"rows_kept":34,"cut":false,"hidden":false,"merged":[[31,1,33,1],[31,2,33,2],[36,1,36,3],[22,1,24,1],[22,2,24,2],[25,1,27,1],[25,2,27,2],[28,1,30,1],[28,2,30,2],[13,1,15,1],[13,2,15,2],[16,1,18,1],[16,2,18,2],[19,1,21,1],[19,2,21,2],[4,1,6,1],[4,2,6,2],[7,1,9,1],[7,2,9,2],[10,1,12,1],[10,2,12,2],[2,5,3,5],[2,6,3,6],[0,0,1,16],[2,0,3,0],[2,1,3,1],[2,2,3,2],[2,3,3,3],[2,4,3,4]]}
["LAS VÉGAS - 18 NOVEMBRE 2023"]
[]
["PILOTES","ECURIES","VOITURES","Finish","Pôle","Pt tour","Points",null,"ÉCURIES","Points","Écart","Rang",null,"Noms","Points","Écart","Rang"]
[null,null,null,null,null,null,null,null,"MERCEDES",{"$f":"SUM($G$5:$G$7)","v":0},null,{"$f":"IF(J4=\"\",0,(RANK(J4,$J$4:$J$13)))","v":1},null,"VERSTAPPEN Max",{"$f":"IF(Brésil!$D$11=\"\",0,SUM('Bahrein:Las Végas'!$G$11))","v":0},null,{"$f":"IF(O4=\"\",0,(RANK(O4,$O$4:$O$23)))","v":1}]
["HAMILTON Lewis","MERCEDES",null,null,null,null,{"$f":"IFERROR(CHOOSE(D5,25,18,15,12,10,8,6,4,2,1)+(F5=1),0)","v":0},null,"HAAS",{"$f":"SUM($G$26:$G$28)","v":0},{"$f":"J5-J4","v":0},{"$f":"IF(J5=\"\",0,(RANK(J5,$J$4:$J$13)))+COUNTIF(J$4:J5,J5)-1","v":2},null,"PEREZ Sergio",{"$f":"IF(Brésil!$D$11=\"\",0,SUM('Bahrein:Las Végas'!$G$11))","v":0},{"$f":"O4-O5","v":0},{"$f":"IF(O5=\"\",0,(RANK(O5,$O$4:$O$23)))","v":1}]
["RUSSELL George",null,null,null,null,null,{"$f":"IFERROR(CHOOSE(D6,25,18,15,12,10,8,6,4,2,1)+(F6=1),0)","v":0},null,"Mc LAREN",{"$f":"SUM($G$29:$G$31)","v":0},0,{"$f":"IF(J6=\"\",0,(RANK(J6,$J$4:$J$13)))+COUNTIF(J$4:J6,J6)-1","v":3},null,"ALONSO Fernando",{"$f":"IF(Brésil!$D$11=\"\",0,SUM('Bahrein:Las Végas'!$G$11))","v":0},{"$f":"O5-O6","v":0},1]
[null,null,null,null,null,null,0,null,"FERRARI",{"$f":"SUM($G$8:$G$10)","v":0},0,{"$f":"SUMIF(Brésil!$I$4:$I$13,'Las Végas'!$I7,Brésil!$L$4:$L$13)+$J7","v":2},null,"HAMILTON Lewis",{"$f":"IF(Brésil!$D$11=\"\",0,SUM('Bahrein:Las Végas'!$G$11))","v":0},0,1]
["SAINZ.Jr Carlos","FERRARI",null,null,null,null,0,null,"WILLIAMS",{"$f":"SUM($G$17:$G$19)","v":0},0,{"$f":"SUMIF(Brésil!$I$4:$I$13,'Las Végas'!$I8,Brésil!$L$4:$L$13)+$J8","v":3},null,"SAINZ.Jr Carlos",{"$f":"IF(Brésil!$D$11=\"\",0,SUM('Bahrein:Las Végas'!$G$11))","v":0},0,1]
["LECLERC Charles",null,null,null,null,null,0,null,"ALFA ROMÉO",{"$f":"SUM($G$32:$G$34)","v":0},0,{"$f":"SUMIF(Brésil!$I$4:$I$13,'Las Végas'!$I9,Brésil!$L$4:$L$13)+$J9","v":1},null,"STROLL Lance",{"$f":"IF(Brésil!$D$11=\"\",0,SUM('Bahrein:Las Végas'!$G$11))","v":0},0,1]
[null,null,null,null,null,null,0,null,"RED BULL RACING",{"$f":"SUM($G$11:$G$13)","v":0},0,{"$f":"SUMIF(Brésil!$I$4:$I$13,'Las Végas'!$I10,Brésil!$L$4:$L$13)+$J10","v":1},null,"RUSSEL George",{"$f":"IF(Brésil!$D$11=\"\",0,SUM('Bahrein:Las Végas'!$G$11))","v":0},0,1]
["VERSTAPPEN Max","RED BULL RACING",null,null,null,null,0,null,"ASTON MARTIN",{"$f":"SUM($G$14:$G$16)","v":0},0,{"$f":"SUMIF(Brésil!$I$4:$I$13,'Las Végas'!$I11,Brésil!$L$4:$L$13)+$J11","v":1},null,"NORRIS Lando",{"$f":"IF(Brésil!$D$11=\"\",0,SUM('Bahrein:Las Végas'!$G$11))","v":0},0,1]
["PEREZ Sergio",null,null,null,null,null,0,null,"ALPINE F1 TEAM",{"$f":"SUM($G$20:$G$22)","v":0},0,{"$f":"SUMIF(Brésil!$I$4:$I$13,'Las Végas'!$I12,Brésil!$L$4:$L$13)+$J12","v":1},null,"LECLERC Charles",{"$f":"IF(Brésil!$D$11=\"\",0,SUM('Bahrein:Las Végas'!$G$11))","v":0},0,1]
[null,null,null,null,null,null,0,null,"ALPHA TAURI",{"$f":"SUM($G$23:$G$25)","v":0},0,{"$f":"IF(J13=\"\",0,(RANK(J13,$J$4:$J$13)))+COUNTIF(J$4:J13,J13)-1","v":10},null,"HULKENBERG Nico",{"$f":"IF(Brésil!$D$11=\"\",0,SUM('Bahrein:Las Végas'!$G$11))","v":0},0,1]
["ALONSO Fernando","ASTON MARTIN",null,null,null,null,0,null,null,null,null,null,null,"BOTTAS Valtteri",{"$f":"IF(Brésil!$D$11=\"\",0,SUM('Bahrein:Las Végas'!$G$11))","v":0},0,1]
["STROLL Lance",null,null,null,null,null,0,null,null,null,null,null,null,"GASLY Pierre",{"$f":"IF(Brésil!$D$11=\"\",0,SUM('Bahrein:Las Végas'!$G$11))","v":0},0,1]
[null,null,null,null,null,null,0,null,null,null,null,null,null,"OCON Sebastian",{"$f":"IF(Brésil!$D$11=\"\",0,SUM('Bahrein:Las Végas'!$G$11))","v":0},0,1]
["ALBON Alexander","WILLIAMS",null,null,null,null,0,null,null,null,null,null,null,"PIASTRI Oscar",{"$f":"IF(Brésil!$D$11=\"\",0,SUM('Bahrein:Las Végas'!$G$11))","v":0},0,1]
["SARGEANT Logan",null,null,null,null,null,0,null,null,null,null,null,null,"GUANYU Zhou",{"$f":"IF(Brésil!$D$11=\"\",0,SUM('Bahrein:Las Végas'!$G$11))","v":0},0,1]
[null,null,null,null,null,null,0,null,null,null,null,null,null,"ALBON Alexander",{"$f":"IF(Brésil!$D$11=\"\",0,SUM('Bahrein:Las Végas'!$G$11))","v":0},0,1]
["GASLY Pierre","ALPINE F1 TEAM",null,null,null,null,0,null,null,null,null,null,null,"MAGNUSSEN Kevin",{"$f":"IF(Brésil!$D$11=\"\",0,SUM('Bahrein:Las Végas'!$G$11))","v":0},0,1]
["OCON Sebastian",null,null,null,null,null,0,null,null,null,null,null,null,"TSUNODA Yoki",{"$f":"IF(Brésil!$D$11=\"\",0,SUM('Bahrein:Las Végas'!$G$11))","v":0},0,1]
[null,null,null,null,null,null,0,null,null,null,null,null,null,"DEVRIES Nyck",{"$f":"IF(Brésil!$D$11=\"\",0,SUM('Bahrein:Las Végas'!$G$11))","v":0},0,1]
["TSUNODA Yoki","ALPHA TAURI",null,null,null,null,0,null,null,null,null,null,null,"SARGEANT Logan",{"$f":"IF(Brésil!$D$11=\"\",0,SUM('Bahrein:Las Végas'!$G$11))","v":0},0,1]
["DEVRIES Nyck",null,null,null,null,null,0]
[null,null,null,null,null,null,0]
["MAGNUSSEN Kevin","HAAS",null,null,null,null,0]
["HULKENBERG Nico",null,null,null,null,null,0]
[null,null,null,null,null,null,0]
["NORRIS Lando","Mc LAREN",null,null,null,null,0]
["PIASTRI Oscar",null,null,null,null,null,0]
[null,null,null,null,null,null,0]
["BOTTAS Valtteri","ALFA ROMÉO",null,null,null,null,0]
["GUANYU Zhou",null,null,null,null,null,0]
[null,null,null,null,null,null,0]

{"sheet":"AbuDhabi","index":26,"n_rows":34,"n_cols":17,"rows_kept":34,"cut":false,"hidden":false,"merged":[[2,0,3,0],[0,0,1,16],[4,1,6,1],[4,2,6,2],[2,1,3,1],[2,2,3,2],[2,3,3,3],[2,5,3,5],[2,6,3,6],[2,4,3,4],[7,1,9,1],[7,2,9,2],[10,1,12,1],[10,2,12,2],[13,1,15,1],[13,2,15,2],[16,1,18,1],[16,2,18,2],[19,1,21,1],[19,2,21,2],[36,1,36,3],[31,1,33,1],[31,2,33,2],[22,1,24,1],[22,2,24,2],[25,1,27,1],[25,2,27,2],[28,1,30,1],[28,2,30,2]]}
["YAS MARINA - 26 NOVEMBRE 2023"]
[]
["PILOTES","ECURIES","VOITURES","Finish","Pôle","Pt tour","Points",null,"ÉCURIES","Points","Écart","Rang",null,"Noms","Points","Écart","Rang"]
[null,null,null,null,null,null,null,null,"MERCEDES",{"$f":"SUM($G$5:$G$7)","v":0},null,{"$f":"IF(J4=\"\",0,(RANK(J4,$J$4:$J$13)))","v":1},null,"VERSTAPPEN Max",{"$f":"IF('Las Végas'!$D$11=\"\",0,SUM(Bahrein:AbuDhabi!$G$11))","v":0},null,{"$f":"IF(O4=\"\",0,(RANK(O4,$O$4:$O$23)))","v":1}]
["HAMILTON Lewis","MERCEDES",null,null,null,null,{"$f":"IFERROR(CHOOSE(D5,25,18,15,12,10,8,6,4,2,1)+(F5=1),0)","v":0},null,"HAAS",{"$f":"SUM($G$26:$G$28)","v":0},{"$f":"J5-J4","v":0},{"$f":"IF(J5=\"\",0,(RANK(J5,$J$4:$J$13)))+COUNTIF(J$4:J5,J5)-1","v":2},null,"PEREZ Sergio",{"$f":"IF('Las Végas'!$D$11=\"\",0,SUM(Bahrein:AbuDhabi!$G$11))","v":0},{"$f":"O4-O5","v":0},{"$f":"IF(O5=\"\",0,(RANK(O5,$O$4:$O$23)))","v":1}]
["RUSSELL George",null,null,null,null,null,{"$f":"IFERROR(CHOOSE(D6,25,18,15,12,10,8,6,4,2,1)+(F6=1),0)","v":0},null,"Mc LAREN",{"$f":"SUM($G$29:$G$31)","v":0},0,{"$f":"IF(J6=\"\",0,(RANK(J6,$J$4:$J$13)))+COUNTIF(J$4:J6,J6)-1","v":3},null,"ALONSO Fernando",{"$f":"IF('Las Végas'!$D$11=\"\",0,SUM(Bahrein:AbuDhabi!$G$11))","v":0},{"$f":"O5-O6","v":0},1]
[null,null,null,null,null,null,0,null,"FERRARI",{"$f":"SUM($G$8:$G$10)","v":0},0,{"$f":"SUMIF('Las Végas'!$I$4:$I$13,AbuDhabi!$I7,'Las Végas'!$L$4:$L$13)+$J7","v":2},null,"HAMILTON Lewis",{"$f":"IF('Las Végas'!$D$11=\"\",0,SUM(Bahrein:AbuDhabi!$G$11))","v":0},0,1]
["SAINZ.Jr Carlos","FERRARI",null,null,null,null,0,null,"WILLIAMS",{"$f":"SUM($G$17:$G$19)","v":0},0,{"$f":"SUMIF('Las Végas'!$I$4:$I$13,AbuDhabi!$I8,'Las Végas'!$L$4:$L$13)+$J8","v":3},null,"SAINZ.Jr Carlos",{"$f":"IF('Las Végas'!$D$11=\"\",0,SUM(Bahrein:AbuDhabi!$G$11))","v":0},0,1]
["LECLERC Charles",null,null,null,null,null,0,null,"ALFA ROMÉO",{"$f":"SUM($G$32:$G$34)","v":0},0,{"$f":"SUMIF('Las Végas'!$I$4:$I$13,AbuDhabi!$I9,'Las Végas'!$L$4:$L$13)+$J9","v":1},null,"STROLL Lance",{"$f":"IF('Las Végas'!$D$11=\"\",0,SUM(Bahrein:AbuDhabi!$G$11))","v":0},0,1]
[null,null,null,null,null,null,0,null,"RED BULL RACING",{"$f":"SUM($G$11:$G$13)","v":0},0,{"$f":"SUMIF('Las Végas'!$I$4:$I$13,AbuDhabi!$I10,'Las Végas'!$L$4:$L$13)+$J10","v":1},null,"RUSSEL George",{"$f":"IF('Las Végas'!$D$11=\"\",0,SUM(Bahrein:AbuDhabi!$G$11))","v":0},0,1]
["VERSTAPPEN Max","RED BULL RACING",null,null,null,null,0,null,"ASTON MARTIN",{"$f":"SUM($G$14:$G$16)","v":0},0,{"$f":"SUMIF('Las Végas'!$I$4:$I$13,AbuDhabi!$I11,'Las Végas'!$L$4:$L$13)+$J11","v":1},null,"NORRIS Lando",{"$f":"IF('Las Végas'!$D$11=\"\",0,SUM(Bahrein:AbuDhabi!$G$11))","v":0},0,1]
["PEREZ Sergio",null,null,null,null,null,0,null,"ALPINE F1 TEAM",{"$f":"SUM($G$20:$G$22)","v":0},0,{"$f":"SUMIF('Las Végas'!$I$4:$I$13,AbuDhabi!$I12,'Las Végas'!$L$4:$L$13)+$J12","v":1},null,"LECLERC Charles",{"$f":"IF('Las Végas'!$D$11=\"\",0,SUM(Bahrein:AbuDhabi!$G$11))","v":0},0,1]
[null,null,null,null,null,null,0,null,"ALPHA TAURI",{"$f":"SUM($G$23:$G$25)","v":0},0,{"$f":"IF(J13=\"\",0,(RANK(J13,$J$4:$J$13)))+COUNTIF(J$4:J13,J13)-1","v":10},null,"HULKENBERG Nico",{"$f":"IF('Las Végas'!$D$11=\"\",0,SUM(Bahrein:AbuDhabi!$G$11))","v":0},0,1]
["ALONSO Fernando","ASTON MARTIN",null,null,null,null,0,null,null,null,null,null,null,"BOTTAS Valtteri",{"$f":"IF('Las Végas'!$D$11=\"\",0,SUM(Bahrein:AbuDhabi!$G$11))","v":0},0,1]
["STROLL Lance",null,null,null,null,null,0,null,null,null,null,null,null,"GASLY Pierre",{"$f":"IF('Las Végas'!$D$11=\"\",0,SUM(Bahrein:AbuDhabi!$G$11))","v":0},0,1]
[null,null,null,null,null,null,0,null,null,null,null,null,null,"OCON Sebastian",{"$f":"IF('Las Végas'!$D$11=\"\",0,SUM(Bahrein:AbuDhabi!$G$11))","v":0},0,1]
["ALBON Alexander","WILLIAMS",null,null,null,null,0,null,null,null,null,null,null,"PIASTRI Oscar",{"$f":"IF('Las Végas'!$D$11=\"\",0,SUM(Bahrein:AbuDhabi!$G$11))","v":0},0,1]
["SARGEANT Logan",null,null,null,null,null,0,null,null,null,null,null,null,"GUANYU Zhou",{"$f":"IF('Las Végas'!$D$11=\"\",0,SUM(Bahrein:AbuDhabi!$G$11))","v":0},0,1]
[null,null,null,null,null,null,0,null,null,null,null,null,null,"ALBON Alexander",{"$f":"IF('Las Végas'!$D$11=\"\",0,SUM(Bahrein:AbuDhabi!$G$11))","v":0},0,1]
["GASLY Pierre","ALPINE F1 TEAM",null,null,null,null,0,null,null,null,null,null,null,"MAGNUSSEN Kevin",{"$f":"IF('Las Végas'!$D$11=\"\",0,SUM(Bahrein:AbuDhabi!$G$11))","v":0},0,1]
["OCON Sebastian",null,null,null,null,null,0,null,null,null,null,null,null,"TSUNODA Yoki",{"$f":"IF('Las Végas'!$D$11=\"\",0,SUM(Bahrein:AbuDhabi!$G$11))","v":0},0,1]
[null,null,null,null,null,null,0,null,null,null,null,null,null,"DEVRIES Nyck",{"$f":"IF('Las Végas'!$D$11=\"\",0,SUM(Bahrein:AbuDhabi!$G$11))","v":0},0,1]
["TSUNODA Yoki","ALPHA TAURI",null,null,null,null,0,null,null,null,null,null,null,"SARGEANT Logan",{"$f":"IF('Las Végas'!$D$11=\"\",0,SUM(Bahrein:AbuDhabi!$G$11))","v":0},0,1]
["DEVRIES Nyck",null,null,null,null,null,0]
[null,null,null,null,null,null,0]
["MAGNUSSEN Kevin","HAAS",null,null,null,null,0]
["HULKENBERG Nico",null,null,null,null,null,0]
[null,null,null,null,null,null,0]
["NORRIS Lando","Mc LAREN",null,null,null,null,0]
["PIASTRI Oscar",null,null,null,null,null,0]
[null,null,null,null,null,null,0]
["BOTTAS Valtteri","ALFA ROMÉO",null,null,null,null,0]
["GUANYU Zhou",null,null,null,null,null,0]
[null,null,null,null,null,null,0]